ENTITY,COST_CENTRE,COST_CENTRE_DESCRIPTION,SERVICE,DIRECTORATE,SUBJECTIVE,SUBJECTIVE_DESCRIPTION,SUPPLIER_NAME,DESCRIPTION,VOUCHER_NUM,AMOUNT,PAYMENT_DATE,LINE_AMOUNT,PAID_AMOUNT
51,600001,Corporate Properties,Natural Resources and Assets,Infrastructure and Planning,21110,R&M - Electrical - Planned,Evans Electricals,Evans Electrical Town Hall Middle Floor Re-wire Project March 2019,2515709 ,"3,193.28", 04/04/2019,553.28,"2,665.28"
51,600001,Corporate Properties,Natural Resources and Assets,Infrastructure and Planning,21110,R&M - Electrical - Planned,Evans Electricals,Evans Electrical Town Hall Middle Floor Re-wire Project March 2019,2515709 ,"3,193.28", 04/04/2019,"2,640.00","2,665.28"
51,600001,Corporate Properties,Natural Resources and Assets,Infrastructure and Planning,21201,R&M - Buildings - Reactive,Polartek,Replace faulty TEV head on pool plant; Replace damaged & saturated insulation & replace filters,2518276 ,551.50, 04/04/2019,551.50,661.80
51,600001,Corporate Properties,Natural Resources and Assets,Infrastructure and Planning,21110,R&M - Electrical - Planned,D.J Evans,Evans builders Town hall Middle Floor Electrical rewire March 2019,2519390 ,"1,800.00", 09/04/2019,"1,800.00","1,440.00"
51,600001,Corporate Properties,Natural Resources and Assets,Infrastructure and Planning,21201,R&M - Buildings - Reactive,St Ives Steeplejacks,Remove suspended ceiling fixings from within roof space of the Town Hall plus travel expenses,2515758 ,"4,600.00", 09/04/2019,"2,200.00","5,040.00"
51,600001,Corporate Properties,Natural Resources and Assets,Infrastructure and Planning,21201,R&M - Buildings - Reactive,St Ives Steeplejacks,Remove suspended ceiling fixings from within roof space of the Town Hall plus travel expenses,2515758 ,"4,600.00", 09/04/2019,"2,400.00","5,040.00"
51,600001,Corporate Properties,Natural Resources and Assets,Infrastructure and Planning,21201,R&M - Buildings - Reactive,St Ives Steeplejacks,Remove suspended ceiling fixings from within roof space of the Town Hall plus travel expenses,2515758 ,"4,600.00", 09/04/2019,"-4,600.00","5,040.00"
51,600001,Corporate Properties,Natural Resources and Assets,Infrastructure and Planning,21201,R&M - Buildings - Reactive,St Ives Steeplejacks,Remove suspended ceiling fixings from within roof space of the Town Hall plus travel expenses,2515758 ,"4,600.00", 09/04/2019,"4,600.00","5,040.00"
51,600001,Corporate Properties,Natural Resources and Assets,Infrastructure and Planning,21110,R&M - Electrical - Planned,Davey & Gilbert Ltd,Davey and Gilbert St Martins School August 2018,2527234 ,649.00, 11/04/2019,649.00,778.80
51,600001,Corporate Properties,Natural Resources and Assets,Infrastructure and Planning,21110,R&M - Electrical - Planned,Davey & Gilbert Ltd,Davey and Gilbert Tresco School August 2018,2527238 ,649.00, 11/04/2019,649.00,778.80
51,600001,Corporate Properties,Natural Resources and Assets,Infrastructure and Planning,31602,Air Travel,RBS Commercial Card Division,27-03-2019|6459|TRAVEL TEAM|ISLES OF SCILLY SS CO|TR21 0LJ|4411|FLIGHT REFUND 245286|IOS_NSTINSON,2527247 ,"12,964.48", 12/04/2019,-256.50,"13,582.29"
51,600001,Corporate Properties,Natural Resources and Assets,Infrastructure and Planning,31602,Air Travel,RBS Commercial Card Division,07-03-2019|6459|TRAVEL TEAM|ISLES OF SCILLY SS CO|TR21 0LJ|4411|FLIGHT 251629 GO-EV PROJECT 600261|IOS_NSTINSON,2527247 ,"12,964.48", 12/04/2019,181.10,"13,582.29"
51,600001,Corporate Properties,Natural Resources and Assets,Infrastructure and Planning,31602,Air Travel,RBS Commercial Card Division,11-03-2019|6459|TRAVEL TEAM|ISLES OF SCILLY SS CO|TR21 0LJ|4411|FLIGHT REFUND 251074 - 600102 OPE|IOS_NSTINSON,2527247 ,"12,964.48", 12/04/2019,-181.10,"13,582.29"
51,600001,Corporate Properties,Natural Resources and Assets,Infrastructure and Planning,31602,Air Travel,RBS Commercial Card Division,20-03-2019|6459|TRAVEL TEAM|ISLES OF SCILLY SS CO|TR21 0LJ|4411|FLIGHT SHUTTLE|IOS_NSTINSON,2527247 ,"12,964.48", 12/04/2019,12.00,"13,582.29"
51,600001,Corporate Properties,Natural Resources and Assets,Infrastructure and Planning,31602,Air Travel,RBS Commercial Card Division,20-03-2019|6459|TRAVEL TEAM|ISLES OF SCILLY SS CO|TR21 0LJ|4411|FLIGHT 253965|IOS_NSTINSON,2527247 ,"12,964.48", 12/04/2019,118.76,"13,582.29"
51,600001,Corporate Properties,Natural Resources and Assets,Infrastructure and Planning,31602,Air Travel,RBS Commercial Card Division,22-03-2019|6459|TRAVEL TEAM|ISLES OF SCILLY SS CO|TR21 0LJ|4411|FLIGHT 254391|IOS_NSTINSON,2527247 ,"12,964.48", 12/04/2019,152.00,"13,582.29"
51,600001,Corporate Properties,Natural Resources and Assets,Infrastructure and Planning,31602,Air Travel,RBS Commercial Card Division,25-03-2019|6459|TRAVEL TEAM|ISLES OF SCILLY SS CO|TR21 0LJ|4411|FLIGHT SHUTTLE 230522|IOS_NSTINSON,2527247 ,"12,964.48", 12/04/2019,6.00,"13,582.29"
51,600001,Corporate Properties,Natural Resources and Assets,Infrastructure and Planning,31602,Air Travel,RBS Commercial Card Division,04-03-2019|6459|TRAVEL TEAM|ISLES OF SCILLY SS CO|TR21 0LJ|4411|FLIGHT 251074 - 600102 OPE|IOS_NSTINSON,2527247 ,"12,964.48", 12/04/2019,181.10,"13,582.29"
51,600001,Corporate Properties,Natural Resources and Assets,Infrastructure and Planning,31602,Air Travel,RBS Commercial Card Division,05-03-2019|6459|TRAVEL TEAM|ISLES OF SCILLY SS CO|TR21 0LJ|4411|FLIGHT 245442|IOS_NSTINSON,2527247 ,"12,964.48", 12/04/2019,104.50,"13,582.29"
51,600001,Corporate Properties,Natural Resources and Assets,Infrastructure and Planning,21301,R&M - Buildings - Term,Davey & Gilbert Ltd,Davey and Gilbert Council Office March 2019,2530746 ,485.00, 18/04/2019,485.00,582.00
51,600001,Corporate Properties,Natural Resources and Assets,Infrastructure and Planning,22003,Gas,British Gas Business,British Gas Carn Gwarval School 23rd Feb - 21 March,2518230 ,"1,188.56", 25/04/2019,"1,188.56","1,426.27"
51,600001,Corporate Properties,Natural Resources and Assets,Infrastructure and Planning,22002,Electricity,British Gas,968424131 Line 11,2533512 ,471.15, 26/04/2019,471.15,565.38
51,600001,Corporate Properties,Natural Resources and Assets,Infrastructure and Planning,22002,Electricity,British Gas Business,Carn Gwaval Primary School: 3rd-22 Feb,2534398 ,685.41, 30/04/2019,685.41,822.49
51,600001,Corporate Properties,Natural Resources and Assets,Infrastructure and Planning,27001,Contract Cleaning,Clifford Freeman t/a Scilly Self Catering,Cleaning Services at Carn Thomas Building,2540117 ,"1,250.00", 07/05/2019,"1,250.00","1,500.00"
51,600001,Corporate Properties,Natural Resources and Assets,Infrastructure and Planning,31602,Air Travel,RBS Commercial Card Division,29-03-2019|6459|TRAVEL TEAM|ISLES OF SCILLY SS CO|TR21 0LJ|4411|FLIGHT 255732|,2562926 ,"8,470.46", 30/05/2019,84.55,"8,939.84"
51,600001,Corporate Properties,Natural Resources and Assets,Infrastructure and Planning,31602,Air Travel,RBS Commercial Card Division,05-04-2019|6459|TRAVEL TEAM|ISLES OF SCILLY SS CO|TR21 0LJ|4411|FLIGHT 256965 - OPE|,2562926 ,"8,470.46", 30/05/2019,90.55,"8,939.84"
51,600001,Corporate Properties,Natural Resources and Assets,Infrastructure and Planning,31602,Air Travel,RBS Commercial Card Division,10-04-2019|6459|TRAVEL TEAM|ISLES OF SCILLY SS CO|TR21 0LJ|4411|FLIGHT 257962 - OPE|,2562926 ,"8,470.46", 30/05/2019,320.62,"8,939.84"
51,600001,Corporate Properties,Natural Resources and Assets,Infrastructure and Planning,31602,Air Travel,RBS Commercial Card Division,10-04-2019|6459|TRAVEL TEAM|ISLES OF SCILLY SS CO|TR21 0LJ|4411|FLIGHT AMENDMENT 245001 - OPE|,2562926 ,"8,470.46", 30/05/2019,10.93,"8,939.84"
51,600001,Corporate Properties,Natural Resources and Assets,Infrastructure and Planning,31602,Air Travel,RBS Commercial Card Division,18-04-2019|6459|TRAVEL TEAM|ISLES OF SCILLY SS CO|TR21 0LJ|4411|FLIGHT 259373 - OPE|,2562926 ,"8,470.46", 30/05/2019,181.10,"8,939.84"
51,600001,Corporate Properties,Natural Resources and Assets,Infrastructure and Planning,31602,Air Travel,RBS Commercial Card Division,24-04-2019|6459|TRAVEL TEAM|ISLES OF SCILLY SS CO|TR21 0LJ|4411|FLIGHT  260229 - OPE|,2562926 ,"8,470.46", 30/05/2019,124.76,"8,939.84"
51,600001,Corporate Properties,Natural Resources and Assets,Infrastructure and Planning,22002,Electricity,British Gas,INV 965434802 LINE 90,2571995 ,430.87, 07/06/2019,430.87,517.04
51,600001,Corporate Properties,Natural Resources and Assets,Infrastructure and Planning,22003,Gas,British Gas Business,British Gas Business - Council Buildings March and April 2019,2577490 ,"2,057.11", 13/06/2019,"-1,731.75","2,285.69"
51,600001,Corporate Properties,Natural Resources and Assets,Infrastructure and Planning,22003,Gas,British Gas Business,British Gas Business - Council Buildings March and April 2019,2577490 ,"2,057.11", 13/06/2019,"1,731.75","2,285.69"
51,600001,Corporate Properties,Natural Resources and Assets,Infrastructure and Planning,22003,Gas,British Gas Business,British Gas Business - Council Buildings March and April 2019,2577490 ,"2,057.11", 13/06/2019,"1,217.99","2,285.69"
51,600001,Corporate Properties,Natural Resources and Assets,Infrastructure and Planning,22003,Gas,British Gas Business,British Gas Business - Council Buildings March and April 2019,2577490 ,"2,057.11", 13/06/2019,839.12,"2,285.69"
51,600001,Corporate Properties,Natural Resources and Assets,Infrastructure and Planning,22003,Gas,British Gas Business,British Gas Business - Council Buildings March and April 2019,2577490 ,"2,057.11", 13/06/2019,"-1,889.30","2,285.69"
51,600001,Corporate Properties,Natural Resources and Assets,Infrastructure and Planning,22003,Gas,British Gas Business,British Gas Business - Council Buildings March and April 2019,2577490 ,"2,057.11", 13/06/2019,-32.29,"2,285.69"
51,600001,Corporate Properties,Natural Resources and Assets,Infrastructure and Planning,22003,Gas,British Gas Business,British Gas Business - Council Buildings March and April 2019,2577490 ,"2,057.11", 13/06/2019,-21.29,"2,285.69"
51,600001,Corporate Properties,Natural Resources and Assets,Infrastructure and Planning,22003,Gas,British Gas Business,British Gas Business - Council Buildings March and April 2019,2577490 ,"2,057.11", 13/06/2019,-114.23,"2,285.69"
51,600001,Corporate Properties,Natural Resources and Assets,Infrastructure and Planning,22003,Gas,British Gas Business,British Gas Business - Council Buildings March and April 2019,2577490 ,"2,057.11", 13/06/2019,"1,889.30","2,285.69"
51,600001,Corporate Properties,Natural Resources and Assets,Infrastructure and Planning,22003,Gas,British Gas Business,British Gas Business - Council Buildings March and April 2019,2577490 ,"2,057.11", 13/06/2019,32.29,"2,285.69"
51,600001,Corporate Properties,Natural Resources and Assets,Infrastructure and Planning,22003,Gas,British Gas Business,British Gas Business - Council Buildings March and April 2019,2577490 ,"2,057.11", 13/06/2019,21.29,"2,285.69"
51,600001,Corporate Properties,Natural Resources and Assets,Infrastructure and Planning,22003,Gas,British Gas Business,British Gas Business - Council Buildings March and April 2019,2577490 ,"2,057.11", 13/06/2019,114.23,"2,285.69"
51,600001,Corporate Properties,Natural Resources and Assets,Infrastructure and Planning,22003,Gas,British Gas Business,British Gas Business - Council Buildings March and April 2019,2577490 ,"2,057.11", 13/06/2019,"-2,057.11","2,285.69"
51,600001,Corporate Properties,Natural Resources and Assets,Infrastructure and Planning,22003,Gas,British Gas Business,British Gas Business - Council Buildings March and April 2019,2577490 ,"2,057.11", 13/06/2019,"2,057.11","2,285.69"
51,600001,Corporate Properties,Natural Resources and Assets,Infrastructure and Planning,49002,Miscellaneous Expenditure,Dorma Uk Ltd,Annual service contract electric doors,2573093 ,"3,894.00", 18/06/2019,"3,894.00","4,672.80"
51,600001,Corporate Properties,Natural Resources and Assets,Infrastructure and Planning,41304,Cleaning & Domestic Materials,The Consortium,Cleaning Supplies,2582347 ,956.44, 20/06/2019,956.44,"1,147.73"
51,600001,Corporate Properties,Natural Resources and Assets,Infrastructure and Planning,31602,Air Travel,RBS Commercial Card Division,26-04-2019|6459|TRAVEL TEAM|ISLES OF SCILLY SS CO|TR21 0LJ|4411|FLIGHT 260627|IOS_NSTINSON,2585377 ,"16,386.79", 28/06/2019,338.20,"17,042.35"
51,600002,Public Conveniences,Natural Resources and Assets,Infrastructure and Planning,27001,Contract Cleaning,E J & A C Stewart,E.J Stewart Cleaning St Agnes April,2527083 ,796.25, 11/04/2019,796.25,796.25
51,600002,Public Conveniences,Natural Resources and Assets,Infrastructure and Planning,27001,Contract Cleaning,E J & A C Stewart,E.J Stewart St Agnes Cleaning May,2548352 ,796.25, 14/05/2019,796.25,796.25
51,600002,Public Conveniences,Natural Resources and Assets,Infrastructure and Planning,27001,Contract Cleaning,E J & A C Stewart,E.J Stewart Cleaning St Agnes,2572093 ,796.25, 06/06/2019,796.25,796.25
51,600002,Public Conveniences,Natural Resources and Assets,Infrastructure and Planning,31603,Other Public Transport,RBS Commercial Card Division,07-05-2019|7393|JULIAN WRIGHT|ISLANDS TOURISM|TR21 0LL|7997|INTER ISLAND BOAT TICKETS|,2585377 ,"16,386.79", 28/06/2019,90.00,"17,042.35"
51,600003,Commercial Property,Natural Resources and Assets,Infrastructure and Planning,45210,IT Communications,CTI Communications Ltd,PEC Support Contract 01.04.19  31.03.20,2518233 ,806.00, 04/04/2019,806.00,967.20
51,600003,Commercial Property,Natural Resources and Assets,Infrastructure and Planning,73942,Repairs,Davey & Gilbert Ltd,Works to Gleaner Units to address non-compliances following inspection,2517972 ,545.00, 09/04/2019,545.00,654.00
51,600003,Commercial Property,Natural Resources and Assets,Infrastructure and Planning,21201,R&M - Buildings - Reactive,Wright Construction,IOS Museum - works to door and sign backing,2559478 ,450.00, 28/05/2019,450.00,540.00
51,600003,Commercial Property,Natural Resources and Assets,Infrastructure and Planning,22002,Electricity,Edf Energy Plc,INV 5762407 LINE 105,2571930 ,866.83, 07/06/2019,866.83,"1,040.19"
51,600003,Commercial Property,Natural Resources and Assets,Infrastructure and Planning,25003,Fire Equipment,Advanced Fire and Security South West Ltd,"Advanced Fire and Security - Installation of Emergency Lighting, Flights and Accommodation June",2582692 ,"7,571.00", 20/06/2019,"7,571.00","9,085.20"
51,600003,Commercial Property,Natural Resources and Assets,Infrastructure and Planning,31602,Air Travel,RBS Commercial Card Division,24-05-2019|6459|TRAVEL TEAM|ISLES OF SCILLY SS CO|TR21 0LJ|4411|FLIGHT 265735|IOS_NSTINSON,2585377 ,"16,386.79", 28/06/2019,152.00,"17,042.35"
51,600004,Coast & Flood Protection,Natural Resources and Assets,Infrastructure and Planning,28001,Maintenance of Grounds,Milestone Environmental Limited,Milestone Environmental Loggers,2531978 ,"3,738.00", 23/04/2019,"3,738.00","4,485.60"
51,600005,AONB,Natural Resources and Assets,Infrastructure and Planning,47001,Grants & Conts to Other Bodies - Non Discretionary,NAAONB,NAAONB Annual Core Funding Contribution for 2019/20,2553134 ,"2,619.00", 16/05/2019,"2,619.00","2,619.00"
51,600005,AONB,Natural Resources and Assets,Infrastructure and Planning,43549,Research & Development,Cornwall Development Company Ltd,Cornwall Development Company AgnTech 2019/2020 Match Funding,2564096 ,"5,000.00", 04/06/2019,"5,000.00","5,000.00"
51,600005,AONB,Natural Resources and Assets,Infrastructure and Planning,47013,Grants & Conts to Other Bodies - Discretionary,Ios Wildlife Trust Ltd,IOS Wildlife Trust Grant in Aid payment 2019/2020,2571292 ,"118,000.00", 06/06/2019,"118,000.00","118,000.00"
51,600010,Operational R & M Services,Operational Services,Infrastructure and Planning,21108,R&M - Solid Fuel - Planned,Sibleys Fuel & Marine Services,Sibleys Fuel and Marine Services for March,2517991 ,"1,365.16", 04/04/2019,68.80,"1,627.87"
51,600010,Operational R & M Services,Operational Services,Infrastructure and Planning,21108,R&M - Solid Fuel - Planned,Sibleys Fuel & Marine Services,Sibleys Fuel and Marine Services for March,2517991 ,"1,365.16", 04/04/2019,"1,296.36","1,627.87"
51,600010,Operational R & M Services,Operational Services,Infrastructure and Planning,21108,R&M - Solid Fuel - Planned,Sibleys Fuel & Marine Services,Sibleys Fuel and Marine Services for March,2517991 ,"1,365.16", 04/04/2019,"-1,365.16","1,627.87"
51,600010,Operational R & M Services,Operational Services,Infrastructure and Planning,21108,R&M - Solid Fuel - Planned,Sibleys Fuel & Marine Services,Sibleys Fuel and Marine Services for March,2517991 ,"1,365.16", 04/04/2019,"1,365.16","1,627.87"
51,600010,Operational R & M Services,Operational Services,Infrastructure and Planning,31102,Vehicle Repair and Maintenance,Sibleys Fuel & Marine Services,Sibleys Fuel and Marine Services February,2519371 ,"2,706.46", 04/04/2019,"1,239.60","3,061.84"
51,600010,Operational R & M Services,Operational Services,Infrastructure and Planning,31102,Vehicle Repair and Maintenance,Sibleys Fuel & Marine Services,Sibleys Fuel and Marine Services February,2519371 ,"2,706.46", 04/04/2019,"1,466.86","3,061.84"
51,600010,Operational R & M Services,Operational Services,Infrastructure and Planning,31102,Vehicle Repair and Maintenance,Sibleys Fuel & Marine Services,Sibleys Fuel and Marine Services February,2519371 ,"2,706.46", 04/04/2019,"-1,466.86","3,061.84"
51,600010,Operational R & M Services,Operational Services,Infrastructure and Planning,31102,Vehicle Repair and Maintenance,Sibleys Fuel & Marine Services,Sibleys Fuel and Marine Services February,2519371 ,"2,706.46", 04/04/2019,"-1,239.60","3,061.84"
51,600010,Operational R & M Services,Operational Services,Infrastructure and Planning,31102,Vehicle Repair and Maintenance,Sibleys Fuel & Marine Services,Sibleys Fuel and Marine Services February,2519371 ,"2,706.46", 04/04/2019,"1,239.60","3,061.84"
51,600010,Operational R & M Services,Operational Services,Infrastructure and Planning,31102,Vehicle Repair and Maintenance,Sibleys Fuel & Marine Services,Sibleys Fuel and Marine Services February,2519371 ,"2,706.46", 04/04/2019,"1,466.86","3,061.84"
51,600010,Operational R & M Services,Operational Services,Infrastructure and Planning,31102,Vehicle Repair and Maintenance,Sibleys Fuel & Marine Services,Sibleys Fuel and Marine Services February,2519371 ,"2,706.46", 04/04/2019,"-2,706.46","3,061.84"
51,600010,Operational R & M Services,Operational Services,Infrastructure and Planning,31102,Vehicle Repair and Maintenance,Sibleys Fuel & Marine Services,Sibleys Fuel and Marine Services February,2519371 ,"2,706.46", 04/04/2019,"2,706.46","3,061.84"
51,600010,Operational R & M Services,Operational Services,Infrastructure and Planning,41308,Construction Materials,Five Islands Trading Company,Materials for Operational Services from April 18 - March 19 Inc,2516041 ,654.90, 11/04/2019,654.90,785.88
51,600010,Operational R & M Services,Operational Services,Infrastructure and Planning,31102,Vehicle Repair and Maintenance,RBS Commercial Card Division,07-03-2019|7369|CRAIG DRYDEN|DVLA VEHICLE TAX|SA6 7JL|9399||,2527247 ,"12,964.48", 12/04/2019,223.50,"13,582.29"
51,600010,Operational R & M Services,Operational Services,Infrastructure and Planning,31105,Vehicle Parts,RBS Commercial Card Division,14-03-2019|7393|JULIAN WRIGHT|HAWKINS MOTORS LTD|PL26 7LB|5521|DOOR STRUT/VEHICLE PART|,2527247 ,"12,964.48", 12/04/2019,18.10,"13,582.29"
51,600010,Operational R & M Services,Operational Services,Infrastructure and Planning,31203,Vehicle Excise (VED),RBS Commercial Card Division,14-03-2019|7393|JULIAN WRIGHT|POST OFFICE COUNTER|TR21 0LR|9402|ROAD TAX FOR NEW VEHICLE|,2527247 ,"12,964.48", 12/04/2019,252.50,"13,582.29"
51,600010,Operational R & M Services,Operational Services,Infrastructure and Planning,31105,Vehicle Parts,Kellands (Plant Sales) Ltd,"Kellands order for parts for 360 excavator 2 off seal kit, part number HAK084HT@ 239.20 each
1 off Ram, part number HC084HT @ 1227.64
Carriage will 120.00",2531987 ,"1,826.04", 23/04/2019,"1,826.04","2,191.25"
51,600010,Operational R & M Services,Operational Services,Infrastructure and Planning,31102,Vehicle Repair and Maintenance,Sibleys Fuel & Marine Services,Sibleys Fuel and Marine Services April,2548059 ,"7,136.20", 14/05/2019,"5,749.83","7,700.95"
51,600010,Operational R & M Services,Operational Services,Infrastructure and Planning,31102,Vehicle Repair and Maintenance,Sibleys Fuel & Marine Services,Sibleys Fuel and Marine Services April,2548059 ,"7,136.20", 14/05/2019,"1,386.37","7,700.95"
51,600010,Operational R & M Services,Operational Services,Infrastructure and Planning,31102,Vehicle Repair and Maintenance,Sibleys Fuel & Marine Services,Sibleys Fuel and Marine Services April,2548059 ,"7,136.20", 14/05/2019,"-7,136.20","7,700.95"
51,600010,Operational R & M Services,Operational Services,Infrastructure and Planning,31102,Vehicle Repair and Maintenance,Sibleys Fuel & Marine Services,Sibleys Fuel and Marine Services April,2548059 ,"7,136.20", 14/05/2019,"7,136.20","7,700.95"
51,600010,Operational R & M Services,Operational Services,Infrastructure and Planning,31102,Vehicle Repair and Maintenance,Steve Oates t/a Doerwheal,Steve Oates Vehicle Maintenance May,2551975 ,780.00, 16/05/2019,780.00,936.00
51,600010,Operational R & M Services,Operational Services,Infrastructure and Planning,31102,Vehicle Repair and Maintenance,RBS Commercial Card Division,08-04-2019|7369|CRAIG DRYDEN|DVLA VEHICLE TAX|SA6 7JL|9399||,2562926 ,"8,470.46", 30/05/2019,262.50,"8,939.84"
51,600010,Operational R & M Services,Operational Services,Infrastructure and Planning,31102,Vehicle Repair and Maintenance,RBS Commercial Card Division,08-04-2019|7369|CRAIG DRYDEN|DVLA VEHICLE TAX|SA6 7JL|9399||,2562926 ,"8,470.46", 30/05/2019,32.50,"8,939.84"
51,600010,Operational R & M Services,Operational Services,Infrastructure and Planning,31102,Vehicle Repair and Maintenance,Sibleys Fuel & Marine Services,Sibleys Fuel and Marine Services May,2572947 ,"4,963.06", 11/06/2019,"3,404.09","5,445.05"
51,600010,Operational R & M Services,Operational Services,Infrastructure and Planning,31102,Vehicle Repair and Maintenance,Sibleys Fuel & Marine Services,Sibleys Fuel and Marine Services May,2572947 ,"4,963.06", 11/06/2019,"1,558.97","5,445.05"
51,600010,Operational R & M Services,Operational Services,Infrastructure and Planning,49002,Miscellaneous Expenditure,James Lockyer Associates Ltd,"Act as principal designer to tender stage, provide construction drawerings, a schedule of work and pre- construction information package.",2582585 ,"2,500.00", 20/06/2019,"2,500.00","3,000.00"
51,600010,Operational R & M Services,Operational Services,Infrastructure and Planning,41104,Equipment & Plant - Direct Purchase,Interpump Hydraulics UK Ltd,Delivery,2583510 ,"2,497.50", 25/06/2019,135.00,"2,997.00"
51,600010,Operational R & M Services,Operational Services,Infrastructure and Planning,41104,Equipment & Plant - Direct Purchase,Interpump Hydraulics UK Ltd,Hydraulic hose swaging machine,2583510 ,"2,497.50", 25/06/2019,"2,362.50","2,997.00"
51,600010,Operational R & M Services,Operational Services,Infrastructure and Planning,31102,Vehicle Repair and Maintenance,RBS Commercial Card Division,09-05-2019|7369|CRAIG DRYDEN|DVLA VEHICLE TAX|SA6 7JL|9399||,2585377 ,"16,386.79", 28/06/2019,262.50,"17,042.35"
51,600010,Operational R & M Services,Operational Services,Infrastructure and Planning,41103,Equipment - Spares,RBS Commercial Card Division,23-05-2019|7393|JULIAN WRIGHT|FELDER UK LTD|MK8 0JP|5399|SAW BLADES FOR CARPENTERS TABLE SAW|,2585377 ,"16,386.79", 28/06/2019,274.20,"17,042.35"
51,600012,Highways,Operational Services,Infrastructure and Planning,41103,Equipment - Spares,DW Windsor Group Ltd,"Street lighting, 6 x kirium pro 1, 4 x kirium pro mini, 6 x photo cell spares kits carriage",2538314 ,"2,296.40", 07/05/2019,"2,296.40","2,755.68"
51,600012,Highways,Operational Services,Infrastructure and Planning,41109,R&M of Plant & Equipment,Scarab Sweepers Ltd,"Road sweeper parts. Valve block and valves, brush motor, brush disc and brushes",2551547 ,"1,446.02", 16/05/2019,"1,446.02","1,735.22"
51,600012,Highways,Operational Services,Infrastructure and Planning,41302,Materials,Instarmac Group Plc,Pot hole repair tubs overbanding tape spray and RSC rapid,2564203 ,"6,773.88", 20/06/2019,"6,773.88","8,128.66"
51,600012,Highways,Operational Services,Infrastructure and Planning,41302,Materials,Instarmac Group Plc,Pot hole repair tubs overbanding tape spray and RSC rapid,2564205 ,726.00, 20/06/2019,726.00,871.20
51,600012,Highways,Operational Services,Infrastructure and Planning,41308,Construction Materials,Instarmac Group Plc,312 tubs (6 pallets) 6mm instant road repair buckets,2576856 ,"3,023.28", 27/06/2019,"3,023.28","3,627.94"
51,600013,Open Spaces & Beaches,Operational Services,Infrastructure and Planning,21119,R&M - Pest Control Costs (Building Related) - Planned,Scillonian Trading Ltd,Scillonian Trading Annual PO - Park 2019-2020,2573106 ,510.00, 20/06/2019,450.00,510.00
51,600013,Open Spaces & Beaches,Operational Services,Infrastructure and Planning,21119,R&M - Pest Control Costs (Building Related) - Planned,Scillonian Trading Ltd,Scillonian Trading Annual PO - Park 2019-2020,2573106 ,510.00, 20/06/2019,-510.00,510.00
51,600013,Open Spaces & Beaches,Operational Services,Infrastructure and Planning,21119,R&M - Pest Control Costs (Building Related) - Planned,Scillonian Trading Ltd,Scillonian Trading Annual PO - Park 2019-2020,2573106 ,510.00, 20/06/2019,510.00,510.00
51,600021,Development Management,Planning and Development,Infrastructure and Planning,43506,Professional Fees - Legal,Cornwall Council,Legal Advice from Matt Stokes for Planning,2463205 ,"1,209.50", 09/04/2019,86.40,"1,417.00"
51,600021,Development Management,Planning and Development,Infrastructure and Planning,43506,Professional Fees - Legal,Cornwall Council,Legal Advice from Matt Stokes for Planning,2463205 ,"1,209.50", 09/04/2019,12.00,"1,417.00"
51,600021,Development Management,Planning and Development,Infrastructure and Planning,43506,Professional Fees - Legal,Cornwall Council,Legal Advice from Matt Stokes for Planning,2463205 ,"1,209.50", 09/04/2019,86.40,"1,417.00"
51,600021,Development Management,Planning and Development,Infrastructure and Planning,43506,Professional Fees - Legal,Cornwall Council,Legal Advice from Matt Stokes for Planning,2463205 ,"1,209.50", 09/04/2019,12.00,"1,417.00"
51,600021,Development Management,Planning and Development,Infrastructure and Planning,43506,Professional Fees - Legal,Cornwall Council,Legal Advice from Matt Stokes for Planning,2463205 ,"1,209.50", 09/04/2019,-98.40,"1,417.00"
51,600021,Development Management,Planning and Development,Infrastructure and Planning,43506,Professional Fees - Legal,Cornwall Council,Legal Advice from Matt Stokes for Planning,2463205 ,"1,209.50", 09/04/2019,98.40,"1,417.00"
51,600021,Development Management,Planning and Development,Infrastructure and Planning,43506,Professional Fees - Legal,Cornwall Council,Legal Advice from Matt Stokes for Planning,2463205 ,"1,209.50", 09/04/2019,-12.00,"1,417.00"
51,600021,Development Management,Planning and Development,Infrastructure and Planning,43506,Professional Fees - Legal,Cornwall Council,Legal Advice from Matt Stokes for Planning,2463205 ,"1,209.50", 09/04/2019,-86.40,"1,417.00"
51,600021,Development Management,Planning and Development,Infrastructure and Planning,43506,Professional Fees - Legal,Cornwall Council,Legal Advice from Matt Stokes for Planning,2460412 ,"1,008.00", 09/04/2019,211.20,"1,209.60"
51,600021,Development Management,Planning and Development,Infrastructure and Planning,43506,Professional Fees - Legal,Cornwall Council,Legal Advice from Matt Stokes for Planning,2460412 ,"1,008.00", 09/04/2019,211.20,"1,209.60"
51,600021,Development Management,Planning and Development,Infrastructure and Planning,43506,Professional Fees - Legal,Cornwall Council,Legal Advice from Matt Stokes for Planning,2460412 ,"1,008.00", 09/04/2019,-211.20,"1,209.60"
51,600021,Development Management,Planning and Development,Infrastructure and Planning,43506,Professional Fees - Legal,Cornwall Council,Legal Advice from Matt Stokes for Planning,2460424 ,"2,476.80", 09/04/2019,163.20,"2,972.16"
51,600021,Development Management,Planning and Development,Infrastructure and Planning,43506,Professional Fees - Legal,Cornwall Council,Legal Advice from Matt Stokes for Planning,2460424 ,"2,476.80", 09/04/2019,-163.20,"2,972.16"
51,600021,Development Management,Planning and Development,Infrastructure and Planning,43506,Professional Fees - Legal,Cornwall Council,Legal Advice from Matt Stokes for Planning,2460424 ,"2,476.80", 09/04/2019,163.20,"2,972.16"
51,600021,Development Management,Planning and Development,Infrastructure and Planning,43506,Professional Fees - Legal,Cornwall Council,Section 106 Planning Obligation for 2 Harbour View Mansions,2509141 ,"2,731.50", 09/04/2019,86.40,"3,240.44"
51,600021,Development Management,Planning and Development,Infrastructure and Planning,43506,Professional Fees - Legal,Cornwall Council,Legal Advice For the Planning Department with regards to P/18/081,2509141 ,"2,731.50", 09/04/2019,278.40,"3,240.44"
51,600021,Development Management,Planning and Development,Infrastructure and Planning,45214,Admin Computer Stationery/Cons,Idox Software Ltd,"Uniform Hosting 6 month renewal
(Ref: 3590331ISL003010419)",2518108 ,"3,189.91", 11/04/2019,"3,189.91","3,827.89"
51,600021,Development Management,Planning and Development,Infrastructure and Planning,43532,Professional Fees - Other,Exmoor National Park Authority,Exmoor Agreement with CIOS for Planning works,2559517 ,"1,080.00", 30/05/2019,"1,080.00","1,296.00"
51,600022,Strategic Planning,Planning and Development,Infrastructure and Planning,31601,Rail,RBS Commercial Card Division,25-03-2019|7369|CRAIG DRYDEN|WWW.GWR.COM|SN1 1HL|4112||,2527247 ,"12,964.48", 12/04/2019,279.67,"13,582.29"
51,600022,Strategic Planning,Planning and Development,Infrastructure and Planning,31602,Air Travel,RBS Commercial Card Division,25-03-2019|6459|TRAVEL TEAM|ISLES OF SCILLY SS CO|TR21 0LJ|4411|FLIGHT 254846|IOS_NSTINSON,2527247 ,"12,964.48", 12/04/2019,213.76,"13,582.29"
51,600022,Strategic Planning,Planning and Development,Infrastructure and Planning,46103,Hotel Expenses,RBS Commercial Card Division,25-03-2019|7369|CRAIG DRYDEN|HOTEL ON BOOKING.COM|1017 SG|7011||,2527247 ,"12,964.48", 12/04/2019,180.00,"13,582.29"
51,600022,Strategic Planning,Planning and Development,Infrastructure and Planning,43532,Professional Fees - Other,Understanding Data Ltd,Housing Evidence Base work  for Robin Miller,2538227 ,"1,350.00", 02/05/2019,"1,350.00","1,350.00"
51,600022,Strategic Planning,Planning and Development,Infrastructure and Planning,43532,Professional Fees - Other,Understanding Data Ltd,Robin Miller for work to address defence of principle residence restrictions in local plan,2552427 ,500.00, 16/05/2019,500.00,500.00
51,600022,Strategic Planning,Planning and Development,Infrastructure and Planning,31603,Other Public Transport,RBS Commercial Card Division,29-03-2019|7369|CRAIG DRYDEN|WWW.GWR.COM|SN1 1HL|4112||,2562926 ,"8,470.46", 30/05/2019,163.83,"8,939.84"
51,600022,Strategic Planning,Planning and Development,Infrastructure and Planning,46103,Hotel Expenses,RBS Commercial Card Division,29-03-2019|7369|CRAIG DRYDEN|TRAVELODGE|OX9 3AT|3615||,2562926 ,"8,470.46", 30/05/2019,185.83,"8,939.84"
51,600022,Strategic Planning,Planning and Development,Infrastructure and Planning,11601,Agency Costs,RBS Commercial Card Division,08-05-2019|7369|CRAIG DRYDEN|IHBC.ORG.UK|SP3 6HA|8699||,2585377 ,"16,386.79", 28/06/2019,103.33,"17,042.35"
51,600030,Fire & Rescue,Fire and Rescue,Infrastructure and Planning,43501,External Testing & Analysis,Scott Health And Safety Ltd,Callibration of posi check Sabre test,2515751 ,460.00, 04/04/2019,460.00,552.00
51,600030,Fire & Rescue,Fire and Rescue,Infrastructure and Planning,31601,Rail,RBS Commercial Card Division,15-03-2019|7369|CRAIG DRYDEN|WWW.GWR.COM|SN1 1HL|4112||,2527247 ,"12,964.48", 12/04/2019,47.08,"13,582.29"
51,600030,Fire & Rescue,Fire and Rescue,Infrastructure and Planning,31601,Rail,RBS Commercial Card Division,15-03-2019|7369|CRAIG DRYDEN|WWW.GWR.COM|SN1 1HL|4112||,2527247 ,"12,964.48", 12/04/2019,47.08,"13,582.29"
51,600030,Fire & Rescue,Fire and Rescue,Infrastructure and Planning,31602,Air Travel,RBS Commercial Card Division,27-03-2019|6459|TRAVEL TEAM|ISLES OF SCILLY SS CO|TR21 0LJ|4411|FLIGHT 255344|IOS_NSTINSON,2527247 ,"12,964.48", 12/04/2019,152.00,"13,582.29"
51,600030,Fire & Rescue,Fire and Rescue,Infrastructure and Planning,31602,Air Travel,RBS Commercial Card Division,14-03-2019|6459|TRAVEL TEAM|WWW.ISLEOFSCILLY-TRAVE|TR21 0LJ|4411|FLIGHT 252968|IOS_NSTINSON,2527247 ,"12,964.48", 12/04/2019,178.00,"13,582.29"
51,600030,Fire & Rescue,Fire and Rescue,Infrastructure and Planning,31602,Air Travel,RBS Commercial Card Division,14-03-2019|6459|TRAVEL TEAM|WWW.ISLEOFSCILLY-TRAVE|TR21 0LJ|4411|FLIGHT 2521968|IOS_NSTINSON,2527247 ,"12,964.48", 12/04/2019,230.00,"13,582.29"
51,600030,Fire & Rescue,Fire and Rescue,Infrastructure and Planning,31602,Air Travel,RBS Commercial Card Division,25-03-2019|6459|TRAVEL TEAM|WWW.ISLEOFSCILLY-TRAVE|TR21 0LJ|4411|FLIGHT 254481|IOS_NSTINSON,2527247 ,"12,964.48", 12/04/2019,250.00,"13,582.29"
51,600030,Fire & Rescue,Fire and Rescue,Infrastructure and Planning,46103,Hotel Expenses,RBS Commercial Card Division,14-03-2019|2872|RUSSELL SCHILD|PREMIER INN|TR14 0RT|3811|LAFRS CAMBORNE VISIT - K. JAMES & S. MOUNTFORD|,2527247 ,"12,964.48", 12/04/2019,82.50,"13,582.29"
51,600030,Fire & Rescue,Fire and Rescue,Infrastructure and Planning,46103,Hotel Expenses,RBS Commercial Card Division,21-03-2019|7369|CRAIG DRYDEN|THE LONG BOAT INN|TR18 2HZ|7011||,2527247 ,"12,964.48", 12/04/2019,212.50,"13,582.29"
51,600030,Fire & Rescue,Fire and Rescue,Infrastructure and Planning,43532,Professional Fees - Other,Cornwall Council,Cornwall Council SLA with IOS Fire Service,2507874 ,"7,923.00", 16/04/2019,"7,923.00","7,923.00"
51,600030,Fire & Rescue,Fire and Rescue,Infrastructure and Planning,31102,Vehicle Repair and Maintenance,Steve Oates t/a Doerwheal,Steve Oates Fire and Rescue May,2547206 ,960.00, 09/05/2019,960.00,"1,152.00"
51,600030,Fire & Rescue,Fire and Rescue,Infrastructure and Planning,42503,Uniforms / Clothing,Total Workwear,"1.4.2018 - 31.3.2019
TOTAL WORKWEAR
Fire Service Uniforms",2528247 ,739.59, 09/05/2019,614.10,764.69
51,600030,Fire & Rescue,Fire and Rescue,Infrastructure and Planning,42503,Uniforms / Clothing,Total Workwear,"1.4.2018 - 31.3.2019
TOTAL WORKWEAR
Fire Service Uniforms",2528247 ,739.59, 09/05/2019,125.49,764.69
51,600030,Fire & Rescue,Fire and Rescue,Infrastructure and Planning,42503,Uniforms / Clothing,Total Workwear,"1.4.2018 - 31.3.2019
TOTAL WORKWEAR
Fire Service Uniforms",2528247 ,739.59, 09/05/2019,-125.46,764.69
51,600030,Fire & Rescue,Fire and Rescue,Infrastructure and Planning,42503,Uniforms / Clothing,Total Workwear,"1.4.2018 - 31.3.2019
TOTAL WORKWEAR
Fire Service Uniforms",2528247 ,739.59, 09/05/2019,-614.23,764.69
51,600030,Fire & Rescue,Fire and Rescue,Infrastructure and Planning,42503,Uniforms / Clothing,Total Workwear,"1.4.2018 - 31.3.2019
TOTAL WORKWEAR
Fire Service Uniforms",2528247 ,739.59, 09/05/2019,614.23,764.69
51,600030,Fire & Rescue,Fire and Rescue,Infrastructure and Planning,42503,Uniforms / Clothing,Total Workwear,"1.4.2018 - 31.3.2019
TOTAL WORKWEAR
Fire Service Uniforms",2528247 ,739.59, 09/05/2019,-639.23,764.69
51,600030,Fire & Rescue,Fire and Rescue,Infrastructure and Planning,42503,Uniforms / Clothing,Total Workwear,"1.4.2018 - 31.3.2019
TOTAL WORKWEAR
Fire Service Uniforms",2528247 ,739.59, 09/05/2019,639.23,764.69
51,600030,Fire & Rescue,Fire and Rescue,Infrastructure and Planning,42503,Uniforms / Clothing,Total Workwear,"1.4.2018 - 31.3.2019
TOTAL WORKWEAR
Fire Service Uniforms",2528247 ,739.59, 09/05/2019,125.46,764.69
51,600030,Fire & Rescue,Fire and Rescue,Infrastructure and Planning,42503,Uniforms / Clothing,Total Workwear,"1.4.2018 - 31.3.2019
TOTAL WORKWEAR
Fire Service Uniforms",2528247 ,739.59, 09/05/2019,-739.59,764.69
51,600030,Fire & Rescue,Fire and Rescue,Infrastructure and Planning,42503,Uniforms / Clothing,Total Workwear,"1.4.2018 - 31.3.2019
TOTAL WORKWEAR
Fire Service Uniforms",2528247 ,739.59, 09/05/2019,739.59,764.69
51,600030,Fire & Rescue,Fire and Rescue,Infrastructure and Planning,31602,Air Travel,RBS Commercial Card Division,23-04-2019|6459|TRAVEL TEAM|ISLES OF SCILLY SS CO|TR21 0LJ|4411|FLIGHT 259991|,2562926 ,"8,470.46", 30/05/2019,169.10,"8,939.84"
51,600030,Fire & Rescue,Fire and Rescue,Infrastructure and Planning,42001,Catering - Provisions,RBS Commercial Card Division,16-04-2019|7369|CRAIG DRYDEN|THE SEVEN STONES INN|TR25 0QW|5813||,2562926 ,"8,470.46", 30/05/2019,25.00,"8,939.84"
51,600030,Fire & Rescue,Fire and Rescue,Infrastructure and Planning,42001,Catering - Provisions,RBS Commercial Card Division,16-04-2019|7369|CRAIG DRYDEN|THE SEVEN STONES INN|TR25 0QW|5813||,2562926 ,"8,470.46", 30/05/2019,12.92,"8,939.84"
51,600030,Fire & Rescue,Fire and Rescue,Infrastructure and Planning,43532,Professional Fees - Other,Hymans Robertson LLP,Proving IAS19 Reports for F/R,2560327 ,"10,150.00", 13/06/2019,"10,150.00","12,180.00"
51,600030,Fire & Rescue,Fire and Rescue,Infrastructure and Planning,31602,Air Travel,RBS Commercial Card Division,17-05-2019|6459|TRAVEL TEAM|ISLES OF SCILLY SS CO|TR21 0LJ|4411|FLIGHT 262490|IOS_NSTINSON,2585377 ,"16,386.79", 28/06/2019,169.10,"17,042.35"
51,600030,Fire & Rescue,Fire and Rescue,Infrastructure and Planning,31602,Air Travel,RBS Commercial Card Division,22-05-2019|6459|TRAVEL TEAM|ISLES OF SCILLY SS CO|TR21 0LJ|4411|FLIGHT 264555|IOS_NSTINSON,2585377 ,"16,386.79", 28/06/2019,169.10,"17,042.35"
51,600030,Fire & Rescue,Fire and Rescue,Infrastructure and Planning,31602,Air Travel,RBS Commercial Card Division,07-05-2019|6459|TRAVEL TEAM|ISLES OF SCILLY SS CO|TR21 0LJ|4411|FLIGHT 262488|IOS_NSTINSON,2585377 ,"16,386.79", 28/06/2019,437.00,"17,042.35"
51,600030,Fire & Rescue,Fire and Rescue,Infrastructure and Planning,31602,Air Travel,RBS Commercial Card Division,23-05-2019|6459|TRAVEL TEAM|ISLES OF SCILLY SS CO|TR21 0LJ|4411|FLIGHT 265366|IOS_NSTINSON,2585377 ,"16,386.79", 28/06/2019,169.10,"17,042.35"
51,600031,Emergency Planning,Fire and Rescue,Infrastructure and Planning,31601,Rail,RBS Commercial Card Division,12-03-2019|7369|CRAIG DRYDEN|WWW.GWR.COM|SN1 1HL|4112||,2527247 ,"12,964.48", 12/04/2019,104.17,"13,582.29"
51,600031,Emergency Planning,Fire and Rescue,Infrastructure and Planning,31601,Rail,RBS Commercial Card Division,12-03-2019|7369|CRAIG DRYDEN|WWW.GWR.COM|SN1 1HL|4112||,2527247 ,"12,964.48", 12/04/2019,104.17,"13,582.29"
51,600031,Emergency Planning,Fire and Rescue,Infrastructure and Planning,31602,Air Travel,RBS Commercial Card Division,11-03-2019|6459|TRAVEL TEAM|ISLES OF SCILLY SS CO|TR21 0LJ|4411|FLIGHT 252288|IOS_NSTINSON,2527247 ,"12,964.48", 12/04/2019,181.10,"13,582.29"
51,600031,Emergency Planning,Fire and Rescue,Infrastructure and Planning,46103,Hotel Expenses,RBS Commercial Card Division,19-03-2019|7369|CRAIG DRYDEN|SERCO EPC|YO61 3EG|8220||,2527247 ,"12,964.48", 12/04/2019,82.50,"13,582.29"
51,600031,Emergency Planning,Fire and Rescue,Infrastructure and Planning,43532,Professional Fees - Other,Cornwall Council,Attendance of Arthur Roberts of Resilience and Emergency Management team on 18th & 19 Feb 2019,2513436 ,"1,139.60", 16/04/2019,"1,139.60","1,139.60"
51,600040,Waste Collection and Operations,Waste and Recycling,Infrastructure and Planning,31102,Vehicle Repair and Maintenance,Steve Oates t/a Doerwheal,Steve Oates Waste/Recycling April,2502822 ,502.72, 04/04/2019,502.72,603.27
51,600040,Waste Collection and Operations,Waste and Recycling,Infrastructure and Planning,31102,Vehicle Repair and Maintenance,Steve Oates t/a Doerwheal,Steve Oates Waste/Recycling April,2502819 ,440.00, 04/04/2019,440.00,528.00
51,600040,Waste Collection and Operations,Waste and Recycling,Infrastructure and Planning,41305,Purchase of Waste Sacks,Smartlift Bulk Packing,Purchase of Off Island (500) and Bags for processed glass(150),2515930 ,"2,043.50", 04/04/2019,"2,043.50","2,452.20"
51,600040,Waste Collection and Operations,Waste and Recycling,Infrastructure and Planning,46119,Haulage Costs,Mr R F Legg,Mr R F Legg Waste Disposal St Agnes April,2518167 ,750.00, 04/04/2019,750.00,900.00
51,600040,Waste Collection and Operations,Waste and Recycling,Infrastructure and Planning,41104,Equipment & Plant - Direct Purchase,Allins Ltd,Purchase of 12 compactor skip doors from ALLINS  total 2833 including delivery,2519347 ,"2,833.00", 09/04/2019,"2,833.00","3,399.60"
51,600040,Waste Collection and Operations,Waste and Recycling,Infrastructure and Planning,46118,Freight Costs,Isles Of Scilly Travel,Isles of Scilly Travel freight costs waste site January 2019,2517279 ,"7,604.00", 09/04/2019,"-7,604.00","9,124.80"
51,600040,Waste Collection and Operations,Waste and Recycling,Infrastructure and Planning,46118,Freight Costs,Isles Of Scilly Travel,Isles of Scilly Travel freight costs waste site January 2019,2517279 ,"7,604.00", 09/04/2019,"7,604.00","9,124.80"
51,600040,Waste Collection and Operations,Waste and Recycling,Infrastructure and Planning,46119,Haulage Costs,Isles Of Scilly Travel,Isles of Scilly Travel freight costs waste site January 2019,2517279 ,"7,604.00", 09/04/2019,"7,604.00","9,124.80"
51,600040,Waste Collection and Operations,Waste and Recycling,Infrastructure and Planning,46119,Haulage Costs,Island Carriers,Island Carriers - Waste & Recycling: March 2019,2526623 ,"3,995.46", 11/04/2019,"3,995.46","4,794.56"
51,600040,Waste Collection and Operations,Waste and Recycling,Infrastructure and Planning,46119,Haulage Costs,Suez Recycling and Recovery UK Ltd (was Sita UK Ltd),Suez- Waste & Recycling: March 2019,2506469 ,"13,448.70", 11/04/2019,"13,448.70","16,138.44"
51,600040,Waste Collection and Operations,Waste and Recycling,Infrastructure and Planning,57069,Waste Disposal Contracts - Private Contractors,Tresco Estate,Waste Processing Charges for March 2019,2527204 ,"1,597.22", 16/04/2019,"1,597.22","1,916.66"
51,600040,Waste Collection and Operations,Waste and Recycling,Infrastructure and Planning,41103,Equipment - Spares,Blue Machinery (Spares) Ltd,Pump drive belt for Doppstadt shredder,2530455 ,427.22, 18/04/2019,427.22,512.66
51,600040,Waste Collection and Operations,Waste and Recycling,Infrastructure and Planning,31102,Vehicle Repair and Maintenance,Steve Oates t/a Doerwheal,Steve Oates Waste Vehicles April 15th and 20th,2535478 ,"1,561.01", 30/04/2019,"1,561.01","1,873.21"
51,600040,Waste Collection and Operations,Waste and Recycling,Infrastructure and Planning,43534,Licences,Weightron Bilanciai Ltd,Service contract for Weighbridge system 2019/20,2537880 ,"5,032.94", 02/05/2019,"5,032.94","6,039.53"
51,600040,Waste Collection and Operations,Waste and Recycling,Infrastructure and Planning,41103,Equipment - Spares,Technical Engineering Services UK Ltd,Purchase of 3/4/6mm dura screens for the glass machine. including del from Technical Eng Services,2535656 ,"1,435.00", 07/05/2019,"1,435.00","1,722.00"
51,600040,Waste Collection and Operations,Waste and Recycling,Infrastructure and Planning,41103,Equipment - Spares,Technical Engineering Services UK Ltd,Purchase of Glass machine parts pre breaker bar and sanding bar,2535652 ,"2,730.00", 07/05/2019,"2,730.00","3,276.00"
51,600040,Waste Collection and Operations,Waste and Recycling,Infrastructure and Planning,46118,Freight Costs,Isles Of Scilly Travel,Isles of Scilly Travel freight costs waste site January 2019,2540012 ,"14,447.60", 09/05/2019,"14,447.60","17,337.12"
51,600040,Waste Collection and Operations,Waste and Recycling,Infrastructure and Planning,46118,Freight Costs,Isles Of Scilly Travel,Isles of Scilly Travel freight costs waste site January 2019,2540012 ,"14,447.60", 09/05/2019,"-14,447.60","17,337.12"
51,600040,Waste Collection and Operations,Waste and Recycling,Infrastructure and Planning,46118,Freight Costs,Isles Of Scilly Travel,Isles of Scilly Travel freight costs waste site January 2019,2540013 ,"8,364.40", 09/05/2019,"8,364.40","10,037.28"
51,600040,Waste Collection and Operations,Waste and Recycling,Infrastructure and Planning,46118,Freight Costs,Isles Of Scilly Travel,Isles of Scilly Travel freight costs waste site January 2019,2540013 ,"8,364.40", 09/05/2019,"-8,364.40","10,037.28"
51,600040,Waste Collection and Operations,Waste and Recycling,Infrastructure and Planning,46119,Haulage Costs,Isles Of Scilly Travel,"Isles of Scilly Travel Inv 117915, 117909 and 119477",2540012 ,"14,447.60", 09/05/2019,"14,447.60","17,337.12"
51,600040,Waste Collection and Operations,Waste and Recycling,Infrastructure and Planning,46119,Haulage Costs,Isles Of Scilly Travel,"Isles of Scilly Travel Inv 117915, 117909 and 119477",2540013 ,"8,364.40", 09/05/2019,"8,364.40","10,037.28"
51,600040,Waste Collection and Operations,Waste and Recycling,Infrastructure and Planning,46119,Haulage Costs,Isles Of Scilly Travel,"Isles of Scilly Travel Inv 117915, 117909 and 119477",2540028 ,"4,053.91", 09/05/2019,"4,053.91","4,864.71"
51,600040,Waste Collection and Operations,Waste and Recycling,Infrastructure and Planning,46119,Haulage Costs,Mr R F Legg,R F Legg Waste Disposal St Agnes May,2548354 ,750.00, 14/05/2019,750.00,900.00
51,600040,Waste Collection and Operations,Waste and Recycling,Infrastructure and Planning,57069,Waste Disposal Contracts - Private Contractors,Bryher Forge,Waste Contract for 2019/20- Bryher,2549010 ,900.00, 14/05/2019,900.00,900.00
51,600040,Waste Collection and Operations,Waste and Recycling,Infrastructure and Planning,22501,Rent,Duchy Of Cornwall,Moorwell Depot �A 25th March  23rd June 2019,2551731 ,"1,687.50", 16/05/2019,"1,687.50","1,687.50"
51,600040,Waste Collection and Operations,Waste and Recycling,Infrastructure and Planning,43549,Research & Development,Cornwall Council,Bloom - Gasification Feasibility Study WYG March 2019,2539215 ,"21,333.33", 16/05/2019,"21,333.33","25,600.00"
51,600040,Waste Collection and Operations,Waste and Recycling,Infrastructure and Planning,31102,Vehicle Repair and Maintenance,Steve Oates t/a Doerwheal,Steve Oates Waste and Recycling Works May,2553298 ,"1,480.00", 21/05/2019,"1,480.00","1,776.00"
51,600040,Waste Collection and Operations,Waste and Recycling,Infrastructure and Planning,31102,Vehicle Repair and Maintenance,Steve Oates t/a Doerwheal,Steve Oates Waste and Recycling Works May,2553300 ,560.00, 21/05/2019,560.00,672.00
51,600040,Waste Collection and Operations,Waste and Recycling,Infrastructure and Planning,46119,Haulage Costs,Isles Of Scilly Steamship Co,Isles of Scilly Steamship Waste April,2553188 ,"10,490.38", 21/05/2019,"10,490.38","12,588.45"
51,600040,Waste Collection and Operations,Waste and Recycling,Infrastructure and Planning,12301,Training,Leppitt Associates,Wamitab registration and training for Mark Fairest with Glyn Leppitt Assoc for HWRC certification reassessment,2557706 ,820.00, 23/05/2019,820.00,984.00
51,600040,Waste Collection and Operations,Waste and Recycling,Infrastructure and Planning,12301,Training,Leppitt Associates,Wamitab registration and training for Mark Fairest with Glyn Leppitt Assoc for HWRC certification reassessment,2557706 ,820.00, 23/05/2019,-820.00,984.00
51,600040,Waste Collection and Operations,Waste and Recycling,Infrastructure and Planning,12301,Training,Leppitt Associates,Wamitab registration and training for Mark Fairest with Glyn Leppitt Assoc for HWRC certification reassessment,2557706 ,820.00, 23/05/2019,820.00,984.00
51,600040,Waste Collection and Operations,Waste and Recycling,Infrastructure and Planning,41103,Equipment - Spares,Blue Machinery (Spares) Ltd,Drive belt and clamp for Doppstadt,2558016 ,454.61, 28/05/2019,454.61,545.53
51,600040,Waste Collection and Operations,Waste and Recycling,Infrastructure and Planning,46119,Haulage Costs,Suez Recycling and Recovery UK Ltd (was Sita UK Ltd),Suez Waste Contract April,2548310 ,"2,683.00", 30/05/2019,"2,683.00","3,219.60"
51,600040,Waste Collection and Operations,Waste and Recycling,Infrastructure and Planning,46119,Haulage Costs,Suez Recycling and Recovery UK Ltd (was Sita UK Ltd),Suez Waste Contract April,2548312 ,"14,505.20", 30/05/2019,"14,505.20","17,406.24"
51,600040,Waste Collection and Operations,Waste and Recycling,Infrastructure and Planning,57069,Waste Disposal Contracts - Private Contractors,Bryher Forge,Waste Contract for 2019/20- Bryher,2562825 ,900.00, 30/05/2019,900.00,900.00
51,600040,Waste Collection and Operations,Waste and Recycling,Infrastructure and Planning,27003,Refuse Collection,Polystar Plastics Ltd,"Commercial Recycling Sacks: Qty 10000
Commercial Waste Sacks: Qty 15000",2572937 ,"1,183.20", 06/06/2019,"1,183.20","1,419.84"
51,600040,Waste Collection and Operations,Waste and Recycling,Infrastructure and Planning,27003,Refuse Collection,Polystar Plastics Ltd,"Commercial Recycling Sacks: Qty 10000
Commercial Waste Sacks: Qty 15000",2572942 ,"1,188.00", 06/06/2019,"1,188.00","1,425.60"
51,600040,Waste Collection and Operations,Waste and Recycling,Infrastructure and Planning,27006,Skip Costs,Wheal Alfred Metals Recycling Ltd,Wheal Alfred Skip Rental April,2571914 ,800.00, 06/06/2019,800.00,960.00
51,600040,Waste Collection and Operations,Waste and Recycling,Infrastructure and Planning,46119,Haulage Costs,Mr R F Legg,Mr R F Legg - Waste Disposal St Agnes,2573881 ,750.00, 11/06/2019,750.00,900.00
51,600040,Waste Collection and Operations,Waste and Recycling,Infrastructure and Planning,49002,Miscellaneous Expenditure,AF & C L Watts,Green waste going to Andy Watts for composting,2571220 ,"4,390.00", 11/06/2019,"4,390.00","4,390.00"
51,600040,Waste Collection and Operations,Waste and Recycling,Infrastructure and Planning,49002,Miscellaneous Expenditure,AF & C L Watts,Green waste going to Andy Watts for composting,2571220 ,"4,390.00", 11/06/2019,"-4,390.00","4,390.00"
51,600040,Waste Collection and Operations,Waste and Recycling,Infrastructure and Planning,57069,Waste Disposal Contracts - Private Contractors,AF & C L Watts,Disposal of green waste to Andy Watts for composting,2571220 ,"4,390.00", 11/06/2019,"4,390.00","4,390.00"
51,600040,Waste Collection and Operations,Waste and Recycling,Infrastructure and Planning,41103,Equipment - Spares,Pernic Forge,Remove identify and replace hydraulic hoses on twin pack dustcart,2578648 ,868.58, 13/06/2019,868.58,"1,042.30"
51,600040,Waste Collection and Operations,Waste and Recycling,Infrastructure and Planning,46119,Haulage Costs,Island Carriers,Island carriers Waste and Recycling May,2577670 ,"4,838.29", 13/06/2019,"4,838.29","5,805.95"
51,600040,Waste Collection and Operations,Waste and Recycling,Infrastructure and Planning,57069,Waste Disposal Contracts - Private Contractors,Tresco Estate,Tresco Waste Contract,2547323 ,"1,597.22", 13/06/2019,"-1,597.22","1,916.66"
51,600040,Waste Collection and Operations,Waste and Recycling,Infrastructure and Planning,57069,Waste Disposal Contracts - Private Contractors,Tresco Estate,Tresco Waste Contract,2547323 ,"1,597.22", 13/06/2019,"1,597.22","1,916.66"
51,600040,Waste Collection and Operations,Waste and Recycling,Infrastructure and Planning,57069,Waste Disposal Contracts - Private Contractors,Tresco Estate,Tresco Waste Contract,2547323 ,"1,597.22", 13/06/2019,"1,597.22","1,916.66"
51,600040,Waste Collection and Operations,Waste and Recycling,Infrastructure and Planning,31102,Vehicle Repair and Maintenance,Steve Oates t/a Doerwheal,Steve Oates Waste - needle gun work and painting,2579070 ,"1,220.00", 18/06/2019,"1,220.00","1,464.00"
51,600040,Waste Collection and Operations,Waste and Recycling,Infrastructure and Planning,46118,Freight Costs,Isles Of Scilly Travel,Isles of Scilly Travel freight costs waste site January 2019,2578800 ,"12,166.40", 18/06/2019,"-12,166.40","14,599.68"
51,600040,Waste Collection and Operations,Waste and Recycling,Infrastructure and Planning,46118,Freight Costs,Isles Of Scilly Travel,Isles  of Scilly Travel Freight - Waste June 2019,2578800 ,"12,166.40", 18/06/2019,"12,166.40","14,599.68"
51,600040,Waste Collection and Operations,Waste and Recycling,Infrastructure and Planning,46118,Freight Costs,Isles Of Scilly Travel,Isles of Scilly Travel freight costs waste site January 2019,2578800 ,"12,166.40", 18/06/2019,"12,166.40","14,599.68"
51,600040,Waste Collection and Operations,Waste and Recycling,Infrastructure and Planning,57069,Waste Disposal Contracts - Private Contractors,Suez Recycling and Recovery UK Ltd (was Sita UK Ltd),Retrospective: General Waste transfer March,2578604 ,"12,256.30", 18/06/2019,"12,256.30","14,707.56"
51,600040,Waste Collection and Operations,Waste and Recycling,Infrastructure and Planning,27003,Refuse Collection,Polystar Plastics Ltd,"Household recycling MOQ 25,000 bags 18x29x39 25/roll light blue tint Regran 140G 
@ 110.50/1000 printed green 1C1S total = 2762.50.",2576600 ,"3,049.80", 20/06/2019,"3,049.80","3,659.76"
51,600040,Waste Collection and Operations,Waste and Recycling,Infrastructure and Planning,27003,Refuse Collection,Polystar Plastics Ltd,"Household recycling MOQ 25,000 bags 18x29x39 25/roll light blue tint Regran 140G 
@ 110.50/1000 printed green 1C1S total = 2762.50.",2576600 ,"3,049.80", 20/06/2019,"-3,049.80","3,659.76"
51,600040,Waste Collection and Operations,Waste and Recycling,Infrastructure and Planning,27003,Refuse Collection,Polystar Plastics Ltd,"Household recycling MOQ 25,000 bags 18x29x39 25/roll light blue tint Regran 140G 
@ 110.50/1000 printed green 1C1S total = 2762.50.",2576600 ,"3,049.80", 20/06/2019,"3,049.80","3,659.76"
51,600040,Waste Collection and Operations,Waste and Recycling,Infrastructure and Planning,31102,Vehicle Repair and Maintenance,Steve Oates t/a Doerwheal,Steve Oates - steel and repair of skips - waste 24th May,2582690 ,"1,714.54", 20/06/2019,"1,714.54","2,057.45"
51,600040,Waste Collection and Operations,Waste and Recycling,Infrastructure and Planning,41123,Loose Tools,Jajo Automated software ltd,"4 X ratchet turnbuckles for compacting machines, 3 x 5ltr red/green/yellow machine paint, bungs for shaker head inspection portals, uv lamps and delivery",2582478 ,"1,606.10", 20/06/2019,"1,606.10","1,927.32"
51,600040,Waste Collection and Operations,Waste and Recycling,Infrastructure and Planning,46119,Haulage Costs,Wheal Alfred Metals Recycling Ltd,Wheal Alfred June 2019,2584093 ,800.00, 20/06/2019,800.00,960.00
51,600040,Waste Collection and Operations,Waste and Recycling,Infrastructure and Planning,31102,Vehicle Repair and Maintenance,Steve Oates t/a Doerwheal,Steve Oates Waste - Repair tracks and new paint 19th June,2585465 ,560.00, 25/06/2019,560.00,672.00
51,600040,Waste Collection and Operations,Waste and Recycling,Infrastructure and Planning,31102,Vehicle Repair and Maintenance,Steve Oates t/a Doerwheal,Steve Oates - Waste 19th June,2585466 ,780.00, 25/06/2019,780.00,936.00
51,600040,Waste Collection and Operations,Waste and Recycling,Infrastructure and Planning,41103,Equipment - Spares,Blue Machinery (Spares) Ltd,Teeth for doppstadt shredder including delivery,2586384 ,720.00, 25/06/2019,720.00,864.00
51,600040,Waste Collection and Operations,Waste and Recycling,Infrastructure and Planning,46119,Haulage Costs,Suez Recycling and Recovery UK Ltd (was Sita UK Ltd),Suez May,2574324 ,"17,627.40", 27/06/2019,"17,627.40","21,152.88"
51,600040,Waste Collection and Operations,Waste and Recycling,Infrastructure and Planning,31602,Air Travel,RBS Commercial Card Division,15-05-2019|6459|TRAVEL TEAM|ISLES OF SCILLY SS CO|TR21 0LJ|4411|FLIGHT 264182|IOS_NSTINSON,2585377 ,"16,386.79", 28/06/2019,218.50,"17,042.35"
51,600040,Waste Collection and Operations,Waste and Recycling,Infrastructure and Planning,31602,Air Travel,RBS Commercial Card Division,15-05-2019|6459|TRAVEL TEAM|ISLES OF SCILLY SS CO|TR21 0LJ|4411|FLIGHT 264183|IOS_NSTINSON,2585377 ,"16,386.79", 28/06/2019,118.76,"17,042.35"
51,600040,Waste Collection and Operations,Waste and Recycling,Infrastructure and Planning,31602,Air Travel,RBS Commercial Card Division,16-05-2019|6459|TRAVEL TEAM|ISLES OF SCILLY SS CO|TR21 0LJ|4411|FLIGHT 264183|IOS_NSTINSON,2585377 ,"16,386.79", 28/06/2019,12.00,"17,042.35"
51,600042,Waste Recycling (Code Closed),Waste and Recycling,Infrastructure and Planning,31102,Vehicle Repair and Maintenance,Steve Oates t/a Doerwheal,"Waste and Recycling - July
Engineering",2502822 ,502.72, 04/04/2019,502.72,603.27
51,600042,Waste Recycling (Code Closed),Waste and Recycling,Infrastructure and Planning,31102,Vehicle Repair and Maintenance,Steve Oates t/a Doerwheal,"Waste and Recycling - July
Engineering",2502822 ,502.72, 04/04/2019,-502.72,603.27
51,600042,Waste Recycling (Code Closed),Waste and Recycling,Infrastructure and Planning,31102,Vehicle Repair and Maintenance,Steve Oates t/a Doerwheal,"Waste and Recycling - July
Engineering",2502819 ,440.00, 04/04/2019,-440.00,528.00
51,600042,Waste Recycling (Code Closed),Waste and Recycling,Infrastructure and Planning,31102,Vehicle Repair and Maintenance,Steve Oates t/a Doerwheal,"Waste and Recycling - July
Engineering",2502819 ,440.00, 04/04/2019,440.00,528.00
51,600042,Waste Recycling (Code Closed),Waste and Recycling,Infrastructure and Planning,57069,Waste Disposal Contracts - Private Contractors,Tresco Estate,Tresco Waste Contract,2547323 ,"1,597.22", 13/06/2019,"1,597.22","1,916.66"
51,600042,Waste Recycling (Code Closed),Waste and Recycling,Infrastructure and Planning,57069,Waste Disposal Contracts - Private Contractors,Tresco Estate,Tresco Waste Contract,2547323 ,"1,597.22", 13/06/2019,"-1,597.22","1,916.66"
51,600050,Water & Sewerage,Operational Services,Infrastructure and Planning,41118,Health & Safety Equipment,Ashfield Products Ltd,Ash Safety water safety equipment Feb 2019,2506249 ,"1,270.40", 04/04/2019,"1,270.40","1,524.48"
51,600050,Water & Sewerage,Operational Services,Infrastructure and Planning,49002,Miscellaneous Expenditure,Pfs (Helston) Ltd,Water - Franklin/E-Tech EV45/03 - FN150 - TBEI -P 15KW 400,2510035 ,"4,160.00", 04/04/2019,"4,160.00","4,992.00"
51,600050,Water & Sewerage,Operational Services,Infrastructure and Planning,49002,Miscellaneous Expenditure,Terran Design Systems Ltd,"Water - 2 x 10L Mag flow meters supplied pre-configured to replace faulty meters on Desalination Plant boreholes 1 and 2, Carriage from Germany",2506403 ,"3,250.00", 04/04/2019,"3,250.00","3,900.00"
51,600050,Water & Sewerage,Operational Services,Infrastructure and Planning,49002,Miscellaneous Expenditure,Pfs (Helston) Ltd,"Water - UPVC gate valves, UPVC fittings, galvanised backing rings, flexible couplers, full face flanges",2512157 ,"2,615.29", 04/04/2019,"2,615.29","3,138.36"
51,600050,Water & Sewerage,Operational Services,Infrastructure and Planning,31205,Petrol Purchases,RBS Commercial Card Division,06-03-2019|7393|JULIAN WRIGHT|SHELL HAYLE 227|TR275DG|5541|FUEL FOR HIRE CAR|,2527247 ,"12,964.48", 12/04/2019,26.26,"13,582.29"
51,600050,Water & Sewerage,Operational Services,Infrastructure and Planning,31602,Air Travel,RBS Commercial Card Division,26-03-2019|6459|TRAVEL TEAM|ISLES OF SCILLY SS CO|TR21 0LJ|4411|FLIGHT 255070|IOS_NSTINSON,2527247 ,"12,964.48", 12/04/2019,338.20,"13,582.29"
51,600050,Water & Sewerage,Operational Services,Infrastructure and Planning,31602,Air Travel,RBS Commercial Card Division,27-03-2019|6459|TRAVEL TEAM|ISLES OF SCILLY SS CO|TR21 0LJ|4411|FLIGHT DOG|IOS_NSTINSON,2527247 ,"12,964.48", 12/04/2019,10.00,"13,582.29"
51,600050,Water & Sewerage,Operational Services,Infrastructure and Planning,31602,Air Travel,RBS Commercial Card Division,27-03-2019|6459|TRAVEL TEAM|ISLES OF SCILLY SS CO|TR21 0LJ|4411|FLIGHT 255252|IOS_NSTINSON,2527247 ,"12,964.48", 12/04/2019,176.80,"13,582.29"
51,600050,Water & Sewerage,Operational Services,Infrastructure and Planning,31602,Air Travel,RBS Commercial Card Division,11-03-2019|6459|TRAVEL TEAM|ISLES OF SCILLY SS CO|TR21 0LJ|4411|FLIGHT 252259|IOS_NSTINSON,2527247 ,"12,964.48", 12/04/2019,169.10,"13,582.29"
51,600050,Water & Sewerage,Operational Services,Infrastructure and Planning,31602,Air Travel,RBS Commercial Card Division,21-03-2019|6459|TRAVEL TEAM|ISLES OF SCILLY SS CO|TR21 0LJ|4411|FLIGHT 254122|IOS_NSTINSON,2527247 ,"12,964.48", 12/04/2019,249.10,"13,582.29"
51,600050,Water & Sewerage,Operational Services,Infrastructure and Planning,46102,Subsistence,RBS Commercial Card Division,06-03-2019|7393|JULIAN WRIGHT|BREWERS FAYRE 41514560|TR27 4PN|5812|EVENING MEAL FOR JULIAN WRIGHT WHILST ATTENDING TRAINING COURSE|,2527247 ,"12,964.48", 12/04/2019,8.99,"13,582.29"
51,600050,Water & Sewerage,Operational Services,Infrastructure and Planning,46102,Subsistence,RBS Commercial Card Division,06-03-2019|7393|JULIAN WRIGHT|BREWERS FAYRE 41514560|TR27 4PN|5812|EVENING MEAL FOR JAMES SHERRIS WHILE ATTENDING TRAINING COURSE|,2527247 ,"12,964.48", 12/04/2019,8.32,"13,582.29"
51,600050,Water & Sewerage,Operational Services,Infrastructure and Planning,46102,Subsistence,RBS Commercial Card Division,06-03-2019|7393|JULIAN WRIGHT|THEWHITEHARTHOTEL|EX20 1HD|5812|BREAKFAST FOR JAMES SHERRIS|,2527247 ,"12,964.48", 12/04/2019,3.50,"13,582.29"
51,600050,Water & Sewerage,Operational Services,Infrastructure and Planning,46102,Subsistence,RBS Commercial Card Division,06-03-2019|7393|JULIAN WRIGHT|THEWHITEHARTHOTEL|EX20 1HD|5812|BREAKFAST FOR JULIAN WRIGHT|,2527247 ,"12,964.48", 12/04/2019,2.50,"13,582.29"
51,600050,Water & Sewerage,Operational Services,Infrastructure and Planning,46102,Subsistence,RBS Commercial Card Division,04-03-2019|7393|JULIAN WRIGHT|THEWHITEHARTHOTEL|EX20 1HD|5812|EVENING MEAL FOR JULIAN WRIGHT|,2527247 ,"12,964.48", 12/04/2019,8.91,"13,582.29"
51,600050,Water & Sewerage,Operational Services,Infrastructure and Planning,46102,Subsistence,RBS Commercial Card Division,04-03-2019|7393|JULIAN WRIGHT|THEWHITEHARTHOTEL|EX20 1HD|5812|EVENING MEAL FOR JAMES SHERRIS|,2527247 ,"12,964.48", 12/04/2019,10.66,"13,582.29"
51,600050,Water & Sewerage,Operational Services,Infrastructure and Planning,46102,Subsistence,RBS Commercial Card Division,05-03-2019|7393|JULIAN WRIGHT|THEWHITEHARTHOTEL|EX20 1HD|5812|EVENING MEAL FOR JULIAN WRIGHT|,2527247 ,"12,964.48", 12/04/2019,6.29,"13,582.29"
51,600050,Water & Sewerage,Operational Services,Infrastructure and Planning,46102,Subsistence,RBS Commercial Card Division,05-03-2019|7393|JULIAN WRIGHT|THEWHITEHARTHOTEL|EX20 1HD|5812|BREAKFAST FOR JAMES SHERRIS|,2527247 ,"12,964.48", 12/04/2019,3.42,"13,582.29"
51,600050,Water & Sewerage,Operational Services,Infrastructure and Planning,46102,Subsistence,RBS Commercial Card Division,05-03-2019|7393|JULIAN WRIGHT|THEWHITEHARTHOTEL|EX20 1HD|5812|BREAKFAST FOR JULIAN WRIGHT|,2527247 ,"12,964.48", 12/04/2019,2.42,"13,582.29"
51,600050,Water & Sewerage,Operational Services,Infrastructure and Planning,46102,Subsistence,RBS Commercial Card Division,05-03-2019|7393|JULIAN WRIGHT|THEWHITEHARTHOTEL|EX20 1HD|5812|EVENING MEAL FOR JAMES SHERRIS|,2527247 ,"12,964.48", 12/04/2019,7.33,"13,582.29"
51,600050,Water & Sewerage,Operational Services,Infrastructure and Planning,49002,Miscellaneous Expenditure,Kirton Water Treatment Services Ltd,"Carry out works to multi-media filters on RO Unit, labour and 4"" UPVC pipework",2528115 ,"1,630.80", 16/04/2019,"1,630.80","1,956.96"
51,600050,Water & Sewerage,Operational Services,Infrastructure and Planning,12301,Training,South West Water Ltd,South West Water Training - Hatherleigh,2513726 ,931.20, 18/04/2019,931.20,931.20
51,600050,Water & Sewerage,Operational Services,Infrastructure and Planning,49002,Miscellaneous Expenditure,Oil & Water Supplies Ltd,Caustic soda twaddle 60 sodium hydroxide 1250kgs with tamper proof seal,2531814 ,"1,387.00", 23/04/2019,"1,387.00","1,664.40"
51,600050,Water & Sewerage,Operational Services,Infrastructure and Planning,49002,Miscellaneous Expenditure,Oil & Water Supplies Ltd,"Uplift of pallet of RO Cleanse 24 (32 of drums), carriage, clean, disposal",2531856 ,836.00, 23/04/2019,836.00,"1,003.20"
51,600050,Water & Sewerage,Operational Services,Infrastructure and Planning,49002,Miscellaneous Expenditure,Oil & Water Supplies Ltd,Sodium Hydroxide (caustic soda) twaddle 60 1250kgs with tamper proof seal,2531849 ,"1,387.00", 23/04/2019,"1,387.00","1,664.40"
51,600050,Water & Sewerage,Operational Services,Infrastructure and Planning,49002,Miscellaneous Expenditure,Idexx Laboratories Limited,"vessels 98-06161-00 x 1
quantitrays 98-21378-00 x 3
colilert 98-12973-00 x 1
Delivery charge",2515079 ,967.00, 25/04/2019,967.00,"1,160.40"
51,600050,Water & Sewerage,Operational Services,Infrastructure and Planning,43608,Construction and Road Maintenance,Blackwell Building Services (IoS) Ltd,Extra concrete works to Mermaid sewerage run,2531939 ,430.00, 30/04/2019,430.00,516.00
51,600050,Water & Sewerage,Operational Services,Infrastructure and Planning,43608,Construction and Road Maintenance,Blackwell Building Services (IoS) Ltd,Extra concrete works to Mermaid sewerage run,2528317 ,"4,100.00", 30/04/2019,"4,100.00","4,920.00"
51,600050,Water & Sewerage,Operational Services,Infrastructure and Planning,43608,Construction and Road Maintenance,Blackwell Building Services (IoS) Ltd,Extra concrete works to Mermaid sewerage run,2528317 ,"4,100.00", 30/04/2019,"-4,100.00","4,920.00"
51,600050,Water & Sewerage,Operational Services,Infrastructure and Planning,49002,Miscellaneous Expenditure,Blackwell Building Services (IoS) Ltd,Concrete works on Mermaid sewerage run,2528317 ,"4,100.00", 30/04/2019,"4,100.00","4,920.00"
51,600050,Water & Sewerage,Operational Services,Infrastructure and Planning,49002,Miscellaneous Expenditure,Pfs (Helston) Ltd,"Water- 8GS11T - FRK 1.1 kw 415v borehole pump, 30 mtr motor tail, ZDS QS4X.10-23 4kw stainless bare shaft, motor",2534401 ,"4,001.10", 30/04/2019,"4,001.10","4,801.32"
51,600050,Water & Sewerage,Operational Services,Infrastructure and Planning,12301,Training,South West Water Ltd,South West Water Training - Hatherleigh,2533060 ,776.00, 02/05/2019,776.00,931.20
51,600050,Water & Sewerage,Operational Services,Infrastructure and Planning,41102,Equipment Rental,Tolman & Longstone Farms,Tractor and tanker hire for emptying Bio Bubble,2537891 ,"1,650.00", 02/05/2019,"1,650.00","1,980.00"
51,600050,Water & Sewerage,Operational Services,Infrastructure and Planning,41102,Equipment Rental,Ashfield Products Ltd,Ash Safety Porta Gantry and Master Link Trolley,2537797 ,"2,180.00", 02/05/2019,"2,180.00","2,616.00"
51,600050,Water & Sewerage,Operational Services,Infrastructure and Planning,49002,Miscellaneous Expenditure,Oil & Water Supplies Ltd,"Water - Treatment chemicals - 1000 litres Sodium Hydroxide Caustic Soda IBC 1250kg, with tamper proof seals",2531790 ,"2,223.00", 02/05/2019,"2,223.00","2,667.60"
51,600050,Water & Sewerage,Operational Services,Infrastructure and Planning,49002,Miscellaneous Expenditure,South West Water Ltd,Analysis of water samples,2537803 ,638.04, 02/05/2019,638.04,638.04
51,600050,Water & Sewerage,Operational Services,Infrastructure and Planning,46119,Haulage Costs,Richard Hand Haulage,Richard Hand Water Dept April,2552438 ,907.30, 16/05/2019,907.30,"1,088.76"
51,600050,Water & Sewerage,Operational Services,Infrastructure and Planning,49002,Miscellaneous Expenditure,Hanovia Ltd,"Service of UV system, arc tube x 2, quartz sleeve x 2, monitor",2551514 ,"3,040.50", 16/05/2019,"3,040.50","3,648.60"
51,600050,Water & Sewerage,Operational Services,Infrastructure and Planning,22002,Electricity,British Gas,955464136 LINE 50,2552051 ,433.53, 17/05/2019,433.53,520.23
51,600050,Water & Sewerage,Operational Services,Infrastructure and Planning,22002,Electricity,British Gas,711666314 LINE 46,2552047 ,563.60, 17/05/2019,563.60,676.32
51,600050,Water & Sewerage,Operational Services,Infrastructure and Planning,49002,Miscellaneous Expenditure,Oil & Water Supplies Ltd,2 x PRO Tek Clean LBR Sodium Hypochlorite 250kgs drums,2554043 ,"1,020.26", 21/05/2019,"1,020.26","1,224.31"
51,600050,Water & Sewerage,Operational Services,Infrastructure and Planning,49002,Miscellaneous Expenditure,Oil & Water Supplies Ltd,"ES4 12 19T - complete with 4kw Franklin motor, 31 0113430 lead, Franklin motor lead 4 x 1.5mm 30mtrs",2554040 ,"2,003.50", 21/05/2019,"2,003.50","2,404.20"
51,600050,Water & Sewerage,Operational Services,Infrastructure and Planning,49002,Miscellaneous Expenditure,Oil & Water Supplies Ltd,Water - 10 - 10 - 1065 KTZ411 PUMP,2554058 ,"3,445.00", 21/05/2019,"3,445.00","4,134.00"
51,600050,Water & Sewerage,Operational Services,Infrastructure and Planning,49002,Miscellaneous Expenditure,Oil & Water Supplies Ltd,Caustic soda IBC twaddle 60 Sodium Hydroxide 1250kgs with tamper proof seals,2554056 ,"1,387.00", 21/05/2019,"1,387.00","1,664.40"
51,600050,Water & Sewerage,Operational Services,Infrastructure and Planning,49002,Miscellaneous Expenditure,Oil & Water Supplies Ltd,1 X Caustic Soda IBC 60 twaddle Sodium Hydroxide 1250kgs with tamper proof seals,2554051 ,"1,387.00", 21/05/2019,"1,387.00","1,664.40"
51,600050,Water & Sewerage,Operational Services,Infrastructure and Planning,41109,R&M of Plant & Equipment,Aesseal Plc,Scusi seal repair for Bishop sewerage pumps,2542196 ,443.77, 23/05/2019,443.77,532.52
51,600050,Water & Sewerage,Operational Services,Infrastructure and Planning,49002,Miscellaneous Expenditure,Terran Design Systems Ltd,"1 x 4#2 flow meter PN16 stainless steel flanges, C22 electrodes, EthernetIP plant connection, poly-carbonate body, carriage from Germany.",2558009 ,"2,525.00", 23/05/2019,"2,525.00","3,030.00"
51,600050,Water & Sewerage,Operational Services,Infrastructure and Planning,49002,Miscellaneous Expenditure,Oil & Water Supplies Ltd,"2 x ES4 12 19T - complete with motor, 31 0113430 lead 4 motor lead 4 x 1.5mm 30m",2558091 ,"3,942.00", 23/05/2019,"3,942.00","4,730.40"
51,600050,Water & Sewerage,Operational Services,Infrastructure and Planning,31602,Air Travel,RBS Commercial Card Division,18-04-2019|6459|TRAVEL TEAM|ISLES OF SCILLY SS CO|TR21 0LJ|4411|FLIGHT 259405|,2562926 ,"8,470.46", 30/05/2019,169.10,"8,939.84"
51,600050,Water & Sewerage,Operational Services,Infrastructure and Planning,31602,Air Travel,RBS Commercial Card Division,24-04-2019|6459|TRAVEL TEAM|ISLES OF SCILLY SS CO|TR21 0LJ|4411|FLIGHT 259405|,2562926 ,"8,470.46", 30/05/2019,33.82,"8,939.84"
51,600050,Water & Sewerage,Operational Services,Infrastructure and Planning,31602,Air Travel,RBS Commercial Card Division,25-04-2019|6459|TRAVEL TEAM|ISLES OF SCILLY SS CO|TR21 0LJ|4411|FLIGHT 260479|,2562926 ,"8,470.46", 30/05/2019,169.10,"8,939.84"
51,600050,Water & Sewerage,Operational Services,Infrastructure and Planning,41107,Equipment Special Purchases,Ashfield Products Ltd,Ash Safety Cover Lifter May 2019,2562462 ,795.00, 30/05/2019,795.00,954.00
51,600050,Water & Sewerage,Operational Services,Infrastructure and Planning,49002,Miscellaneous Expenditure,Idexx Laboratories Limited,"98-05761-01 x 5, 98-09444-01 x 5 plus 26 delivery charge",2547139 ,671.00, 30/05/2019,671.00,805.20
51,600050,Water & Sewerage,Operational Services,Infrastructure and Planning,49002,Miscellaneous Expenditure,Palintest Ltd,"PT435 SA1100 Sensor Pack, Clean Water Lead x 5, PL404 Tubetest, Nitrate 30N, 25 Tests x 5 plus Delivery charge",2559583 ,589.00, 30/05/2019,589.00,706.80
51,600050,Water & Sewerage,Operational Services,Infrastructure and Planning,46103,Hotel Expenses,Scilly Hols Ltd,Bourdeaux Flat 14th-21st June 2019 Mr Challis,2563768 ,995.00, 04/06/2019,995.00,995.00
51,600050,Water & Sewerage,Operational Services,Infrastructure and Planning,49002,Miscellaneous Expenditure,Oil & Water Supplies Ltd,PRO TEK SBS40 25kg drums x 32,2567951 ,"1,127.68", 04/06/2019,"1,127.68","1,353.22"
51,600050,Water & Sewerage,Operational Services,Infrastructure and Planning,49002,Miscellaneous Expenditure,Oil & Water Supplies Ltd,PRO TEK RO Cleanse 24 25kg drums x 32,2567927 ,"2,150.08", 04/06/2019,"2,150.08","2,580.10"
51,600050,Water & Sewerage,Operational Services,Infrastructure and Planning,49002,Miscellaneous Expenditure,Oil & Water Supplies Ltd,Anti-scalent PRO TEK Plus 11 25kg drums,2567844 ,"3,222.40", 04/06/2019,"3,222.40","3,866.88"
51,600050,Water & Sewerage,Operational Services,Infrastructure and Planning,22002,Electricity,British Gas,INV 981359085 LINE 124,2572070 ,"3,292.36", 07/06/2019,"3,292.36","3,950.83"
51,600050,Water & Sewerage,Operational Services,Infrastructure and Planning,22002,Electricity,British Gas,INV 981359091 LINE 121,2572060 ,542.34, 07/06/2019,542.34,650.80
51,600050,Water & Sewerage,Operational Services,Infrastructure and Planning,22002,Electricity,British Gas,INV 981359088 LINE 123,2572065 ,"1,089.42", 07/06/2019,"1,089.42","1,307.30"
51,600050,Water & Sewerage,Operational Services,Infrastructure and Planning,22002,Electricity,British Gas,23/2 - 30/3 Line 100,2577260 ,"5,696.35", 14/06/2019,"5,696.35","6,835.62"
51,600050,Water & Sewerage,Operational Services,Infrastructure and Planning,22002,Electricity,British Gas,3/2 - 22/2 Line 100,2577267 ,"2,586.89", 14/06/2019,"2,586.89","3,104.26"
51,600050,Water & Sewerage,Operational Services,Infrastructure and Planning,49002,Miscellaneous Expenditure,Pfs (Helston) Ltd,"Water-2 x ZDS QS4X.1023 4KW stainless bare shaft, 2 x franklin 316SS saltwater motor 4KW 415 fitted with 35 mtr 316 SS seawater tail",2578760 ,"2,342.10", 18/06/2019,"2,342.10","2,810.52"
51,600050,Water & Sewerage,Operational Services,Infrastructure and Planning,49002,Miscellaneous Expenditure,Pfs (Helston) Ltd,"Concrete risers, lockable covers, hand wipes, shed, s/s bolts/nuts, cable cutters, cable ties, waders, ratchet straps, transformer, tools, drill bits, tee hinges, pad bolts, UPVC fittings, butterfly valves, flange gaskets, barrel nipples, t",2578759 ,"2,870.78", 18/06/2019,"2,870.78","3,444.91"
51,600050,Water & Sewerage,Operational Services,Infrastructure and Planning,49002,Miscellaneous Expenditure,Pfs (Helston) Ltd,2 x Engineers visit,2578745 ,"3,450.00", 18/06/2019,"3,450.00","4,140.00"
51,600050,Water & Sewerage,Operational Services,Infrastructure and Planning,46103,Hotel Expenses,Hell Bay Hotel,Oliver Bywaters and Sean Evans Accommodation May 2019,2583185 ,531.25, 20/06/2019,531.25,637.50
51,600050,Water & Sewerage,Operational Services,Infrastructure and Planning,49002,Miscellaneous Expenditure,Pfs (Helston) Ltd,1 x Tsurimi/Honda TEW2 - 50HA 9HP Petrol pump,2578756 ,"2,032.00", 20/06/2019,"2,032.00","2,438.40"
51,600050,Water & Sewerage,Operational Services,Infrastructure and Planning,49002,Miscellaneous Expenditure,Pfs (Helston) Ltd,"40 X Softener salt tablets 25kg, 6 x low fouling membranes",2578752 ,"2,696.80", 20/06/2019,"2,696.80","3,236.16"
51,600050,Water & Sewerage,Operational Services,Infrastructure and Planning,49002,Miscellaneous Expenditure,Pfs (Helston) Ltd,"40 X Softener salt tablets 25kg, 6 x low fouling membranes",2578752 ,"2,696.80", 20/06/2019,"-2,596.80","3,236.16"
51,600050,Water & Sewerage,Operational Services,Infrastructure and Planning,49002,Miscellaneous Expenditure,Pfs (Helston) Ltd,"40 X Softener salt tablets 25kg, 6 x low fouling membranes",2578752 ,"2,696.80", 20/06/2019,"2,596.80","3,236.16"
51,600050,Water & Sewerage,Operational Services,Infrastructure and Planning,49002,Miscellaneous Expenditure,Pfs (Helston) Ltd,10 x low fouling Hydranautic membranes,2578749 ,"3,553.00", 20/06/2019,"3,553.00","4,263.60"
51,600050,Water & Sewerage,Operational Services,Infrastructure and Planning,49002,Miscellaneous Expenditure,Pfs (Helston) Ltd,10 x low fouling Hydranautic membranes,2578749 ,"3,553.00", 20/06/2019,"-3,528.00","4,263.60"
51,600050,Water & Sewerage,Operational Services,Infrastructure and Planning,49002,Miscellaneous Expenditure,Pfs (Helston) Ltd,10 x low fouling Hydranautic membranes,2578749 ,"3,553.00", 20/06/2019,"3,528.00","4,263.60"
51,600050,Water & Sewerage,Operational Services,Infrastructure and Planning,49002,Miscellaneous Expenditure,Terran Design Systems Ltd,"8 days site visit, support with Pump Station/Desalination Plant, replace hydrostatic probe at Telegraph Reservoir, intake system preparation works, calibration works at Telegraph reservoir and Desalination Plant",2583628 ,"3,275.00", 20/06/2019,"3,275.00","3,930.00"
51,600050,Water & Sewerage,Operational Services,Infrastructure and Planning,49002,Miscellaneous Expenditure,Terran Design Systems Ltd,"Gateway to integrate monitoring to existing Scada and PLC, communication gateway, Modbus Protocol function, remote control and setup functions",2583630 ,"1,926.00", 20/06/2019,"1,926.00","2,311.20"
51,600050,Water & Sewerage,Operational Services,Infrastructure and Planning,49002,Miscellaneous Expenditure,Terran Design Systems Ltd,"6 way RCD monitoring upgrade at Desalination Plant, power supply for CT's (per 6), RCD controller, types A/AB RCD",2583629 ,"2,563.00", 20/06/2019,"2,563.00","3,075.60"
51,600050,Water & Sewerage,Operational Services,Infrastructure and Planning,49363,Sewage Treatment Plants,Advanced Aeration Ltd,Anti Foam,2578802 ,829.00, 20/06/2019,829.00,994.80
51,600050,Water & Sewerage,Operational Services,Infrastructure and Planning,49002,Miscellaneous Expenditure,Pfs (Helston) Ltd,"Water - 7.4AH 6V lantern, granules, heater, harris chrome plated sample taps, B125 ductile manhole covers, combi drill, hand wash station, battery pack, red/white barrier chain, chain system, LED work light, 1600 x 800 x150 containment",2578738 ,"1,896.82", 25/06/2019,"1,896.82","2,276.19"
51,600050,Water & Sewerage,Operational Services,Infrastructure and Planning,49002,Miscellaneous Expenditure,Pfs (Helston) Ltd,"Water - 7.4AH 6V lantern, granules, heater, harris chrome plated sample taps, B125 ductile manhole covers, combi drill, hand wash station, battery pack, red/white barrier chain, chain system, LED work light, 1600 x 800 x150 containment",2578738 ,"1,896.82", 25/06/2019,"-1,796.82","2,276.19"
51,600050,Water & Sewerage,Operational Services,Infrastructure and Planning,49002,Miscellaneous Expenditure,Pfs (Helston) Ltd,"Water - 7.4AH 6V lantern, granules, heater, harris chrome plated sample taps, B125 ductile manhole covers, combi drill, hand wash station, battery pack, red/white barrier chain, chain system, LED work light, 1600 x 800 x150 containment",2578738 ,"1,896.82", 25/06/2019,"1,796.82","2,276.19"
51,600050,Water & Sewerage,Operational Services,Infrastructure and Planning,46103,Hotel Expenses,Scilly Hols Ltd,Come2Scilly 6 Harbour View 3rd-9th July,2588638 ,"1,040.00", 27/06/2019,"1,040.00","1,040.00"
51,600050,Water & Sewerage,Operational Services,Infrastructure and Planning,46103,Hotel Expenses,Scilly Hols Ltd,Trenoweth Farm Cottage Oliver Bywaters 27th June - 4th July,2588534 ,690.00, 27/06/2019,690.00,690.00
51,600050,Water & Sewerage,Operational Services,Infrastructure and Planning,49002,Miscellaneous Expenditure,Oil & Water Supplies Ltd,PRO TEK RO Plus 11 Anti-Scalent 25ky drums x 32,2587795 ,"3,222.40", 27/06/2019,"3,222.40","3,866.88"
51,600050,Water & Sewerage,Operational Services,Infrastructure and Planning,49002,Miscellaneous Expenditure,Oil & Water Supplies Ltd,Pro Tek SBS40 25kg drums x 32,2587817 ,"1,127.68", 27/06/2019,"1,127.68","1,353.22"
51,600050,Water & Sewerage,Operational Services,Infrastructure and Planning,49002,Miscellaneous Expenditure,Oil & Water Supplies Ltd,"3 x Sodium Hydroxide caustic soda IBC twaddle 60 with tamper proof seals, rental at AR Newport to facilitate 8 off IBC and carriage to Penzance",2587810 ,"4,541.00", 27/06/2019,"4,541.00","5,449.20"
51,600050,Water & Sewerage,Operational Services,Infrastructure and Planning,49002,Miscellaneous Expenditure,Oil & Water Supplies Ltd,"15 x supapleat FFC 5mic, silicone PART NO 24PP005-40HSA 330 each",2587791 ,"2,150.08", 27/06/2019,"2,150.08","2,580.10"
51,600050,Water & Sewerage,Operational Services,Infrastructure and Planning,49002,Miscellaneous Expenditure,Oil & Water Supplies Ltd,2 x PRO-TEK Clean HR LBR Sodium Hypochlorite 250kg drums,2587816 ,"1,020.26", 27/06/2019,"1,020.26","1,224.31"
51,600050,Water & Sewerage,Operational Services,Infrastructure and Planning,31105,Vehicle Parts,RBS Commercial Card Division,17-05-2019|7393|JULIAN WRIGHT|MAZDA TRURO|TR1 3LP|5521|WINDOW MECHANISM AND MOTOR FOR WATER BOARD VEHICLE|,2585377 ,"16,386.79", 28/06/2019,415.52,"17,042.35"
51,600050,Water & Sewerage,Operational Services,Infrastructure and Planning,31602,Air Travel,RBS Commercial Card Division,03-05-2019|6459|TRAVEL TEAM|ISLES OF SCILLY SS CO|TR21 0LJ|4411|FLIGHT 262027|IOS_NSTINSON,2585377 ,"16,386.79", 28/06/2019,178.00,"17,042.35"
51,600050,Water & Sewerage,Operational Services,Infrastructure and Planning,31602,Air Travel,RBS Commercial Card Division,23-05-2019|6459|TRAVEL TEAM|ISLES OF SCILLY SS CO|TR21 0LJ|4411|FLIGHT 265575|IOS_NSTINSON,2585377 ,"16,386.79", 28/06/2019,169.10,"17,042.35"
51,600050,Water & Sewerage,Operational Services,Infrastructure and Planning,31602,Air Travel,RBS Commercial Card Division,23-05-2019|6459|TRAVEL TEAM|ISLES OF SCILLY SS CO|TR21 0LJ|4411|FLIGHT 265595|IOS_NSTINSON,2585377 ,"16,386.79", 28/06/2019,169.10,"17,042.35"
51,600050,Water & Sewerage,Operational Services,Infrastructure and Planning,31602,Air Travel,RBS Commercial Card Division,23-05-2019|6459|TRAVEL TEAM|ISLES OF SCILLY SS CO|TR21 0LJ|4411|FLIGHT 265596|IOS_NSTINSON,2585377 ,"16,386.79", 28/06/2019,84.55,"17,042.35"
51,600050,Water & Sewerage,Operational Services,Infrastructure and Planning,31602,Air Travel,RBS Commercial Card Division,23-05-2019|6459|TRAVEL TEAM|ISLES OF SCILLY SS CO|TR21 0LJ|4411|FLIGHT 265595|IOS_NSTINSON,2585377 ,"16,386.79", 28/06/2019,10.00,"17,042.35"
51,600060,Airport,Operational Services,Infrastructure and Planning,41302,Materials,DG Buscombe,DG Buscombe: Zetor tractor parts,2515337 ,625.28, 04/04/2019,625.28,750.34
51,600060,Airport,Operational Services,Infrastructure and Planning,43506,Professional Fees - Legal,Cornwall Council,Legal Service,2463234 ,"2,455.86", 04/04/2019,"1,250.00","2,913.43"
51,600060,Airport,Operational Services,Infrastructure and Planning,43506,Professional Fees - Legal,Cornwall Council,Legal Service,2460362 ,979.20, 04/04/2019,192.00,"1,175.04"
51,600060,Airport,Operational Services,Infrastructure and Planning,43506,Professional Fees - Legal,Cornwall Council,Legal Service,2503406 ,905.60, 09/04/2019,192.00,"1,070.72"
51,600060,Airport,Operational Services,Infrastructure and Planning,43506,Professional Fees - Legal,Cornwall Council,Legal Service,2511817 ,877.50, 09/04/2019,66.50,"1,053.00"
51,600060,Airport,Operational Services,Infrastructure and Planning,31105,Vehicle Parts,RBS Commercial Card Division,06-03-2019|2872|RUSSELL SCHILD|WWW.TOOLSTATION.COM|TA6 4RN|5251|FIRE TENDER TOOLS|,2527247 ,"12,964.48", 12/04/2019,126.90,"13,582.29"
51,600060,Airport,Operational Services,Infrastructure and Planning,31602,Air Travel,RBS Commercial Card Division,08-03-2019|6459|TRAVEL TEAM|WWW.ISLEOFSCILLY-TRAVE|TR21 0LJ|4411|FLIGHT 251850|IOS_NSTINSON,2527247 ,"12,964.48", 12/04/2019,230.00,"13,582.29"
51,600060,Airport,Operational Services,Infrastructure and Planning,31602,Air Travel,RBS Commercial Card Division,12-03-2019|6459|TRAVEL TEAM|WWW.ISLEOFSCILLY-TRAVE|TR21 0LJ|4411|FLIGHT 252563|IOS_NSTINSON,2527247 ,"12,964.48", 12/04/2019,230.00,"13,582.29"
51,600060,Airport,Operational Services,Infrastructure and Planning,31602,Air Travel,RBS Commercial Card Division,12-03-2019|6459|TRAVEL TEAM|WWW.ISLEOFSCILLY-TRAVE|TR21 0LJ|4411|FLIGHT 252561|IOS_NSTINSON,2527247 ,"12,964.48", 12/04/2019,460.00,"13,582.29"
51,600060,Airport,Operational Services,Infrastructure and Planning,31602,Air Travel,RBS Commercial Card Division,12-03-2019|2872|RUSSELL SCHILD|FLYBE.COM ES0SL2       0|EX5 3HL|4511|FLIGHTS TO ANGLOCO FIRE VEHICLE FACTORY ACCEPTANCE TESTING|,2527247 ,"12,964.48", 12/04/2019,392.94,"13,582.29"
51,600060,Airport,Operational Services,Infrastructure and Planning,41103,Equipment - Spares,RBS Commercial Card Division,06-03-2019|2872|RUSSELL SCHILD|AMZN MKTP UK MW2E83AN4|00000|5942|ELECTRICAL SUPPLIES|,2527247 ,"12,964.48", 12/04/2019,4.72,"13,582.29"
51,600060,Airport,Operational Services,Infrastructure and Planning,41103,Equipment - Spares,RBS Commercial Card Division,06-03-2019|2872|RUSSELL SCHILD|WWW.TOOLSTATION.COM|TA6 4RN|5251|TOOL UNAVAILABILITY REFUND|,2527247 ,"12,964.48", 12/04/2019,-5.33,"13,582.29"
51,600060,Airport,Operational Services,Infrastructure and Planning,41103,Equipment - Spares,RBS Commercial Card Division,07-03-2019|2872|RUSSELL SCHILD|AMZN MKTP UK MW5T730A4|L2338|5942|ELECTRICAL FITTINGS|,2527247 ,"12,964.48", 12/04/2019,95.74,"13,582.29"
51,600060,Airport,Operational Services,Infrastructure and Planning,41103,Equipment - Spares,RBS Commercial Card Division,14-03-2019|2872|RUSSELL SCHILD|AMZN MKTP UK MW7RB58I4|L2338|5942|AGL ELECTRICAL SPARES|,2527247 ,"12,964.48", 12/04/2019,21.65,"13,582.29"
51,600060,Airport,Operational Services,Infrastructure and Planning,41103,Equipment - Spares,RBS Commercial Card Division,04-03-2019|2872|RUSSELL SCHILD|WWW.TOOLSTATION.COM|TA6 4RN|5251|FIRE APPLIANCE TOOL KITS|,2527247 ,"12,964.48", 12/04/2019,165.84,"13,582.29"
51,600060,Airport,Operational Services,Infrastructure and Planning,41302,Materials,RBS Commercial Card Division,06-03-2019|2872|RUSSELL SCHILD|AMZN MKTP UK MW72H8EM4|00000|5942|BOILER HOUSE EXTERNAL LIGHT REPLACEMENT|,2527247 ,"12,964.48", 12/04/2019,10.75,"13,582.29"
51,600060,Airport,Operational Services,Infrastructure and Planning,46103,Hotel Expenses,RBS Commercial Card Division,"12-03-2019|2872|RUSSELL SCHILD|HEALEY HOUSE HOTEL|WF17 7HR|7011|FIRE VEHICLE FAT ACCOMMODATION - R. SCHILD, K. JAMES & D. PARR|",2527247 ,"12,964.48", 12/04/2019,245.00,"13,582.29"
51,600060,Airport,Operational Services,Infrastructure and Planning,46103,Hotel Expenses,RBS Commercial Card Division,"12-03-2019|2872|RUSSELL SCHILD|THE SMUGGLES INN|TR8 4EQ|5813|RETURN ACCOMMODATION - FIRE VEHICLE FAT - R. SCHILD, K. JAMES & D. PARR|",2527247 ,"12,964.48", 12/04/2019,173.33,"13,582.29"
51,600060,Airport,Operational Services,Infrastructure and Planning,46103,Hotel Expenses,RBS Commercial Card Division,21-03-2019|7369|CRAIG DRYDEN|THE LONG BOAT INN|TR18 2HZ|7011||,2527247 ,"12,964.48", 12/04/2019,-70.83,"13,582.29"
51,600060,Airport,Operational Services,Infrastructure and Planning,43532,Professional Fees - Other,Reed Business Information Ltd,Flight Global - recruitment for ATCO 2nd attempt,2526111 ,995.00, 16/04/2019,995.00,"1,194.00"
51,600060,Airport,Operational Services,Infrastructure and Planning,43532,Professional Fees - Other,Reed Business Information Ltd,Flight Global - recruitment for ATCO 1st attempt,2526108 ,995.00, 16/04/2019,995.00,"1,194.00"
51,600060,Airport,Operational Services,Infrastructure and Planning,89405,Vehicle Hire Charges,Bullo Ltd,Bullo: Landing craft for old appliance,2531750 ,"1,000.00", 23/04/2019,"1,000.00","1,200.00"
51,600060,Airport,Operational Services,Infrastructure and Planning,45207,IT Hardware Purchases,Ofcom,Ofcom Renewal of Radio Licensing,2513484 ,"2,850.00", 25/04/2019,"2,850.00","2,850.00"
51,600060,Airport,Operational Services,Infrastructure and Planning,21110,R&M - Electrical - Planned,Davey & Gilbert Ltd,Davey & Gilbert Boiler Servicing,2531854 ,640.00, 30/04/2019,640.00,768.00
51,600060,Airport,Operational Services,Infrastructure and Planning,45103,Line Rental & Installation,Servicom (High Tech) Ltd,Servicom 1st Apr 2019 - 31st Mar 2020,2530866 ,778.16, 30/04/2019,778.16,933.78
51,600060,Airport,Operational Services,Infrastructure and Planning,45210,IT Communications,CTI Communications Ltd,CTI Communication annual Apr 1st 2019 - Mar 31st 2020,2530251 ,559.00, 30/04/2019,559.00,670.80
51,600060,Airport,Operational Services,Infrastructure and Planning,45206,IT Software Purchases,Joint Application Development Enterprises Ltd,Jade Bespoke Web Application Solution Development,2540046 ,"4,500.00", 07/05/2019,"4,500.00","5,400.00"
51,600060,Airport,Operational Services,Infrastructure and Planning,45103,Line Rental & Installation,Servicom (High Tech) Ltd,Servicom 1st Apr 2019 - 31st Mar 2020,2542255 ,778.16, 14/05/2019,778.16,933.78
51,600060,Airport,Operational Services,Infrastructure and Planning,43534,Licences,Civil Aviation Authority,LINE 57,2552071 ,715.60, 17/05/2019,715.60,715.60
51,600060,Airport,Operational Services,Infrastructure and Planning,21102,R&M - Painting - Planned,Dulux Decorator Centre,Dulux Penzance- Paint for 1 Airport Bungalows,2537801 ,612.48, 21/05/2019,612.48,734.98
51,600060,Airport,Operational Services,Infrastructure and Planning,21101,R&M - Buildings - Planned,Cater Kwik,,2553993 ,"1,311.08", 23/05/2019,218.51,"1,311.08"
51,600060,Airport,Operational Services,Infrastructure and Planning,21101,R&M - Buildings - Planned,Cater Kwik,Cater Kwik:Airport Caf� extractor,2553993 ,"1,311.08", 23/05/2019,"1,092.57","1,311.08"
51,600060,Airport,Operational Services,Infrastructure and Planning,21101,R&M - Buildings - Planned,Colin McKinnon Builders,1 Airport Bungalows Refurb,2558349 ,"2,445.00", 23/05/2019,"2,445.00","2,445.00"
51,600060,Airport,Operational Services,Infrastructure and Planning,45206,IT Software Purchases,Performance Monitoring Systems,Red Kite Annual Fee for Training Records,2558088 ,"1,500.00", 23/05/2019,"1,500.00","1,800.00"
51,600060,Airport,Operational Services,Infrastructure and Planning,21101,R&M - Buildings - Planned,Record UK,Record Doors Parts for door repairs 1st April 2018 - 31st March 2019,2548207 ,"5,051.46", 30/05/2019,"-5,051.46","6,061.75"
51,600060,Airport,Operational Services,Infrastructure and Planning,21101,R&M - Buildings - Planned,Record UK,Record Doors Parts for door repairs 1st April 2018 - 31st March 2019,2548207 ,"5,051.46", 30/05/2019,"5,051.46","6,061.75"
51,600060,Airport,Operational Services,Infrastructure and Planning,28001,Maintenance of Grounds,Record UK,Record Uk (Doors) 1st Apr 2019 - 31st Mar 2020,2548207 ,"5,051.46", 30/05/2019,"5,051.46","6,061.75"
51,600060,Airport,Operational Services,Infrastructure and Planning,41101,Office Equipment,RBS Commercial Card Division,02-04-2019|2872|RUSSELL SCHILD|FIRST DATA GLOBAL LEAS|SS14 3WF|8931|CANCELLATION OF CREDIT CARD MACHINE CONTRACT FOR ATC|,2562926 ,"8,470.46", 30/05/2019,87.36,"8,939.84"
51,600060,Airport,Operational Services,Infrastructure and Planning,41103,Equipment - Spares,RBS Commercial Card Division,03-04-2019|2872|RUSSELL SCHILD|AMAZON.CO.UK MZ1655AD4|L2338|5969|ELECTRICAL SPARES|,2562926 ,"8,470.46", 30/05/2019,19.40,"8,939.84"
51,600060,Airport,Operational Services,Infrastructure and Planning,41103,Equipment - Spares,RBS Commercial Card Division,05-04-2019|2872|RUSSELL SCHILD|AMZ GRIDS LONDON|EC2A 2FA|5999|REFUND ON BATTERY ORDER AS THEY ONLY HAD A REDUCED NUMBER|,2562926 ,"8,470.46", 30/05/2019,-8.34,"8,939.84"
51,600060,Airport,Operational Services,Infrastructure and Planning,41302,Materials,David Parr Engineering,D Parr Engineering. All Airport vehicles breakdown & repair as required @ 38.00 per hr 1st April 2019 -31st March 2020,2562978 ,703.00, 30/05/2019,703.00,843.60
51,600060,Airport,Operational Services,Infrastructure and Planning,41302,Materials,David Parr Engineering,D Parr Engineering. All Airport vehicles breakdown & repair as required @ 38.00 per hr 1st April 2019 -31st March 2020,2562984 ,760.00, 30/05/2019,760.00,912.00
51,600060,Airport,Operational Services,Infrastructure and Planning,41302,Materials,David Parr Engineering,D Parr Engineering Contract All Airport vehicles & Machinery 1st April 2019 -31st March 2020,2562953 ,"1,160.00", 30/05/2019,"1,160.00","1,392.00"
51,600060,Airport,Operational Services,Infrastructure and Planning,41304,Cleaning & Domestic Materials,RBS Commercial Card Division,02-04-2019|2872|RUSSELL SCHILD|AMZNMKTPLACE|EC2A 2FA|5999|SPARE BATTERIES FOR TOILET AIR FRESHENERS|,2562926 ,"8,470.46", 30/05/2019,14.83,"8,939.84"
51,600060,Airport,Operational Services,Infrastructure and Planning,41304,Cleaning & Domestic Materials,RBS Commercial Card Division,05-04-2019|2872|RUSSELL SCHILD|AMAZON.CO.UK MZ8ZT6134|L2338|5969|AIRPORT PUBLIC TERMINAL CLEANING PRODUCTS|,2562926 ,"8,470.46", 30/05/2019,51.01,"8,939.84"
51,600060,Airport,Operational Services,Infrastructure and Planning,43534,Licences,RBS Commercial Card Division,05-04-2019|2872|RUSSELL SCHILD|UK CAA LICENSING|RH6 0YR|9399|CAA AIR GROUND CERTIFICATE OF COMPETENCE - D HENNESSEY|,2562926 ,"8,470.46", 30/05/2019,38.00,"8,939.84"
51,600060,Airport,Operational Services,Infrastructure and Planning,89209,Other Professional Fees,David Parr Engineering,David Parr Refit Fire 1 Mercedes Appliance,2562985 ,"3,206.80", 30/05/2019,"3,206.80","3,848.16"
51,600060,Airport,Operational Services,Infrastructure and Planning,41302,Materials,David Parr Engineering,D Parr Engineering. All Airport vehicles breakdown & repair as required @ 38.00 per hr 1st April 2019 -31st March 2020,2564148 ,"1,311.00", 04/06/2019,"1,311.00","1,573.20"
51,600060,Airport,Operational Services,Infrastructure and Planning,41302,Materials,David Parr Engineering,D Parr Engineering Contract All Airport vehicles & Machinery 1st April 2019 -31st March 2020,2564153 ,"1,160.00", 04/06/2019,"1,160.00","1,392.00"
51,600060,Airport,Operational Services,Infrastructure and Planning,43534,Licences,Civil Aviation Authority,LINE 122,2572118 ,715.60, 07/06/2019,715.60,715.60
51,600060,Airport,Operational Services,Infrastructure and Planning,45103,Line Rental & Installation,Servicom (High Tech) Ltd,Servicom 1st Apr 2019 - 31st Mar 2020,2573104 ,778.16, 11/06/2019,778.16,933.78
51,600060,Airport,Operational Services,Infrastructure and Planning,21110,R&M - Electrical - Planned,Kor Electrical,Kor Electrical Fire Maintenance: Appliance charging points,2576855 ,"6,337.48", 13/06/2019,"3,441.48","7,025.78"
51,600060,Airport,Operational Services,Infrastructure and Planning,21110,R&M - Electrical - Planned,Kor Electrical,Kor Electrical Fire Maintenance: Appliance charging points,2576855 ,"6,337.48", 13/06/2019,"2,896.00","7,025.78"
51,600060,Airport,Operational Services,Infrastructure and Planning,49002,Miscellaneous Expenditure,Copperchase Ltd,ATC Headsets,2575158 ,533.85, 13/06/2019,533.85,640.62
51,600060,Airport,Operational Services,Infrastructure and Planning,21101,R&M - Buildings - Planned,Colin McKinnon Builders,1 Airport Bungalows Refurb,2580025 ,"2,660.00", 18/06/2019,"2,660.00","2,660.00"
51,600060,Airport,Operational Services,Infrastructure and Planning,27008,Hazardous Waste,Pellows Waste Disposal Services Ltd,Pellows: Empty Airport and Porthmellon waste,2579041 ,"2,488.85", 18/06/2019,"2,488.85","2,986.62"
51,600060,Airport,Operational Services,Infrastructure and Planning,21119,R&M - Pest Control Costs (Building Related) - Planned,Scillonian Trading Ltd,I Nimmo- Scillonian Specaility Seafood Ltd - Pest Control 2018 - 31st March 2019,2573106 ,510.00, 20/06/2019,60.00,510.00
51,600060,Airport,Operational Services,Infrastructure and Planning,21119,R&M - Pest Control Costs (Building Related) - Planned,Scillonian Trading Ltd,I Nimmo- Scillonian Specaility Seafood Ltd - Pest Control 2018 - 31st March 2019,2573106 ,510.00, 20/06/2019,-510.00,510.00
51,600060,Airport,Operational Services,Infrastructure and Planning,21119,R&M - Pest Control Costs (Building Related) - Planned,Scillonian Trading Ltd,I Nimmo- Scillonian Specaility Seafood Ltd - Pest Control 2018 - 31st March 2019,2573106 ,510.00, 20/06/2019,510.00,510.00
51,600060,Airport,Operational Services,Infrastructure and Planning,49002,Miscellaneous Expenditure,Jewson Ltd,Kitchen renovation for 1 airport bungalows,2583382 ,"1,697.47", 25/06/2019,"1,697.47","2,036.96"
51,600060,Airport,Operational Services,Infrastructure and Planning,25001,Fixtures and Fittings (attached to building only),RBS Commercial Card Division,30-04-2019|2872|RUSSELL SCHILD|AMZNMKTPLACE|EC2A 2FA|5999|SHOWER SCREEN REPLACEMENT - NO 2 AIRPORT BUNGALOWS|,2585377 ,"16,386.79", 28/06/2019,66.66,"17,042.35"
51,600060,Airport,Operational Services,Infrastructure and Planning,31102,Vehicle Repair and Maintenance,RBS Commercial Card Division,02-05-2019|2872|RUSSELL SCHILD|ANDREW SYMONS LIMITED|EX17 1DN|8911|SPARE PARTS FOR LAWN MOWER|,2585377 ,"16,386.79", 28/06/2019,172.29,"17,042.35"
51,600060,Airport,Operational Services,Infrastructure and Planning,31602,Air Travel,RBS Commercial Card Division,30-04-2019|6459|TRAVEL TEAM|WWW.ISLEOFSCILLY-TRAVE|TR21 0LJ|4411|FLIGHT 266411|IOS_NSTINSON,2585377 ,"16,386.79", 28/06/2019,460.00,"17,042.35"
51,600060,Airport,Operational Services,Infrastructure and Planning,31602,Air Travel,RBS Commercial Card Division,30-04-2019|6459|TRAVEL TEAM|WWW.ISLEOFSCILLY-TRAVE|TR21 0LJ|4411|FLIGHT|IOS_NSTINSON,2585377 ,"16,386.79", 28/06/2019,89.00,"17,042.35"
51,600060,Airport,Operational Services,Infrastructure and Planning,31602,Air Travel,RBS Commercial Card Division,17-05-2019|6459|TRAVEL TEAM|WWW.ISLEOFSCILLY-TRAVE|TR21 0LJ|4411|FLIGHT 264514|IOS_NSTINSON,2585377 ,"16,386.79", 28/06/2019,89.00,"17,042.35"
51,600060,Airport,Operational Services,Infrastructure and Planning,31602,Air Travel,RBS Commercial Card Division,17-05-2019|6459|TRAVEL TEAM|WWW.ISLEOFSCILLY-TRAVE|TR21 0LJ|4411|FLIGHT 264530|IOS_NSTINSON,2585377 ,"16,386.79", 28/06/2019,230.00,"17,042.35"
51,600060,Airport,Operational Services,Infrastructure and Planning,41103,Equipment - Spares,RBS Commercial Card Division,30-04-2019|2872|RUSSELL SCHILD|RS COMPONENTS|NN179RS|5065|AGL ELECTRICAL SPARES COMPONENTS|,2585377 ,"16,386.79", 28/06/2019,280.66,"17,042.35"
51,600060,Airport,Operational Services,Infrastructure and Planning,41103,Equipment - Spares,RBS Commercial Card Division,02-05-2019|2872|RUSSELL SCHILD|AMZNMKTPLACE AMAZON.CO|0|5999|SECURITY LOCKS FOR ALL AIRPORT OUTBUILDINGS|,2585377 ,"16,386.79", 28/06/2019,99.05,"17,042.35"
51,600060,Airport,Operational Services,Infrastructure and Planning,41120,Catering Equipment,RBS Commercial Card Division,24-05-2019|2872|RUSSELL SCHILD|R S JOSLING & SON|TR208DU|5732|COOKER - NO 3 AIRPORT BUNGALOWS - COOKER HOOD - NO 1 AIRPORT BUNGALOWS|,2585377 ,"16,386.79", 28/06/2019,490.82,"17,042.35"
51,600060,Airport,Operational Services,Infrastructure and Planning,46103,Hotel Expenses,RBS Commercial Card Division,30-04-2019|2872|RUSSELL SCHILD|PREMIER INN|TR14 0RT|3811|RFFS COURSE ACCOMMODATION - N GOULD|,2585377 ,"16,386.79", 28/06/2019,89.16,"17,042.35"
51,600060,Airport,Operational Services,Infrastructure and Planning,46103,Hotel Expenses,RBS Commercial Card Division,30-04-2019|2872|RUSSELL SCHILD|PREMIER INN|TR14 0RT|3811|RFFS COURSE ACCOMMODATION M GUY & A WATTS|,2585377 ,"16,386.79", 28/06/2019,155.82,"17,042.35"
51,600100,Adult Social Care,Adult Social Care,Community,46106,External Legal Exps,Cornwall Council,Legal Services. Community DoL for client ref: 5780.,2463234 ,"2,455.86", 04/04/2019,144.00,"2,913.43"
51,600100,Adult Social Care,Adult Social Care,Community,46106,External Legal Exps,Cornwall Council,Legal Services. Community DoL for client ref: 5780.,2503406 ,905.60, 09/04/2019,38.40,"1,070.72"
51,600100,Adult Social Care,Adult Social Care,Community,46106,External Legal Exps,Cornwall Council,50120  General Matters Social Care Adult�s Team Only � ongoing,2511817 ,877.50, 09/04/2019,95.00,"1,053.00"
51,600100,Adult Social Care,Adult Social Care,Community,46106,External Legal Exps,Cornwall Council,Legal services for client ref: 5770,2511817 ,877.50, 09/04/2019,19.00,"1,053.00"
51,600100,Adult Social Care,Adult Social Care,Community,46106,External Legal Exps,Cornwall Council,Legal Services. Community DoL for client ref: 5780.,2511817 ,877.50, 09/04/2019,28.50,"1,053.00"
51,600100,Adult Social Care,Adult Social Care,Community,46106,External Legal Exps,Cornwall Council,50120  General Matters Social Care Adult�s Team Only � ongoing,2460412 ,"1,008.00", 09/04/2019,163.20,"1,209.60"
51,600100,Adult Social Care,Adult Social Care,Community,46106,External Legal Exps,Cornwall Council,50120  General Matters Social Care Adult�s Team Only � ongoing,2460424 ,"2,476.80", 09/04/2019,153.60,"2,972.16"
51,600100,Adult Social Care,Adult Social Care,Community,46106,External Legal Exps,Cornwall Council,Legal Services. Community DoL for client ref: 5780.,2460424 ,"2,476.80", 09/04/2019,67.20,"2,972.16"
51,600100,Adult Social Care,Adult Social Care,Community,22501,Rent,Natalie Jones,Line 5,2527108 ,690.00, 12/04/2019,690.00,690.00
51,600100,Adult Social Care,Adult Social Care,Community,31602,Air Travel,RBS Commercial Card Division,08-03-2019|6459|TRAVEL TEAM|ISLES OF SCILLY SS CO|TR21 0LJ|4411|FLIGHT 245877 REFUND|IOS_NSTINSON,2527247 ,"12,964.48", 12/04/2019,-161.02,"13,582.29"
51,600100,Adult Social Care,Adult Social Care,Community,31602,Air Travel,RBS Commercial Card Division,01-03-2019|6459|TRAVEL TEAM|ISLES OF SCILLY SS CO|TR21 0LJ|4411|FLIGHT 250493|IOS_NSTINSON,2527247 ,"12,964.48", 12/04/2019,113.06,"13,582.29"
51,600100,Adult Social Care,Adult Social Care,Community,46103,Hotel Expenses,RBS Commercial Card Division,04-03-2019|6517|SCOTT FULLER|PREMIER INN|TR27 4PN|3811||,2527247 ,"12,964.48", 12/04/2019,93.99,"13,582.29"
51,600100,Adult Social Care,Adult Social Care,Community,52001,Payments to Other Local Authorities,Cornwall Council,Independent Advocacy Service 2018/19 - IOS Contribution.,2526669 ,"5,000.00", 16/04/2019,"5,000.00","5,000.00"
51,600100,Adult Social Care,Adult Social Care,Community,22501,Rent,Natalie Jones,LINE 73,2552080 ,690.00, 17/05/2019,690.00,690.00
51,600100,Adult Social Care,Adult Social Care,Community,31602,Air Travel,RBS Commercial Card Division,11-04-2019|6459|TRAVEL TEAM|ISLES OF SCILLY SS CO|TR21 0LJ|4411|FLIGHT 258238|,2562926 ,"8,470.46", 30/05/2019,169.10,"8,939.84"
51,600100,Adult Social Care,Adult Social Care,Community,31602,Air Travel,RBS Commercial Card Division,15-04-2019|6459|TRAVEL TEAM|ISLES OF SCILLY SS CO|TR21 0LJ|4411|FLIGHT 258238 AMENDMENT|,2562926 ,"8,470.46", 30/05/2019,33.82,"8,939.84"
51,600100,Adult Social Care,Adult Social Care,Community,31602,Air Travel,RBS Commercial Card Division,24-04-2019|6459|TRAVEL TEAM|ISLES OF SCILLY SS CO|TR21 0LJ|4411|FLIGHT 258238 AMENDMENT|,2562926 ,"8,470.46", 30/05/2019,16.91,"8,939.84"
51,600100,Adult Social Care,Adult Social Care,Community,31602,Air Travel,RBS Commercial Card Division,25-04-2019|6459|TRAVEL TEAM|ISLES OF SCILLY SS CO|TR21 0LJ|4411|FLIGHT 260427|,2562926 ,"8,470.46", 30/05/2019,169.10,"8,939.84"
51,600100,Adult Social Care,Adult Social Care,Community,46103,Hotel Expenses,RBS Commercial Card Division,17-04-2019|6517|SCOTT FULLER|PREMIER INN|BS22 8LY|3811|HOTEL|IOS_AKHAN,2562926 ,"8,470.46", 30/05/2019,68.33,"8,939.84"
51,600100,Adult Social Care,Adult Social Care,Community,46103,Hotel Expenses,RBS Commercial Card Division,24-04-2019|6517|SCOTT FULLER|PREMIER INN|TR27 4PN|3811|HOTEL CANCELLED|IOS_AKHAN,2562926 ,"8,470.46", 30/05/2019,-85.99,"8,939.84"
51,600100,Adult Social Care,Adult Social Care,Community,46103,Hotel Expenses,RBS Commercial Card Division,24-04-2019|6517|SCOTT FULLER|PREMIER INN|BS22 8LY|3811|HOTEL CANCELLED|IOS_AKHAN,2562926 ,"8,470.46", 30/05/2019,-81.99,"8,939.84"
51,600100,Adult Social Care,Adult Social Care,Community,46103,Hotel Expenses,RBS Commercial Card Division,24-04-2019|6517|SCOTT FULLER|PREMIER INN|TR14 0RT|3811|HOTEL  LAST MINUTE CHANGE|IOS_AKHAN,2562926 ,"8,470.46", 30/05/2019,77.49,"8,939.84"
51,600100,Adult Social Care,Adult Social Care,Community,22501,Rent,One Off Payments,Miss Natalie Jones - Line 141,2577311 ,690.00, 14/06/2019,690.00,690.00
51,600100,Adult Social Care,Adult Social Care,Community,43532,Professional Fees - Other,Dr If Jhetam,Dr Jhetam: DoLs assessments and travel costs for assessments in March 2018 and 2019,2578850 ,"1,477.10", 18/06/2019,"1,477.10","1,477.10"
51,600100,Adult Social Care,Adult Social Care,Community,43532,Professional Fees - Other,Dr If Jhetam,Mental capacity assessments  for two clients estimate at 300 each and travel expenses estimate at 300,2584081 ,"1,189.42", 20/06/2019,"1,189.42","1,189.42"
51,600100,Adult Social Care,Adult Social Care,Community,43504,Consultants - Management,Montagu Evans,"Montagu Evans Consultancy
Re One Public Estate",2540088 ,"2,500.00", 27/06/2019,"2,500.00","3,000.00"
51,600100,Adult Social Care,Adult Social Care,Community,31602,Air Travel,RBS Commercial Card Division,30-04-2019|6459|TRAVEL TEAM|ISLES OF SCILLY SS CO|TR21 0LJ|4411|REFUND FLIGHT|IOS_NSTINSON,2585377 ,"16,386.79", 28/06/2019,-169.10,"17,042.35"
51,600100,Adult Social Care,Adult Social Care,Community,31602,Air Travel,RBS Commercial Card Division,20-05-2019|6459|TRAVEL TEAM|ISLES OF SCILLY SS CO|TR21 0LJ|4411|FLIGHT 264890|IOS_NSTINSON,2585377 ,"16,386.79", 28/06/2019,169.10,"17,042.35"
51,600100,Adult Social Care,Adult Social Care,Community,31602,Air Travel,RBS Commercial Card Division,20-05-2019|6459|TRAVEL TEAM|ISLES OF SCILLY SS CO|TR21 0LJ|4411|FLIGHT 264988|IOS_NSTINSON,2585377 ,"16,386.79", 28/06/2019,320.62,"17,042.35"
51,600100,Adult Social Care,Adult Social Care,Community,31602,Air Travel,RBS Commercial Card Division,20-05-2019|6459|TRAVEL TEAM|ISLES OF SCILLY SS CO|TR21 0LJ|4411|FLIGHT 264989|IOS_NSTINSON,2585377 ,"16,386.79", 28/06/2019,118.76,"17,042.35"
51,600100,Adult Social Care,Adult Social Care,Community,31602,Air Travel,RBS Commercial Card Division,08-05-2019|6459|TRAVEL TEAM|ISLES OF SCILLY SS CO|TR21 0LJ|4411|FLIGHT 262821|IOS_NSTINSON,2585377 ,"16,386.79", 28/06/2019,169.10,"17,042.35"
51,600100,Adult Social Care,Adult Social Care,Community,31602,Air Travel,RBS Commercial Card Division,09-05-2019|6459|TRAVEL TEAM|ISLES OF SCILLY SS CO|TR21 0LJ|4411|FLIGHT 262998|IOS_NSTINSON,2585377 ,"16,386.79", 28/06/2019,125.00,"17,042.35"
51,600100,Adult Social Care,Adult Social Care,Community,31602,Air Travel,RBS Commercial Card Division,09-05-2019|6459|TRAVEL TEAM|ISLES OF SCILLY SS CO|TR21 0LJ|4411|FLIGHT 262998 (SHUTTLE)|IOS_NSTINSON,2585377 ,"16,386.79", 28/06/2019,6.00,"17,042.35"
51,600100,Adult Social Care,Adult Social Care,Community,31602,Air Travel,RBS Commercial Card Division,09-05-2019|6459|TRAVEL TEAM|ISLES OF SCILLY SS CO|TR21 0LJ|4411|FLIGHT 262998 SHUTTLE|IOS_NSTINSON,2585377 ,"16,386.79", 28/06/2019,6.00,"17,042.35"
51,600100,Adult Social Care,Adult Social Care,Community,31602,Air Travel,RBS Commercial Card Division,13-05-2019|6459|TRAVEL TEAM|ISLES OF SCILLY SS CO|TR21 0LJ|4411|FLIGHT 262821|IOS_NSTINSON,2585377 ,"16,386.79", 28/06/2019,101.46,"17,042.35"
51,600100,Adult Social Care,Adult Social Care,Community,31602,Air Travel,RBS Commercial Card Division,13-05-2019|6459|TRAVEL TEAM|ISLES OF SCILLY SS CO|TR21 0LJ|4411|FLIGHT 262998 - AMENDMENT|IOS_NSTINSON,2585377 ,"16,386.79", 28/06/2019,35.50,"17,042.35"
51,600100,Adult Social Care,Adult Social Care,Community,46103,Hotel Expenses,RBS Commercial Card Division,19-05-2019|6517|SCOTT FULLER|PREMIER INN|TR3 6JT|3811||,2585377 ,"16,386.79", 28/06/2019,99.16,"17,042.35"
51,600100,Adult Social Care,Adult Social Care,Community,46103,Hotel Expenses,RBS Commercial Card Division,14-05-2019|6517|SCOTT FULLER|PREMIER INN|BS22 8LY|3811||,2585377 ,"16,386.79", 28/06/2019,87.49,"17,042.35"
51,600100,Adult Social Care,Adult Social Care,Community,46103,Hotel Expenses,RBS Commercial Card Division,14-05-2019|6517|SCOTT FULLER|PREMIER INN|TR27 4PN|3811||,2585377 ,"16,386.79", 28/06/2019,86.66,"17,042.35"
51,600101,Better Care Fund,Adult Social Care,Community,31603,Other Public Transport,Tresco Estate,"Concessionary Fares single tickets for Bryher, Tresco & St. Martins, 1st April 2018 - 31st March 2019",2519397 ,"1,572.00", 09/04/2019,"1,572.00","1,572.00"
51,600101,Better Care Fund,Adult Social Care,Community,47013,Grants & Conts to Other Bodies - Discretionary,Age UK Cornwall & The Isles of Scilly (Age Concern In Cornwall & The Isles of Scilly),Line 4,2527119 ,"3,375.00", 12/04/2019,"3,375.00","3,375.00"
51,600101,Better Care Fund,Adult Social Care,Community,62004,Direct Payments,Mr & Mrs A Holwill,Line 15,2527129 ,"1,056.00", 12/04/2019,"1,056.00","1,056.00"
51,600101,Better Care Fund,Adult Social Care,Community,47013,Grants & Conts to Other Bodies - Discretionary,Age UK Cornwall & The Isles of Scilly (Age Concern In Cornwall & The Isles of Scilly),LINE 72,2552066 ,"3,375.00", 17/05/2019,"3,375.00","3,375.00"
51,600101,Better Care Fund,Adult Social Care,Community,62004,Direct Payments,Mr & Mrs A Holwill,Line 76,2558168 ,"1,056.00", 23/05/2019,"1,056.00","1,056.00"
51,600101,Better Care Fund,Adult Social Care,Community,31603,Other Public Transport,St Mary's Boatmens Association,"St. Mary's Boatmen Association: Concessionary Fare tickets for St. Martins for the period 1st April 2019 - 31st March 2020. Tickets @ 6 each, estimate of 10,800",2563885 ,546.00, 04/06/2019,546.00,546.00
51,600101,Better Care Fund,Adult Social Care,Community,31603,Other Public Transport,St Mary's Boatmens Association,"St. Mary's Boatmen Association: Concessionary Fare tickets for St. Martins for the period 1st April 2019 - 31st March 2020. Tickets @ 6 each, estimate of 10,800",2572202 ,624.00, 06/06/2019,624.00,624.00
51,600101,Better Care Fund,Adult Social Care,Community,47013,Grants & Conts to Other Bodies - Discretionary,Age UK Cornwall & The Isles of Scilly (Age Concern In Cornwall & The Isles of Scilly),LINE 136,2572104 ,"3,375.00", 07/06/2019,"3,375.00","3,375.00"
51,600101,Better Care Fund,Adult Social Care,Community,62004,Direct Payments,Mr & Mrs A Holwill,LINE 139,2572100 ,"1,056.00", 07/06/2019,"1,056.00","1,056.00"
51,600101,Better Care Fund,Adult Social Care,Community,43532,Professional Fees - Other,St Mary's Health Centre,"St. Mary's Health Centre - rehabilitation physiotherapy role 20,000.00 for 2019-2020",2578844 ,"5,000.00", 18/06/2019,"5,000.00","5,000.00"
51,600102,One Public Estate_,Adult Social Care,Community,43504,Consultants - Management,Community 1st Cornwall Ltd,"Community 1st: project management, travel, other consultancy costs (including architects)",2530902 ,"32,994.62", 18/04/2019,"32,994.62","39,593.54"
51,600102,One Public Estate_,Adult Social Care,Community,31503,Taxi and Minibus,RBS Commercial Card Division,11-04-2019|2419|AISLING KHAN|A2B TAXIS TRURO LTD|TR4 9AU|4121|TAXI TO MEETING|,2562926 ,"8,470.46", 30/05/2019,5.00,"8,939.84"
51,600102,One Public Estate_,Adult Social Care,Community,31601,Rail,RBS Commercial Card Division,10-04-2019|2419|AISLING KHAN|GWR WEST RP PENZA|TR18 2LT|4112|RAIL TRAVEL TO NHS MEETING|,2562926 ,"8,470.46", 30/05/2019,4.50,"8,939.84"
51,600102,One Public Estate_,Adult Social Care,Community,31601,Rail,RBS Commercial Card Division,11-04-2019|2419|AISLING KHAN|GWR TRURO SST|TR1 3HH|4112|TRAIN TO OPE MEETING|,2562926 ,"8,470.46", 30/05/2019,7.20,"8,939.84"
51,600102,One Public Estate_,Adult Social Care,Community,46103,Hotel Expenses,RBS Commercial Card Division,10-04-2019|2419|AISLING KHAN|ST MICHAELS HOTEL|TR11 4NB|7011|ACCOMMODATION FOR MEETING|,2562926 ,"8,470.46", 30/05/2019,71.67,"8,939.84"
51,600102,One Public Estate_,Adult Social Care,Community,43504,Consultants - Management,Community 1st Cornwall Ltd,Community 1st: consultancy services for OPE project,2578794 ,"33,312.99", 18/06/2019,"33,312.99","39,975.59"
51,600102,One Public Estate_,Adult Social Care,Community,43504,Consultants - Management,The Core Health Consultancy t/a iCareiMove Ltd,iCareiMove: consultancy services for service design for OPE project,2578716 ,"1,000.00", 18/06/2019,"1,000.00","1,200.00"
51,600102,One Public Estate_,Adult Social Care,Community,31503,Taxi and Minibus,RBS Commercial Card Division,09-05-2019|2419|AISLING KHAN|A2B TAXIS TRURO LTD|TR4 9AU|4121|TAXI TO OPE MEETING|,2585377 ,"16,386.79", 28/06/2019,5.00,"17,042.35"
51,600102,One Public Estate_,Adult Social Care,Community,31602,Air Travel,RBS Commercial Card Division,02-05-2019|6459|TRAVEL TEAM|ISLES OF SCILLY SS CO|TR21 0LJ|4411|FLIGHT  245001 - AMENDMENT|IOS_NSTINSON,2585377 ,"16,386.79", 28/06/2019,102.12,"17,042.35"
51,600102,One Public Estate_,Adult Social Care,Community,31602,Air Travel,RBS Commercial Card Division,02-05-2019|6459|TRAVEL TEAM|ISLES OF SCILLY SS CO|TR21 0LJ|4411|FLIGHT 261864|IOS_NSTINSON,2585377 ,"16,386.79", 28/06/2019,320.62,"17,042.35"
51,600102,One Public Estate_,Adult Social Care,Community,31602,Air Travel,RBS Commercial Card Division,02-05-2019|6459|TRAVEL TEAM|ISLES OF SCILLY SS CO|TR21 0LJ|4411|FLIGHT 245287 - REFUND|IOS_NSTINSON,2585377 ,"16,386.79", 28/06/2019,-256.50,"17,042.35"
51,600102,One Public Estate_,Adult Social Care,Community,31602,Air Travel,RBS Commercial Card Division,03-05-2019|6459|TRAVEL TEAM|ISLES OF SCILLY SS CO|TR21 0LJ|4411|FLIGHT REFUND|IOS_NSTINSON,2585377 ,"16,386.79", 28/06/2019,-16.52,"17,042.35"
51,600102,One Public Estate_,Adult Social Care,Community,31602,Air Travel,RBS Commercial Card Division,07-05-2019|6459|TRAVEL TEAM|ISLES OF SCILLY SS CO|TR21 0LJ|4411|FLIGHT 262642|IOS_NSTINSON,2585377 ,"16,386.79", 28/06/2019,169.10,"17,042.35"
51,600102,One Public Estate_,Adult Social Care,Community,31602,Air Travel,RBS Commercial Card Division,07-05-2019|6459|TRAVEL TEAM|ISLES OF SCILLY SS CO|TR21 0LJ|4411|FLIGHT 262641|IOS_NSTINSON,2585377 ,"16,386.79", 28/06/2019,169.10,"17,042.35"
51,600102,One Public Estate_,Adult Social Care,Community,31602,Air Travel,RBS Commercial Card Division,09-05-2019|6459|TRAVEL TEAM|ISLES OF SCILLY SS CO|TR21 0LJ|4411|FLIGHT 262954|IOS_NSTINSON,2585377 ,"16,386.79", 28/06/2019,218.50,"17,042.35"
51,600102,One Public Estate_,Adult Social Care,Community,31602,Air Travel,RBS Commercial Card Division,10-05-2019|6459|TRAVEL TEAM|ISLES OF SCILLY S S CO|TR18 4BZ|4411|FLIGHT 259373|IOS_NSTINSON,2585377 ,"16,386.79", 28/06/2019,287.86,"17,042.35"
51,600102,One Public Estate_,Adult Social Care,Community,31602,Air Travel,RBS Commercial Card Division,13-05-2019|6459|TRAVEL TEAM|ISLES OF SCILLY SS CO|TR21 0LJ|4411|FLIGHT 259373|IOS_NSTINSON,2585377 ,"16,386.79", 28/06/2019,108.66,"17,042.35"
51,600102,One Public Estate_,Adult Social Care,Community,46102,Subsistence,RBS Commercial Card Division,09-05-2019|2419|AISLING KHAN|ISLES OF|TR19 7RL|4511|SUBSISTENCE|,2585377 ,"16,386.79", 28/06/2019,2.85,"17,042.35"
51,600102,One Public Estate_,Adult Social Care,Community,46109,Car Park Charges,RBS Commercial Card Division,09-05-2019|2419|AISLING KHAN|PENZANCE HARBOUR CAR P|TR18 2GB|7523|CAR PARKING FOR OPE MEETING|,2585377 ,"16,386.79", 28/06/2019,0.50,"17,042.35"
51,600103,Short and Long Term Support 18-64,Adult Social Care,Community,57053,Independent Schools - Private Contractors,One Off Payments,Line 9,2527127 ,"6,691.40", 12/04/2019,"6,691.40","6,691.40"
51,600103,Short and Long Term Support 18-64,Adult Social Care,Community,57053,Independent Schools - Private Contractors,One Off Payments,LINE 69,2552068 ,"6,691.40", 17/05/2019,"6,691.40","6,691.40"
51,600103,Short and Long Term Support 18-64,Adult Social Care,Community,31602,Air Travel,RBS Commercial Card Division,09-04-2019|6459|TRAVEL TEAM|ISLES OF SCILLY SS CO|TR21 0LJ|4411|FLIGHT CHANGE 243753|,2562926 ,"8,470.46", 30/05/2019,33.82,"8,939.84"
51,600103,Short and Long Term Support 18-64,Adult Social Care,Community,57053,Independent Schools - Private Contractors,One Off Payments,LINE 127,2572108 ,"6,691.40", 07/06/2019,"6,691.40","6,691.40"
51,600104,Short and Long Term Support 65,Adult Social Care,Community,57066,Independent Meals at Home - Private Contractors,Cornwall Partnership NHS Foundation Trust,"Provision of Meals on Wheels for the period of 1st April 2018-31st March 2019, Meals @ 4 each, estimate of 850.00 per month before VAT.",2512251 ,968.00, 04/04/2019,968.00,"1,161.60"
51,600104,Short and Long Term Support 65,Adult Social Care,Community,46106,External Legal Exps,Cornwall Council,Legal Services for Client ref 5770,2503406 ,905.60, 09/04/2019,326.40,"1,070.72"
51,600104,Short and Long Term Support 65,Adult Social Care,Community,46106,External Legal Exps,Cornwall Council,Legal Services for Client ref 5770,2460424 ,"2,476.80", 09/04/2019,134.40,"2,972.16"
51,600104,Short and Long Term Support 65,Adult Social Care,Community,46106,External Legal Exps,Cornwall Council,Legal Services for Client ref 5770,2509141 ,"2,731.50", 09/04/2019,672.00,"3,240.44"
51,600104,Short and Long Term Support 65,Adult Social Care,Community,31602,Air Travel,RBS Commercial Card Division,18-03-2019|6459|TRAVEL TEAM|ISLES OF SCILLY SS CO|TR21 0LJ|4411|FLIGHT 253537|IOS_NSTINSON,2527247 ,"12,964.48", 12/04/2019,118.76,"13,582.29"
51,600104,Short and Long Term Support 65,Adult Social Care,Community,57066,Independent Meals at Home - Private Contractors,Cornwall Partnership NHS Foundation Trust,"Provision of Meals on Wheels for the period of 1st April 2018-31st March 2019, Meals @ 4 each, estimate of 850.00 per month before VAT.",2518173 ,"1,224.00", 30/04/2019,"1,224.00","1,468.80"
51,600104,Short and Long Term Support 65,Adult Social Care,Community,57093,Residential Care (Long Stay) - Health,N Notaro Home Ltd Campania Care Home,"Notaro Care Home Fees for client 5770 from the 1st April 2019 - 31st March 2020, 52 weeks @ 830..00 per week",2540067 ,"3,557.14", 07/05/2019,"3,557.14","3,557.14"
51,600104,Short and Long Term Support 65,Adult Social Care,Community,57093,Residential Care (Long Stay) - Health,N Notaro Home Ltd Campania Care Home,"Notaro Care Home Fees for client 5770 from the 1st April 2019 - 31st March 2020, 52 weeks @ 830..00 per week",2558316 ,"3,675.71", 23/05/2019,"3,675.71","3,675.71"
51,600104,Short and Long Term Support 65,Adult Social Care,Community,57066,Independent Meals at Home - Private Contractors,Cornwall Partnership NHS Foundation Trust,"Meals on Wheels: Provision by Cornwall Partnership NHS FT, for the period 1st April 2019 - 31st March 2020, estimate of 900 pm before tax",2563881 ,"1,372.00", 04/06/2019,"1,372.00","1,646.40"
51,600104,Short and Long Term Support 65,Adult Social Care,Community,57093,Residential Care (Long Stay) - Health,N Notaro Home Ltd Campania Care Home,"Notaro Care Home Fees for client 5770 from the 1st April 2019 - 31st March 2020, 52 weeks @ 830..00 per week",2584071 ,"3,557.14", 20/06/2019,"3,557.14","3,557.14"
51,600105,Park House,Adult Social Care,Community,73409,Catering Exp,Nisbets plc,Crockery and Catering Equipment for Park House,2506716 ,927.32, 11/04/2019,927.32,"1,112.78"
51,600105,Park House,Adult Social Care,Community,31602,Air Travel,RBS Commercial Card Division,18-03-2019|6459|TRAVEL TEAM|ISLES OF SCILLY SS CO|TR21 0LJ|4411|FLIGHT 253576|IOS_NSTINSON,2527247 ,"12,964.48", 12/04/2019,181.10,"13,582.29"
51,600105,Park House,Adult Social Care,Community,31602,Air Travel,RBS Commercial Card Division,22-03-2019|6459|TRAVEL TEAM|ISLES OF SCILLY SS CO|TR21 0LJ|4411|FLIGHT 253576 - AMENDMENT|IOS_NSTINSON,2527247 ,"12,964.48", 12/04/2019,18.11,"13,582.29"
51,600105,Park House,Adult Social Care,Community,31602,Air Travel,RBS Commercial Card Division,05-03-2019|6459|TRAVEL TEAM|ISLES OF SCILLY SS CO|TR21 0LJ|4411|FLIGHT 251205|IOS_NSTINSON,2527247 ,"12,964.48", 12/04/2019,118.76,"13,582.29"
51,600105,Park House,Adult Social Care,Community,31602,Air Travel,RBS Commercial Card Division,05-03-2019|6459|TRAVEL TEAM|ISLES OF SCILLY SS CO|TR21 0LJ|4411|FLIGHT 251318 SHUTTLE|IOS_NSTINSON,2527247 ,"12,964.48", 12/04/2019,12.00,"13,582.29"
51,600105,Park House,Adult Social Care,Community,31602,Air Travel,RBS Commercial Card Division,05-03-2019|6459|TRAVEL TEAM|ISLES OF SCILLY SS CO|TR21 0LJ|4411|FLIGHT 251318|IOS_NSTINSON,2527247 ,"12,964.48", 12/04/2019,165.30,"13,582.29"
51,600105,Park House,Adult Social Care,Community,41118,Health & Safety Equipment,RBS Commercial Card Division,14-03-2019|6517|SCOTT FULLER|AMZN MKTP UK MW5IS3804|L2338|5942||,2527247 ,"12,964.48", 12/04/2019,49.99,"13,582.29"
51,600105,Park House,Adult Social Care,Community,46109,Car Park Charges,RBS Commercial Card Division,06-03-2019|6517|SCOTT FULLER|ROYAL CORNWALL HOS|TR1 3LJ|8062||,2527247 ,"12,964.48", 12/04/2019,20.00,"13,582.29"
51,600105,Park House,Adult Social Care,Community,41304,Cleaning & Domestic Materials,Protec Healthcare LLP,Protec: healthcare supplies for park house,2530958 ,"1,177.29", 18/04/2019,"1,177.29","1,412.75"
51,600105,Park House,Adult Social Care,Community,11601,Agency Costs,Phoenix Health Care Services Ltd,"Phoenix Health Care Services: Agency Carer Gillian, 27-29 March 2019",2534389 ,686.00, 30/04/2019,416.50,686.00
51,600105,Park House,Adult Social Care,Community,11601,Agency Costs,Phoenix Health Care Services Ltd,Phoenix: agency carer for park house 19-26th March (G Payne),2534389 ,686.00, 30/04/2019,269.50,686.00
51,600105,Park House,Adult Social Care,Community,11601,Agency Costs,Newcross Healthcare Solutions Ltd,"Newcross: agency carer for Park House, 21st Feb - 1st March (K Bluszcz)",2549960 ,609.82, 14/05/2019,609.82,609.82
51,600105,Park House,Adult Social Care,Community,49002,Miscellaneous Expenditure,Tresco Estate,"Tresco Boats: Concessionary Fares Tickets for the period 1st April 2019 - 31st March 2020, estimate of 16,500 for the year",2547384 ,698.50, 14/05/2019,698.50,698.50
51,600105,Park House,Adult Social Care,Community,21210,R&M - Electrical - Reactive,Evans Electricals,Evans Electrical: ongoing PO for Park House only 2018/19,2534351 ,796.12, 16/05/2019,796.12,734.52
51,600105,Park House,Adult Social Care,Community,21210,R&M - Electrical - Reactive,Evans Electricals,Evans Electrical: ongoing PO for Park House only 2018/19,2534351 ,796.12, 16/05/2019,488.12,734.52
51,600105,Park House,Adult Social Care,Community,21210,R&M - Electrical - Reactive,Evans Electricals,Evans Electrical: ongoing PO for Park House only 2018/19,2534351 ,796.12, 16/05/2019,308.00,734.52
51,600105,Park House,Adult Social Care,Community,21210,R&M - Electrical - Reactive,Evans Electricals,Evans Electrical: ongoing PO for Park House only 2018/19,2534351 ,796.12, 16/05/2019,-796.12,734.52
51,600105,Park House,Adult Social Care,Community,22501,Rent,Scillonian Holdings Ltd,LINE 25,2552089 ,550.00, 17/05/2019,550.00,550.00
51,600105,Park House,Adult Social Care,Community,11601,Agency Costs,Newcross Healthcare Solutions Ltd,"Newcross: agency carer for Park House, 21st Feb - 1st March (K Bluszcz)",2549962 ,812.55, 21/05/2019,812.55,812.55
51,600105,Park House,Adult Social Care,Community,22501,Rent,One Off Payments,Line 92,2558172 ,900.00, 23/05/2019,900.00,900.00
51,600105,Park House,Adult Social Care,Community,41304,Cleaning & Domestic Materials,Protec Healthcare LLP,Protec: healthcare supplies for Park House (April - June 2019),2557725 ,"1,076.49", 23/05/2019,"1,076.49","1,291.79"
51,600105,Park House,Adult Social Care,Community,31602,Air Travel,RBS Commercial Card Division,29-03-2019|6459|TRAVEL TEAM|ISLES OF SCILLY SS CO|TR21 0LJ|4411|FLIGHT REFUND 253578|,2562926 ,"8,470.46", 30/05/2019,-38.30,"8,939.84"
51,600105,Park House,Adult Social Care,Community,31602,Air Travel,RBS Commercial Card Division,18-04-2019|6459|TRAVEL TEAM|ISLES OF SCILLY SS CO|TR21 0LJ|4411|FLIGHT 259389|,2562926 ,"8,470.46", 30/05/2019,118.76,"8,939.84"
51,600105,Park House,Adult Social Care,Community,41103,Equipment - Spares,RBS Commercial Card Division,06-04-2019|6517|SCOTT FULLER|AMZNMKTPLACE AMAZON.CO|0|5999|TOILET SEAT|IOS_AKHAN,2562926 ,"8,470.46", 30/05/2019,32.87,"8,939.84"
51,600105,Park House,Adult Social Care,Community,41118,Health & Safety Equipment,RBS Commercial Card Division,06-04-2019|6517|SCOTT FULLER|AMZNMKTPLACE AMAZON.CO|0|5999|WIRELESS PANIC ALARM KEY PAD|IOS_AKHAN,2562926 ,"8,470.46", 30/05/2019,10.78,"8,939.84"
51,600105,Park House,Adult Social Care,Community,41118,Health & Safety Equipment,RBS Commercial Card Division,13-04-2019|6517|SCOTT FULLER|AMZNMKTPLACE|EC2A 2FA|5999|DOOR ALARM|IOS_AKHAN,2562926 ,"8,470.46", 30/05/2019,14.52,"8,939.84"
51,600105,Park House,Adult Social Care,Community,41118,Health & Safety Equipment,RBS Commercial Card Division,16-04-2019|6517|SCOTT FULLER|AMZN MKTP UK MZ23R5QB4|0|5942|DOOR ALARM|IOS_AKHAN,2562926 ,"8,470.46", 30/05/2019,20.74,"8,939.84"
51,600105,Park House,Adult Social Care,Community,41118,Health & Safety Equipment,RBS Commercial Card Division,17-04-2019|6517|SCOTT FULLER|PREMIER INN|TR27 4PN|3811||IOS_AKHAN,2562926 ,"8,470.46", 30/05/2019,71.66,"8,939.84"
51,600105,Park House,Adult Social Care,Community,41118,Health & Safety Equipment,RBS Commercial Card Division,18-04-2019|6517|SCOTT FULLER|AMZN MKTP UK MZ63K8DI4|0|5942|DIGITAL KEY PAD|IOS_AKHAN,2562926 ,"8,470.46", 30/05/2019,41.66,"8,939.84"
51,600105,Park House,Adult Social Care,Community,41118,Health & Safety Equipment,RBS Commercial Card Division,18-04-2019|6517|SCOTT FULLER|AMZNMKTPLACE AMAZON.CO|0|5999|FIRE EXIT WIRELESS DOOR ALARMS|IOS_AKHAN,2562926 ,"8,470.46", 30/05/2019,89.80,"8,939.84"
51,600105,Park House,Adult Social Care,Community,41118,Health & Safety Equipment,RBS Commercial Card Division,18-04-2019|6517|SCOTT FULLER|AMZN MKTP UK MZ6LV1DR4|0|5942|FOUR PUSH BUTTON  KEY PADS|IOS_AKHAN,2562926 ,"8,470.46", 30/05/2019,58.91,"8,939.84"
51,600105,Park House,Adult Social Care,Community,41201,Office Furniture,RBS Commercial Card Division,03-04-2019|6517|SCOTT FULLER|AMZNMKTPLACE AMAZON.CO|0|5999|COAT STAND|IOS_AKHAN,2562926 ,"8,470.46", 30/05/2019,24.99,"8,939.84"
51,600105,Park House,Adult Social Care,Community,45207,IT Hardware Purchases,Cornwall Council,Cornwall Council: CIOS electronic care planning security review for Park House,2551526 ,688.00, 30/05/2019,688.00,825.60
51,600105,Park House,Adult Social Care,Community,22501,Rent,One Off Payments,Alan Hartwell Line 144,2577324 ,600.00, 14/06/2019,600.00,600.00
51,600105,Park House,Adult Social Care,Community,22501,Rent,Scillonian Holdings Ltd,line 150,2583244 ,550.00, 20/06/2019,550.00,550.00
51,600105,Park House,Adult Social Care,Community,31602,Air Travel,RBS Commercial Card Division,15-05-2019|6459|TRAVEL TEAM|ISLES OF SCILLY SS CO|TR21 0LJ|4411|FLIGHT 264085|IOS_NSTINSON,2585377 ,"16,386.79", 28/06/2019,152.00,"17,042.35"
51,600110,Post 16 Youth Services,Childrens Services,Community,31602,Air Travel,RBS Commercial Card Division,13-03-2019|6459|TRAVEL TEAM|ISLES OF SCILLY SS CO|TR21 0LJ|4411|FLIGHT 250999 REFUND|IOS_NSTINSON,2527247 ,"12,964.48", 12/04/2019,-119.56,"13,582.29"
51,600110,Post 16 Youth Services,Childrens Services,Community,31602,Air Travel,RBS Commercial Card Division,20-03-2019|6459|TRAVEL TEAM|ISLES OF SCILLY SS CO|TR21 0LJ|4411|FLIGHT 254002|IOS_NSTINSON,2527247 ,"12,964.48", 12/04/2019,182.10,"13,582.29"
51,600110,Post 16 Youth Services,Childrens Services,Community,31602,Air Travel,RBS Commercial Card Division,04-03-2019|6459|TRAVEL TEAM|ISLES OF SCILLY SS CO|TR21 0LJ|4411|FLIGHT 250999|IOS_NSTINSON,2527247 ,"12,964.48", 12/04/2019,119.56,"13,582.29"
51,600110,Post 16 Youth Services,Childrens Services,Community,31602,Air Travel,RBS Commercial Card Division,30-04-2019|6459|TRAVEL TEAM|ISLES OF SCILLY SS CO|TR21 0LJ|4411|FLIGHT 261365|IOS_NSTINSON,2585377 ,"16,386.79", 28/06/2019,125.26,"17,042.35"
51,600110,Post 16 Youth Services,Childrens Services,Community,31602,Air Travel,RBS Commercial Card Division,17-05-2019|6459|TRAVEL TEAM|ISLES OF SCILLY SS CO|TR21 0LJ|4411|FLIGHT 264532|IOS_NSTINSON,2585377 ,"16,386.79", 28/06/2019,181.10,"17,042.35"
51,600111,Universal Youth Services,Childrens Services,Community,47002,Subscriptions,British Youth Council,"BYC Membership 2019-20
LA Youth Voice Member",2552300 ,540.00, 16/05/2019,540.00,540.00
51,600113,Early Year Provision,Childrens Services,Community,47001,Grants & Conts to Other Bodies - Non Discretionary,Katt Hennessey,Non Discretionary EY funding,2528209 ,939.00, 16/04/2019,407.10,939.00
51,600113,Early Year Provision,Childrens Services,Community,47013,Grants & Conts to Other Bodies - Discretionary,Katt Hennessey,Discretionary EY funding,2528209 ,939.00, 16/04/2019,531.90,939.00
51,600113,Early Year Provision,Childrens Services,Community,31603,Other Public Transport,Tresco Estate,Tresco Boats EYS Boating Inv 54043 Feb -March 2019,2531708 ,"3,151.50", 18/04/2019,"3,151.50","3,151.50"
51,600113,Early Year Provision,Childrens Services,Community,47001,Grants & Conts to Other Bodies - Non Discretionary,Mrs H V Glenn,,2534421 ,863.41, 30/04/2019,552.92,863.41
51,600113,Early Year Provision,Childrens Services,Community,47013,Grants & Conts to Other Bodies - Discretionary,Mrs H V Glenn,EY Grant non discretionary / discretionary,2534421 ,863.41, 30/04/2019,310.49,863.41
51,600113,Early Year Provision,Childrens Services,Community,47001,Grants & Conts to Other Bodies - Non Discretionary,Katt Hennessey,Non Discretionary EY funding,2539488 ,772.44, 07/05/2019,379.50,772.44
51,600113,Early Year Provision,Childrens Services,Community,47013,Grants & Conts to Other Bodies - Discretionary,Mrs T Wallace,EY Grant discretionary,2539499 ,773.66, 07/05/2019,773.66,773.66
51,600113,Early Year Provision,Childrens Services,Community,47013,Grants & Conts to Other Bodies - Discretionary,Katt Hennessey,Discretionary EY funding,2539488 ,772.44, 07/05/2019,392.94,772.44
51,600113,Early Year Provision,Childrens Services,Community,47013,Grants & Conts to Other Bodies - Discretionary,Mrs T Wallace,,2539492 ,643.88, 07/05/2019,643.88,643.88
51,600113,Early Year Provision,Childrens Services,Community,47001,Grants & Conts to Other Bodies - Non Discretionary,Mrs H V Glenn,EY GRANT DISCRETIONARY,2547316 ,645.16, 09/05/2019,370.30,645.16
51,600113,Early Year Provision,Childrens Services,Community,47013,Grants & Conts to Other Bodies - Discretionary,Mrs H V Glenn,EY GRANT DISCRETIONARY,2547316 ,645.16, 09/05/2019,274.86,645.16
51,600113,Early Year Provision,Childrens Services,Community,41104,Equipment & Plant - Direct Purchase,RBS Commercial Card Division,28-03-2019|7427|LYNN PLUMMER|EDPA LTD|PE6 9NF|5641|STAIR GATES FOR TOWN HALL STAY AND PLAY|IOS_AKHAN,2562926 ,"8,470.46", 30/05/2019,37.49,"8,939.84"
51,600113,Early Year Provision,Childrens Services,Community,28001,Maintenance of Grounds,Pernic Forge,Pernic Forge - Playpark Repairs,2566003 ,435.00, 04/06/2019,435.00,522.00
51,600113,Early Year Provision,Childrens Services,Community,47001,Grants & Conts to Other Bodies - Non Discretionary,Mrs H V Glenn,EY Grant non discretionary,2572939 ,846.84, 11/06/2019,460.00,846.84
51,600113,Early Year Provision,Childrens Services,Community,47001,Grants & Conts to Other Bodies - Non Discretionary,Katt Hennessey,Non Discretionary EY funding,2572979 ,"1,111.99", 11/06/2019,450.80,"1,111.99"
51,600113,Early Year Provision,Childrens Services,Community,47013,Grants & Conts to Other Bodies - Discretionary,Mrs H V Glenn,EY Grant discretionary,2572939 ,846.84, 11/06/2019,386.84,846.84
51,600113,Early Year Provision,Childrens Services,Community,47013,Grants & Conts to Other Bodies - Discretionary,Katt Hennessey,Discretionary EY funding,2572979 ,"1,111.99", 11/06/2019,661.19,"1,111.99"
51,600114,Primary Provision,Childrens Services,Community,47013,Grants & Conts to Other Bodies - Discretionary,St Agnes Out Of School Club,,2513740 ,589.98, 04/04/2019,589.98,589.98
51,600114,Primary Provision,Childrens Services,Community,47013,Grants & Conts to Other Bodies - Discretionary,St Martins Out Of School Club,,2513736 ,"1,376.62", 04/04/2019,"1,376.62","1,376.62"
51,600115,Children Centres,Childrens Services,Community,21236,R&M - Playgrounds - Reactive,The Play Inspection Company Ltd,Inspection of Play Parks,2552008 ,816.00, 16/05/2019,816.00,979.20
51,600117,Five Island School,Childrens Services,Community,43506,Professional Fees - Legal,Cornwall Council,Re Legal Services and Support for Five Islands School re MUGA Pitch,2503406 ,905.60, 09/04/2019,86.40,"1,070.72"
51,600117,Five Island School,Childrens Services,Community,43506,Professional Fees - Legal,Cornwall Council,Re Legal Services and Support for Five Islands School re MUGA Pitch,2460424 ,"2,476.80", 09/04/2019,86.40,"2,972.16"
51,600117,Five Island School,Childrens Services,Community,47001,Grants & Conts to Other Bodies - Non Discretionary,Leading Edge Academies Partnership (Five Islands),2019- FIS Leading Edge Academy  Teachers Grant,2555059 ,"5,498.00", 21/05/2019,"5,498.00","5,498.00"
51,600117,Five Island School,Childrens Services,Community,22003,Gas,British Gas Business,British Gas Carn Gwarval 22nd March-18th April,2552439 ,"1,414.73", 30/05/2019,"1,414.73","1,697.67"
51,600120,Post 16 Travel and Accommodation Grant,Childrens Services,Community,47016,Accomodation Grants,Neil Moorton,2018-19 Post 16 Grant A4 Moorton E,2517258 ,852.66, 04/04/2019,852.66,852.66
51,600120,Post 16 Travel and Accommodation Grant,Childrens Services,Community,47016,Accomodation Grants,Mr Craig Dryden,2018-19 Post 16 Grant A5 Dryden W,2517244 ,975.00, 04/04/2019,450.00,975.00
51,600120,Post 16 Travel and Accommodation Grant,Childrens Services,Community,47016,Accomodation Grants,Mr Craig Dryden,2018-19 Post 16 Grant A4 Dryden W,2517244 ,975.00, 04/04/2019,525.00,975.00
51,600120,Post 16 Travel and Accommodation Grant,Childrens Services,Community,47016,Accomodation Grants,Dr Heike Dorn,2018-19 Post 16 Grant A3 Dorn S,2513748 ,"1,705.33", 04/04/2019,"1,705.33","1,705.33"
51,600120,Post 16 Travel and Accommodation Grant,Childrens Services,Community,47016,Accomodation Grants,Mr & Mrs P Whittaker,2018-19 Post 16 Grant A5 Whittaker M,2513846 ,852.66, 04/04/2019,852.66,852.66
51,600120,Post 16 Travel and Accommodation Grant,Childrens Services,Community,47016,Accomodation Grants,M G Smalley,2018-19-Post 16 Grant A5 Smalley C,2517017 ,952.66, 04/04/2019,852.66,952.66
51,600120,Post 16 Travel and Accommodation Grant,Childrens Services,Community,47017,Travel Grant,M G Smalley,2018-19-Post 16 Grant T4Smalley C,2517017 ,952.66, 04/04/2019,100.00,952.66
51,600120,Post 16 Travel and Accommodation Grant,Childrens Services,Community,47016,Accomodation Grants,Helen Pearce,2018-19 Post 16 Grant A3 Austin J,2526651 ,"1,705.20", 11/04/2019,"1,705.20","1,705.20"
51,600120,Post 16 Travel and Accommodation Grant,Childrens Services,Community,47016,Accomodation Grants,Mrs Jo Hathway,2018-19 Post 16 Grant A5 Hathway J,2527184 ,809.55, 11/04/2019,750.00,809.55
51,600120,Post 16 Travel and Accommodation Grant,Childrens Services,Community,47016,Accomodation Grants,Mr Matthew Honeychurch,2018-19 Post 16 Grant A5   Jesenko J,2527061 ,952.66, 11/04/2019,852.66,952.66
51,600120,Post 16 Travel and Accommodation Grant,Childrens Services,Community,47017,Travel Grant,Mrs Jo Hathway,2018-19 Post 16 Grant T4,2527184 ,809.55, 11/04/2019,59.55,809.55
51,600120,Post 16 Travel and Accommodation Grant,Childrens Services,Community,47017,Travel Grant,Mr Matthew Honeychurch,2018-19 Post 16 Grant T4  Jesenko J,2527061 ,952.66, 11/04/2019,100.00,952.66
51,600120,Post 16 Travel and Accommodation Grant,Childrens Services,Community,47016,Accomodation Grants,Mrs G Hulands,2018-19 Post 16 Grant A5 Hulands K / 2018-19 Post 16 Grant T4 Hulands K,2538225 ,872.61, 02/05/2019,852.66,872.61
51,600120,Post 16 Travel and Accommodation Grant,Childrens Services,Community,47017,Travel Grant,Mrs G Hulands,2018-19 Post 16 Grant A5 Hulands K / 2018-19 Post 16 Grant T4 Hulands K,2538225 ,872.61, 02/05/2019,19.95,872.61
51,600120,Post 16 Travel and Accommodation Grant,Childrens Services,Community,47016,Accomodation Grants,R Thornton,2018-19 Post 16 Grant A6 Underwood I,2551736 ,852.66, 16/05/2019,852.66,852.66
51,600120,Post 16 Travel and Accommodation Grant,Childrens Services,Community,47016,Accomodation Grants,Neil Moorton,2018-19 Post 16 Grant Moorton E,2551601 ,852.66, 16/05/2019,852.66,852.66
51,600120,Post 16 Travel and Accommodation Grant,Childrens Services,Community,47016,Accomodation Grants,Mr & Mrs A Gilbert,,2554462 ,852.66, 21/05/2019,852.66,852.66
51,600120,Post 16 Travel and Accommodation Grant,Childrens Services,Community,47016,Accomodation Grants,M G Smalley,2018-19 Post 16 Grant A6 Smalley C,2557538 ,852.66, 23/05/2019,852.66,852.66
51,600120,Post 16 Travel and Accommodation Grant,Childrens Services,Community,47016,Accomodation Grants,Mrs F Guy,2018-19 Post 16 Grant A6 Guy D,2555206 ,852.66, 23/05/2019,852.66,852.66
51,600120,Post 16 Travel and Accommodation Grant,Childrens Services,Community,47016,Accomodation Grants,Sarah Jenkins,2018-19 Post 16 Grant A6 Jenkins S,2557586 ,861.01, 23/05/2019,861.01,861.01
51,600120,Post 16 Travel and Accommodation Grant,Childrens Services,Community,47016,Accomodation Grants,Niki Hicks,,2558314 ,521.70, 28/05/2019,521.70,521.70
51,600120,Post 16 Travel and Accommodation Grant,Childrens Services,Community,47016,Accomodation Grants,Ms E Driscoll,,2560281 ,892.56, 28/05/2019,852.66,892.56
51,600120,Post 16 Travel and Accommodation Grant,Childrens Services,Community,47016,Accomodation Grants,Mr & Mrs P Whittaker,2018-19 Post 16 Grant A6 Whittaker M / 2018-19 Post 16 Grant T4 Whittaker M  / 2018-19 Post 16 Grant T5 Whittaker M,2559562 ,951.66, 28/05/2019,852.66,951.66
51,600120,Post 16 Travel and Accommodation Grant,Childrens Services,Community,47017,Travel Grant,Ms E Driscoll,,2560281 ,892.56, 28/05/2019,39.90,892.56
51,600120,Post 16 Travel and Accommodation Grant,Childrens Services,Community,47017,Travel Grant,Mr & Mrs P Whittaker,2018-19 Post 16 Grant A6 Whittaker M / 2018-19 Post 16 Grant T4 Whittaker M  / 2018-19 Post 16 Grant T5 Whittaker M,2559562 ,951.66, 28/05/2019,49.50,951.66
51,600120,Post 16 Travel and Accommodation Grant,Childrens Services,Community,47017,Travel Grant,Mr & Mrs P Whittaker,2018-19 Post 16 Grant A6 Whittaker M / 2018-19 Post 16 Grant T4 Whittaker M  / 2018-19 Post 16 Grant T5 Whittaker M,2559562 ,951.66, 28/05/2019,49.50,951.66
51,600120,Post 16 Travel and Accommodation Grant,Childrens Services,Community,47016,Accomodation Grants,Mr Matthew Honeychurch,2018-19 Post 16 Grant A6 Jesenko J,2562384 ,852.66, 30/05/2019,852.66,852.66
51,600120,Post 16 Travel and Accommodation Grant,Childrens Services,Community,47016,Accomodation Grants,Mrs Jo Hathway,2018-19 Post 16 Grant A6 Hathway J / 2018-19 Post 16 Grant T5 Hathway J,2562316 ,704.68, 30/05/2019,604.68,704.68
51,600120,Post 16 Travel and Accommodation Grant,Childrens Services,Community,47017,Travel Grant,Mrs Jo Hathway,2018-19 Post 16 Grant A6 Hathway J / 2018-19 Post 16 Grant T5 Hathway J,2562316 ,704.68, 30/05/2019,100.00,704.68
51,600120,Post 16 Travel and Accommodation Grant,Childrens Services,Community,47016,Accomodation Grants,Diana Mompoloki,POST 16 GRANT,2563178 ,952.66, 04/06/2019,852.66,952.66
51,600120,Post 16 Travel and Accommodation Grant,Childrens Services,Community,47017,Travel Grant,Diana Mompoloki,POST 16 GRANT,2563178 ,952.66, 04/06/2019,100.00,952.66
51,600120,Post 16 Travel and Accommodation Grant,Childrens Services,Community,47016,Accomodation Grants,Mrs G Hulands,2018-19 Post 16 Grant A6 Hulands K,2577712 ,892.56, 13/06/2019,852.66,892.56
51,600120,Post 16 Travel and Accommodation Grant,Childrens Services,Community,47016,Accomodation Grants,Mrs S Twynham,2018-19 Post 16 Grant A6 Twynham,2577477 ,596.70, 13/06/2019,596.70,596.70
51,600120,Post 16 Travel and Accommodation Grant,Childrens Services,Community,47017,Travel Grant,Mrs G Hulands,2018-19 Post 16 Grant T5,2577712 ,892.56, 13/06/2019,39.90,892.56
51,600120,Post 16 Travel and Accommodation Grant,Childrens Services,Community,47016,Accomodation Grants,Neil Moorton,2018-19 Post 16 Grant A6 Moorton E,2583277 ,852.66, 20/06/2019,852.66,852.66
51,600120,Post 16 Travel and Accommodation Grant,Childrens Services,Community,47016,Accomodation Grants,Mrs L Rodger, 2019- A3 T2 T3 T4 T5 T6 Pritchard K,2585279 ,"2,102.08", 25/06/2019,"1,705.33","2,102.08"
51,600120,Post 16 Travel and Accommodation Grant,Childrens Services,Community,47017,Travel Grant,Mrs L Rodger, 2019- A3 T2 T3 T4 T5 T6 Pritchard K,2585279 ,"2,102.08", 25/06/2019,75.75,"2,102.08"
51,600120,Post 16 Travel and Accommodation Grant,Childrens Services,Community,47017,Travel Grant,Mrs L Rodger, 2019- A3 T2 T3 T4 T5 T6 Pritchard K,2585279 ,"2,102.08", 25/06/2019,81.75,"2,102.08"
51,600120,Post 16 Travel and Accommodation Grant,Childrens Services,Community,47017,Travel Grant,Mrs L Rodger, 2019- A3 T2 T3 T4 T5 T6 Pritchard K,2585279 ,"2,102.08", 25/06/2019,81.75,"2,102.08"
51,600120,Post 16 Travel and Accommodation Grant,Childrens Services,Community,47017,Travel Grant,Mrs L Rodger, 2019- A3 T2 T3 T4 T5 T6 Pritchard K,2585279 ,"2,102.08", 25/06/2019,81.75,"2,102.08"
51,600120,Post 16 Travel and Accommodation Grant,Childrens Services,Community,47017,Travel Grant,Mrs L Rodger, 2019- A3 T2 T3 T4 T5 T6 Pritchard K,2585279 ,"2,102.08", 25/06/2019,75.75,"2,102.08"
51,600121,Home to School Transport,Childrens Services,Community,31603,Other Public Transport,James & Alison Stedeford,2019-20 HtS Travel- HS April-May 19,2518159 ,"1,572.00", 04/04/2019,"1,572.00","1,572.00"
51,600121,Home to School Transport,Childrens Services,Community,31603,Other Public Transport,Tresco Estate,Tresco Boats Home to School Travel Feb-March 2019,2531710 ,"3,100.00", 18/04/2019,"3,100.00","3,100.00"
51,600121,Home to School Transport,Childrens Services,Community,31603,Other Public Transport,Tresco Estate,"Tresco Boat Services Inv 54153
Home to School Boating",2548190 ,"1,600.00", 14/05/2019,"1,600.00","1,600.00"
51,600122,Children Services Staff Costs,Childrens Services,Community,43506,Professional Fees - Legal,Cornwall Council,Legal Services Jan and Feb 2019 re Children's Services Staff Costs,2509141 ,"2,731.50", 09/04/2019,"1,113.60","3,240.44"
51,600122,Children Services Staff Costs,Childrens Services,Community,46103,Hotel Expenses,RBS Commercial Card Division,13-03-2019|7427|LYNN PLUMMER|TRAVELODGE|OX9 3AT|3615||,2527247 ,"12,964.48", 12/04/2019,51.87,"13,582.29"
51,600122,Children Services Staff Costs,Childrens Services,Community,49031,Revenue transfer to schools - Supplies and Services,Leading Edge Academies Partnership (Five Islands),Family Support Worker April-March 19/20,2527835 ,"25,000.00", 16/04/2019,"25,000.00","25,000.00"
51,600122,Children Services Staff Costs,Childrens Services,Community,49031,Revenue transfer to schools - Supplies and Services,Leading Edge Academies Partnership (Five Islands),Five Islands Academy Family Support Worker- Sept- March 18-19,2527834 ,"13,412.00", 16/04/2019,"13,412.00","13,412.00"
51,600122,Children Services Staff Costs,Childrens Services,Community,52001,Payments to Other Local Authorities,Bath & North East Somerset Council,ADCS 2018/2019 Contribution to Regional Funds to Bath & North East Somerset Council,2513833 ,500.00, 23/04/2019,500.00,500.00
51,600122,Children Services Staff Costs,Childrens Services,Community,31503,Taxi and Minibus,RBS Commercial Card Division,11-04-2019|2419|AISLING KHAN|A2B TAXIS TRURO LTD|TR4 9AU|4121|TAXI TO MEETING|,2562926 ,"8,470.46", 30/05/2019,5.00,"8,939.84"
51,600122,Children Services Staff Costs,Childrens Services,Community,31503,Taxi and Minibus,RBS Commercial Card Division,11-04-2019|2419|AISLING KHAN|A2B TAXIS TRURO LTD|TR4 9AU|4121|TAXI TO MEETING|,2562926 ,"8,470.46", 30/05/2019,5.00,"8,939.84"
51,600122,Children Services Staff Costs,Childrens Services,Community,46103,Hotel Expenses,RBS Commercial Card Division,11-04-2019|2419|AISLING KHAN|MANNINGS HOTEL|TR1 2QB|7011||,2562926 ,"8,470.46", 30/05/2019,79.17,"8,939.84"
51,600122,Children Services Staff Costs,Childrens Services,Community,43506,Professional Fees - Legal,Cornwall Council,Legal Services Jan and Feb 2019 re Children's Services Staff Costs,2513533 ,"2,762.27", 11/06/2019,"1,737.60","3,114.12"
51,600123,High Need SEND,Childrens Services,Community,43532,Professional Fees - Other,Andrew Mercer,"SEN Consultancy A Mercer 
Inv IOS FI 01",2519339 ,600.00, 09/04/2019,600.00,600.00
51,600123,High Need SEND,Childrens Services,Community,31602,Air Travel,RBS Commercial Card Division,11-03-2019|6459|TRAVEL TEAM|ISLES OF SCILLY SS CO|TR21 0LJ|4411|FLIGHT 243616 REFUND|IOS_NSTINSON,2527247 ,"12,964.48", 12/04/2019,-206.63,"13,582.29"
51,600123,High Need SEND,Childrens Services,Community,31602,Air Travel,RBS Commercial Card Division,13-03-2019|6459|TRAVEL TEAM|ISLES OF SCILLY SS CO|TR21 0LJ|4411|FLIGHT 252733|IOS_NSTINSON,2527247 ,"12,964.48", 12/04/2019,218.50,"13,582.29"
51,600123,High Need SEND,Childrens Services,Community,49031,Revenue transfer to schools - Supplies and Services,Leading Edge Academies Partnership (Five Islands),SEND Support Worker Tresco April-March 19/20,2527840 ,"5,000.00", 16/04/2019,"5,000.00","5,000.00"
51,600123,High Need SEND,Childrens Services,Community,49031,Revenue transfer to schools - Supplies and Services,Leading Edge Academies Partnership (Five Islands),SEND Support Family Worker Tresco Sept-March 18-19,2527838 ,"1,655.00", 16/04/2019,"1,655.00","1,655.00"
51,600123,High Need SEND,Childrens Services,Community,43532,Professional Fees - Other,Leading Edge Academies Partnership (Five Islands),Tresco Support Worker SEND 2018/19- Mat Cover,2535496 ,"1,245.08", 30/04/2019,"1,245.08","1,245.08"
51,600123,High Need SEND,Childrens Services,Community,57053,Independent Schools - Private Contractors,St Joseph's School,"St Josephs Specialist Trust
EFA Placement funding Summer 2019",2553173 ,"54,788.00", 21/05/2019,"54,788.00","54,788.00"
51,600124,SEND Development,Childrens Services,Community,47002,Subscriptions,Isles Of Scilly Parent Carers Group,IOS Parent Carer Partnership Agreement 19/20,2524945 ,"1,000.00", 09/04/2019,"1,000.00","1,000.00"
51,600124,SEND Development,Childrens Services,Community,42001,Catering - Provisions,Tanglewood Kitchen Company,Catering -Tanglewood- Gen Partnsps 3&4/4/2019,2527255 ,678.77, 11/04/2019,678.77,814.53
51,600124,SEND Development,Childrens Services,Community,46103,Hotel Expenses,St Mary's Hall Hotel,St Marys Hall Hotel -Gen Part SEND 3-5/4/19,2526131 ,458.34, 11/04/2019,458.34,550.00
51,600124,SEND Development,Childrens Services,Community,31602,Air Travel,RBS Commercial Card Division,07-03-2019|6459|TRAVEL TEAM|ISLES OF SCILLY SS CO|TR21 0LJ|4411|FLIGHT 251647|IOS_NSTINSON,2527247 ,"12,964.48", 12/04/2019,181.10,"13,582.29"
51,600124,SEND Development,Childrens Services,Community,12301,Training,IPSEA,IPSEA EHCP & Law Qual L2 HMG,2538411 ,700.00, 02/05/2019,700.00,700.00
51,600124,SEND Development,Childrens Services,Community,43505,Consultants - Other,Genuine Partnerships CIC,Consultancy Costs for Genuine Partnerships SEND Grant,2549933 ,"2,732.47", 16/05/2019,"2,732.47","2,732.47"
51,600124,SEND Development,Childrens Services,Community,47002,Subscriptions,Isles Of Scilly Parent Carers Group,Parent Carers partnership Agreement -Voice of the Child,2558354 ,"1,000.00", 23/05/2019,"1,000.00","1,000.00"
51,600124,SEND Development,Childrens Services,Community,46103,Hotel Expenses,RBS Commercial Card Division,02-04-2019|7435|JOANNA EVANS|PREMIER INN|TR27 4PN|3811||,2562926 ,"8,470.46", 30/05/2019,220.83,"8,939.84"
51,600124,SEND Development,Childrens Services,Community,46103,Hotel Expenses,RBS Commercial Card Division,02-04-2019|7435|JOANNA EVANS|PREMIER INN|TR27 4PN|3811||,2562926 ,"8,470.46", 30/05/2019,99.96,"8,939.84"
51,600124,SEND Development,Childrens Services,Community,31602,Air Travel,RBS Commercial Card Division,09-05-2019|6459|TRAVEL TEAM|ISLES OF SCILLY SS CO|TR21 0LJ|4411|FLIGHT 262953|IOS_NSTINSON,2585377 ,"16,386.79", 28/06/2019,181.10,"17,042.35"
51,600130,Children Social Care - Strategic,Childrens Social Care,Community,31601,Rail,RBS Commercial Card Division,19-03-2019|7427|LYNN PLUMMER|HTTP://WWW.ARRIVAT|LD1 5BB|4112|TRAVEL FOR LOCUM|,2527247 ,"12,964.48", 12/04/2019,165.83,"13,582.29"
51,600130,Children Social Care - Strategic,Childrens Social Care,Community,31602,Air Travel,RBS Commercial Card Division,11-03-2019|6459|TRAVEL TEAM|ISLES OF SCILLY SS CO|TR21 0LJ|4411|FLIGHT 252399|IOS_NSTINSON,2527247 ,"12,964.48", 12/04/2019,169.10,"13,582.29"
51,600130,Children Social Care - Strategic,Childrens Social Care,Community,31602,Air Travel,RBS Commercial Card Division,28-02-2019|6459|TRAVEL TEAM|ISLES OF SCILLY SS CO|TR21 0LJ|4411|FLIGHT 250118 - AMENDMENT|IOS_NSTINSON,2527247 ,"12,964.48", 12/04/2019,16.91,"13,582.29"
51,600130,Children Social Care - Strategic,Childrens Social Care,Community,12401,Recruitment Advertising - Job,Guardian News & Media Ltd,Children's Social Worker job advert.,2558115 ,850.00, 23/05/2019,850.00,"1,020.00"
51,600130,Children Social Care - Strategic,Childrens Social Care,Community,12401,Recruitment Advertising - Job,The Guardian,Additions to job advert with Guardian news for Children's Social Worker.,2562292 ,500.00, 28/05/2019,500.00,600.00
51,600130,Children Social Care - Strategic,Childrens Social Care,Community,12401,Recruitment Advertising - Job,M A Healthcare Ltd,Cost for advertising CSW post on Community Care website.,2562830 ,"1,250.00", 30/05/2019,"1,250.00","1,500.00"
51,600130,Children Social Care - Strategic,Childrens Social Care,Community,49002,Miscellaneous Expenditure,Sanctuary Personnel Ltd,Agency fees for children's social worker Brian Hook. INV00405548.,2577784 ,"1,350.50", 13/06/2019,"1,350.50","1,620.60"
51,600130,Children Social Care - Strategic,Childrens Social Care,Community,12401,Recruitment Advertising - Job,M A Healthcare Ltd,Children's Social Worker job advert in Community Care Advert.,2583286 ,"1,250.00", 20/06/2019,"1,250.00","1,500.00"
51,600130,Children Social Care - Strategic,Childrens Social Care,Community,31502,Public Service Vehicle Hire,RBS Commercial Card Division,01-05-2019|7427|LYNN PLUMMER|EUROPCAR|LE2 7AR|3381|HIRE CAR|IOS_AKHAN,2585377 ,"16,386.79", 28/06/2019,51.10,"17,042.35"
51,600130,Children Social Care - Strategic,Childrens Social Care,Community,31602,Air Travel,RBS Commercial Card Division,01-05-2019|6459|TRAVEL TEAM|ISLES OF SCILLY SS CO|TR21 0LJ|4411|FLIGHT 261558|IOS_NSTINSON,2585377 ,"16,386.79", 28/06/2019,218.50,"17,042.35"
51,600130,Children Social Care - Strategic,Childrens Social Care,Community,31602,Air Travel,RBS Commercial Card Division,10-05-2019|6459|TRAVEL TEAM|ISLES OF SCILLY SS CO|TR21 0LJ|4411|FLIGHT 263146|IOS_NSTINSON,2585377 ,"16,386.79", 28/06/2019,118.76,"17,042.35"
51,600130,Children Social Care - Strategic,Childrens Social Care,Community,31602,Air Travel,RBS Commercial Card Division,13-05-2019|6459|TRAVEL TEAM|ISLES OF SCILLY SS CO|TR21 0LJ|4411|FLIGHT 263693|IOS_NSTINSON,2585377 ,"16,386.79", 28/06/2019,118.76,"17,042.35"
51,600130,Children Social Care - Strategic,Childrens Social Care,Community,31602,Air Travel,RBS Commercial Card Division,13-05-2019|6459|TRAVEL TEAM|ISLES OF SCILLY SS CO|TR21 0LJ|4411|FLIGHT 263688|IOS_NSTINSON,2585377 ,"16,386.79", 28/06/2019,169.10,"17,042.35"
51,600130,Children Social Care - Strategic,Childrens Social Care,Community,31602,Air Travel,RBS Commercial Card Division,01-05-2019|7427|LYNN PLUMMER|FLYBE.COM LUH4FP       0|EX5 3HL|4511|FLIGHT TO MEETING|IOS_AKHAN,2585377 ,"16,386.79", 28/06/2019,107.10,"17,042.35"
51,600130,Children Social Care - Strategic,Childrens Social Care,Community,46103,Hotel Expenses,RBS Commercial Card Division,29-04-2019|7427|LYNN PLUMMER|TRAVELODGE|OX9 3AT|3615|ACCOMODATION FOR MEETING|IOS_AKHAN,2585377 ,"16,386.79", 28/06/2019,54.37,"17,042.35"
51,600130,Children Social Care - Strategic,Childrens Social Care,Community,46103,Hotel Expenses,RBS Commercial Card Division,14-05-2019|7427|LYNN PLUMMER|WWW.BOSAVERN.COM|TR19 7RD|7011|ACCOMODATION FOR MEETING|IOS_AKHAN,2585377 ,"16,386.79", 28/06/2019,54.17,"17,042.35"
51,600131,Children Social Care - Commissioning,Childrens Social Care,Community,46108,Board and Lodging,Scilly Hols Ltd,"Accommodation for locum Children's Social Worker, Brian Hook 1st March - 18th April 2019. Inv. No 133",2519351 ,"1,050.00", 04/04/2019,"1,050.00","1,050.00"
51,600131,Children Social Care - Commissioning,Childrens Social Care,Community,31602,Air Travel,RBS Commercial Card Division,11-03-2019|6459|TRAVEL TEAM|ISLES OF SCILLY SS CO|TR21 0LJ|4411|FLIGHT 252284|IOS_NSTINSON,2527247 ,"12,964.48", 12/04/2019,500.00,"13,582.29"
51,600131,Children Social Care - Commissioning,Childrens Social Care,Community,31602,Air Travel,RBS Commercial Card Division,11-03-2019|6459|TRAVEL TEAM|ISLES OF SCILLY SS CO|TR21 0LJ|4411|FLIGHT 252284|IOS_NSTINSON,2527247 ,"12,964.48", 12/04/2019,126.30,"13,582.29"
51,600131,Children Social Care - Commissioning,Childrens Social Care,Community,31602,Air Travel,RBS Commercial Card Division,15-03-2019|6459|TRAVEL TEAM|ISLES OF SCILLY SS CO|TR21 0LJ|4411|FLIGHT 253182|IOS_NSTINSON,2527247 ,"12,964.48", 12/04/2019,181.10,"13,582.29"
51,600131,Children Social Care - Commissioning,Childrens Social Care,Community,31602,Air Travel,RBS Commercial Card Division,04-03-2019|6459|TRAVEL TEAM|ISLES OF SCILLY SS CO|TR21 0LJ|4411|FLIGHT 250981|IOS_NSTINSON,2527247 ,"12,964.48", 12/04/2019,218.50,"13,582.29"
51,600131,Children Social Care - Commissioning,Childrens Social Care,Community,11601,Agency Costs,Sanctuary Personnel Ltd,Agency fees for locum CSW Brian Hook for 24/2/19 INV00386792.,2534381 ,"1,350.50", 30/04/2019,"1,350.50","1,620.60"
51,600131,Children Social Care - Commissioning,Childrens Social Care,Community,11601,Agency Costs,Sanctuary Personnel Ltd,Agency fees for locum CSW Brian Hook for 10/2/19 INV00386793,2534380 ,821.25, 30/04/2019,821.25,985.50
51,600131,Children Social Care - Commissioning,Childrens Social Care,Community,11601,Agency Costs,Sanctuary Personnel Ltd,Agency fees for locum CSW Brian Hook for 01/3/19 INV00386790.,2534383 ,"1,350.50", 30/04/2019,"1,350.50","1,620.60"
51,600131,Children Social Care - Commissioning,Childrens Social Care,Community,11601,Agency Costs,Sanctuary Personnel Ltd,"Agency fees for locum children's social worker, Brian Hook dated 17/03/19, INV00386788.",2534382 ,"1,350.50", 30/04/2019,"1,350.50","1,620.60"
51,600131,Children Social Care - Commissioning,Childrens Social Care,Community,11601,Agency Costs,Sanctuary Personnel Ltd,Agency fees for locum CSW Brian Hook for 03/03/19 INV00386791.,2534385 ,"1,350.50", 30/04/2019,"1,350.50","1,620.60"
51,600131,Children Social Care - Commissioning,Childrens Social Care,Community,11601,Agency Costs,Sanctuary Personnel Ltd,Agency fees for locum CSW Brian Hook for 17/2/19 INV00386794.,2534379 ,"1,076.75", 30/04/2019,"1,076.75","1,292.10"
51,600131,Children Social Care - Commissioning,Childrens Social Care,Community,11601,Agency Costs,Sanctuary Personnel Ltd,"Agency fees for locum Children's Social Worker, Brian Hook. INV00388928.",2536581 ,821.25, 07/05/2019,821.25,985.50
51,600131,Children Social Care - Commissioning,Childrens Social Care,Community,46108,Board and Lodging,Scilly Hols Ltd,Accommodation for locum Children's Social Worker from 18/4 - 06/06,2539482 ,"4,440.00", 07/05/2019,"4,440.00","4,440.00"
51,600131,Children Social Care - Commissioning,Childrens Social Care,Community,11601,Agency Costs,Sanctuary Personnel Ltd,"Agency fee's for Locum Children's Social Worker, Brian Hook, Invoice number INV00331351.",2548358 ,821.25, 16/05/2019,-821.25,985.50
51,600131,Children Social Care - Commissioning,Childrens Social Care,Community,11601,Agency Costs,Sanctuary Personnel Ltd,"Agency fee's for Locum Children's Social Worker, Brian Hook, Invoice number INV00331351.",2548358 ,821.25, 16/05/2019,821.25,985.50
51,600131,Children Social Care - Commissioning,Childrens Social Care,Community,11601,Agency Costs,Sanctuary Personnel Ltd,"Agency fees for children's social worker, Brian Hook. INV00394650.",2548358 ,821.25, 16/05/2019,821.25,985.50
51,600131,Children Social Care - Commissioning,Childrens Social Care,Community,11601,Agency Costs,Sanctuary Personnel Ltd,"Agency fees for locum Children's Social Worker, Brian Hook. INV00394647.",2548357 ,"1,350.50", 21/05/2019,"1,350.50","1,620.60"
51,600131,Children Social Care - Commissioning,Childrens Social Care,Community,11601,Agency Costs,Sanctuary Personnel Ltd,"Agency fees for locum children's social worker, Brian Hook. INV00394648.",2549156 ,"1,350.50", 28/05/2019,"1,350.50","1,620.60"
51,600131,Children Social Care - Commissioning,Childrens Social Care,Community,11601,Agency Costs,Sanctuary Personnel Ltd,"Agency fees for locum children's social worker, Brian Hook. INV00394649.",2549958 ,912.50, 28/05/2019,912.50,"1,095.00"
51,600131,Children Social Care - Commissioning,Childrens Social Care,Community,11601,Agency Costs,Sanctuary Personnel Ltd,"Agency fees for locum children's social worker, Brian Hook. INV00394651.",2549157 ,"1,350.50", 28/05/2019,"1,350.50","1,620.60"
51,600131,Children Social Care - Commissioning,Childrens Social Care,Community,11601,Agency Costs,Sanctuary Personnel Ltd,"Agency fees for locum children's social worker, Brian Hook. INV00405546",2577775 ,"1,095.00", 13/06/2019,"1,095.00","1,314.00"
51,600131,Children Social Care - Commissioning,Childrens Social Care,Community,11601,Agency Costs,Sanctuary Personnel Ltd,Agency fees for children's social worker Brian Hook. INV00405547.,2577783 ,"1,350.50", 13/06/2019,"1,350.50","1,620.60"
51,600131,Children Social Care - Commissioning,Childrens Social Care,Community,11601,Agency Costs,Sanctuary Personnel Ltd,"Agency fees for Childrens social worker, Brian Hook. INV00405550.",2577776 ,"1,095.00", 13/06/2019,"1,095.00","1,314.00"
51,600131,Children Social Care - Commissioning,Childrens Social Care,Community,11601,Agency Costs,Sanctuary Personnel Ltd,Agency fees for locum social worker BrianHook. INV00405554.,2577785 ,"1,350.50", 13/06/2019,"1,350.50","1,620.60"
51,600131,Children Social Care - Commissioning,Childrens Social Care,Community,46108,Board and Lodging,Scilly Hols Ltd,Accommodation for Children's Social Worker. Sail Check from 6th June 2019 to 9th July 2019.,2581172 ,"2,000.00", 18/06/2019,"2,000.00","2,000.00"
51,600131,Children Social Care - Commissioning,Childrens Social Care,Community,31602,Air Travel,RBS Commercial Card Division,10-05-2019|6459|TRAVEL TEAM|ISLES OF SCILLY SS CO|TR21 0LJ|4411|FLIGHT 263151|IOS_NSTINSON,2585377 ,"16,386.79", 28/06/2019,199.80,"17,042.35"
51,600131,Children Social Care - Commissioning,Childrens Social Care,Community,31602,Air Travel,RBS Commercial Card Division,16-05-2019|6459|TRAVEL TEAM|ISLES OF SCILLY SS CO|TR21 0LJ|4411|FLIGHT 264276|IOS_NSTINSON,2585377 ,"16,386.79", 28/06/2019,199.80,"17,042.35"
51,600131,Children Social Care - Commissioning,Childrens Social Care,Community,31602,Air Travel,RBS Commercial Card Division,24-05-2019|6459|TRAVEL TEAM|ISLES OF SCILLY SS CO|TR21 0LJ|4411|FLIGHT 265696|IOS_NSTINSON,2585377 ,"16,386.79", 28/06/2019,199.80,"17,042.35"
51,600133,CSC Short Break Care,Childrens Social Care,Community,57014,Client Related Personal Needs - Private Contractors,Mr & Mrs D Shave,Direct payment of Short Breaks Care Budget to client.,2518140 ,"1,020.00", 04/04/2019,"1,020.00","1,020.00"
51,600133,CSC Short Break Care,Childrens Social Care,Community,57014,Client Related Personal Needs - Private Contractors,Mrs L Rodger,Direct payment of Short Breaks Care Budget to client.,2518144 ,"1,550.00", 04/04/2019,"1,550.00","1,550.00"
51,600133,CSC Short Break Care,Childrens Social Care,Community,57014,Client Related Personal Needs - Private Contractors,Mrs S Jenkins,Reimbursement of Short Breaks Care Budget to client,2524952 ,503.80, 16/04/2019,503.80,503.80
51,600133,CSC Short Break Care,Childrens Social Care,Community,57014,Client Related Personal Needs - Private Contractors,Mrs Victoria Simpson,Direct payment of Short Breaks Care Budget to client.,2563947 ,"1,020.00", 04/06/2019,"1,020.00","1,020.00"
51,600141,Community Safety,Community Safety,Community,31602,Air Travel,RBS Commercial Card Division,19-03-2019|6459|TRAVEL TEAM|ISLES OF SCILLY SS CO|TR21 0LJ|4411|FLIGHT 253827|IOS_NSTINSON,2527247 ,"12,964.48", 12/04/2019,169.10,"13,582.29"
51,600150,Community SLT,Community Management,Community,49002,Miscellaneous Expenditure,RBS Commercial Card Division,13-05-2019|7435|JOANNA EVANS|AMZNMKTPLACE AMAZON.CO|0|5999||IOS_NSTINSON,2585377 ,"16,386.79", 28/06/2019,37.73,"17,042.35"
51,600200,Environmental Health & Food,Environmental Services,Strategic Development and Finance,43506,Professional Fees - Legal,Cornwall Council,For Legal services relating to Treboeth,2460424 ,"2,476.80", 09/04/2019,576.00,"2,972.16"
51,600200,Environmental Health & Food,Environmental Services,Strategic Development and Finance,31602,Air Travel,RBS Commercial Card Division,21-03-2019|6459|TRAVEL TEAM|ISLES OF SCILLY SS CO|TR21 0LJ|4411|FLIGHT 254213|IOS_NSTINSON,2527247 ,"12,964.48", 12/04/2019,111.39,"13,582.29"
51,600200,Environmental Health & Food,Environmental Services,Strategic Development and Finance,31602,Air Travel,RBS Commercial Card Division,21-03-2019|6459|TRAVEL TEAM|ISLES OF SCILLY SS CO|TR21 0LJ|4411|FLIGHT 254121|IOS_NSTINSON,2527247 ,"12,964.48", 12/04/2019,169.10,"13,582.29"
51,600200,Environmental Health & Food,Environmental Services,Strategic Development and Finance,46103,Hotel Expenses,RBS Commercial Card Division,21-03-2019|7468|MICHAEL COATES|PREMIER INN|TQ12 3AF|3811||IOS_NSTINSON,2527247 ,"12,964.48", 12/04/2019,89.50,"13,582.29"
51,600200,Environmental Health & Food,Environmental Services,Strategic Development and Finance,46103,Hotel Expenses,RBS Commercial Card Division,21-03-2019|7468|MICHAEL COATES|PREMIER INN|TR27 4PN|3811||IOS_NSTINSON,2527247 ,"12,964.48", 12/04/2019,70.42,"13,582.29"
51,600200,Environmental Health & Food,Environmental Services,Strategic Development and Finance,31602,Air Travel,RBS Commercial Card Division,01-04-2019|6459|TRAVEL TEAM|ISLES OF SCILLY SS CO|TR21 0LJ|4411|FLIGHT 256122|,2562926 ,"8,470.46", 30/05/2019,169.10,"8,939.84"
51,600200,Environmental Health & Food,Environmental Services,Strategic Development and Finance,31602,Air Travel,RBS Commercial Card Division,02-04-2019|6459|TRAVEL TEAM|ISLES OF SCILLY SS CO|TR21 0LJ|4411|FLIGHT 256122 AMENDMENT|,2562926 ,"8,470.46", 30/05/2019,16.91,"8,939.84"
51,600200,Environmental Health & Food,Environmental Services,Strategic Development and Finance,31602,Air Travel,RBS Commercial Card Division,03-04-2019|6459|TRAVEL TEAM|ISLES OF SCILLY SS CO|TR21 0LJ|4411|AMENDED FLIGHT BOOKING|,2562926 ,"8,470.46", 30/05/2019,12.13,"8,939.84"
51,600200,Environmental Health & Food,Environmental Services,Strategic Development and Finance,41103,Equipment - Spares,RBS Commercial Card Division,10-04-2019|7468|MICHAEL COATES|ISLAND HARDWARE|TR21 0JD|5251|DOG LEAD (DOG WARDEN)|,2562926 ,"8,470.46", 30/05/2019,7.88,"8,939.84"
51,600200,Environmental Health & Food,Environmental Services,Strategic Development and Finance,41301,Books and Publications,RBS Commercial Card Division,01-04-2019|7468|MICHAEL COATES|PAYPAL  EVENTSINDUS|TW91EH|8999|EVENT SAFETY PUBLICATION|,2562926 ,"8,470.46", 30/05/2019,30.00,"8,939.84"
51,600200,Environmental Health & Food,Environmental Services,Strategic Development and Finance,47002,Subscriptions,RH Environmental Ltd,RIAMS Subscription - 10/6/19 - 9/6/20,2583161 ,600.00, 25/06/2019,600.00,720.00
51,600200,Environmental Health & Food,Environmental Services,Strategic Development and Finance,31602,Air Travel,RBS Commercial Card Division,16-05-2019|6459|TRAVEL TEAM|ISLES OF SCILLY SS CO|TR21 0LJ|4411|FLIGHT 264289|IOS_NSTINSON,2585377 ,"16,386.79", 28/06/2019,437.00,"17,042.35"
51,600200,Environmental Health & Food,Environmental Services,Strategic Development and Finance,43002,Stationery and Consumables,RBS Commercial Card Division,29-04-2019|7468|MICHAEL COATES|STICKERMULE.COM|40124|5947|GOOD FOOD AWARD STICKERS|IOS_NSTINSON,2585377 ,"16,386.79", 28/06/2019,104.17,"17,042.35"
51,600200,Environmental Health & Food,Environmental Services,Strategic Development and Finance,49002,Miscellaneous Expenditure,RBS Commercial Card Division,13-05-2019|7435|JOANNA EVANS|AMZN MKTP UK MN6OF1G84|L2338|5942||IOS_NSTINSON,2585377 ,"16,386.79", 28/06/2019,79.98,"17,042.35"
51,600210,Adult Education,Learning and  Library,Strategic Development and Finance,12301,Training,Cornwall Council,Additional Learning Hub Licences for 20/19,2505921 ,760.00, 04/04/2019,760.00,912.00
51,600210,Adult Education,Learning and  Library,Strategic Development and Finance,12301,Training,RBS Commercial Card Division,14-03-2019|7435|JOANNA EVANS|WWW.BBETRAINING.CO|NN9 5QF|8299||IOS_NSTINSON,2527247 ,"12,964.48", 12/04/2019,299.00,"13,582.29"
51,600210,Adult Education,Learning and  Library,Strategic Development and Finance,31602,Air Travel,RBS Commercial Card Division,06-03-2019|6459|TRAVEL TEAM|ISLES OF SCILLY SS CO|TR21 0LJ|4411|FLIGHT REFUND|IOS_NSTINSON,2527247 ,"12,964.48", 12/04/2019,-40.00,"13,582.29"
51,600210,Adult Education,Learning and  Library,Strategic Development and Finance,31602,Air Travel,RBS Commercial Card Division,07-03-2019|6459|TRAVEL TEAM|ISLES OF SCILLY SS CO|TR21 0LJ|4411|FLIGHT 251648|IOS_NSTINSON,2527247 ,"12,964.48", 12/04/2019,203.78,"13,582.29"
51,600210,Adult Education,Learning and  Library,Strategic Development and Finance,31602,Air Travel,RBS Commercial Card Division,13-03-2019|6459|TRAVEL TEAM|ISLES OF SCILLY SS CO|TR21 0LJ|4411|FLIGHT 251648 REFUND|IOS_NSTINSON,2527247 ,"12,964.48", 12/04/2019,-51.78,"13,582.29"
51,600210,Adult Education,Learning and  Library,Strategic Development and Finance,31602,Air Travel,RBS Commercial Card Division,18-03-2019|6459|TRAVEL TEAM|ISLES OF SCILLY SS CO|TR21 0LJ|4411|FLIGHTS 253605|IOS_NSTINSON,2527247 ,"12,964.48", 12/04/2019,152.00,"13,582.29"
51,600210,Adult Education,Learning and  Library,Strategic Development and Finance,31602,Air Travel,RBS Commercial Card Division,18-03-2019|6459|TRAVEL TEAM|ISLES OF SCILLY SS CO|TR21 0LJ|4411|FLIGHT 253606|IOS_NSTINSON,2527247 ,"12,964.48", 12/04/2019,169.10,"13,582.29"
51,600210,Adult Education,Learning and  Library,Strategic Development and Finance,31602,Air Travel,RBS Commercial Card Division,20-03-2019|6459|TRAVEL TEAM|ISLES OF SCILLY SS CO|TR21 0LJ|4411|FLIGHT REFUND|IOS_NSTINSON,2527247 ,"12,964.48", 12/04/2019,-169.10,"13,582.29"
51,600210,Adult Education,Learning and  Library,Strategic Development and Finance,41113,Curriculum Equipment,RBS Commercial Card Division,20-03-2019|7435|JOANNA EVANS|AMZN MKTP UK MW0VH67N4|L2338|5942||IOS_NSTINSON,2527247 ,"12,964.48", 12/04/2019,9.13,"13,582.29"
51,600210,Adult Education,Learning and  Library,Strategic Development and Finance,43002,Stationery and Consumables,RBS Commercial Card Division,14-03-2019|7435|JOANNA EVANS|AMZN MKTP UK MW3NS18J4|L2338|5942||IOS_NSTINSON,2527247 ,"12,964.48", 12/04/2019,14.16,"13,582.29"
51,600210,Adult Education,Learning and  Library,Strategic Development and Finance,12301,Training,Cornwall Council,Learning Hub Service Level Agreement for 18/19,2530569 ,"2,471.00", 18/04/2019,"2,471.00","2,965.20"
51,600210,Adult Education,Learning and  Library,Strategic Development and Finance,12301,Training,FreeBird Associates Ltd,FreeBird:  2-day end of life training by Corinne to park house staff 19/20th-March,2533030 ,"1,540.00", 23/04/2019,"1,540.00","1,540.00"
51,600210,Adult Education,Learning and  Library,Strategic Development and Finance,12301,Training,Institute Of Swimming Ltd,Steph Chodkiewicz Swim Teacher Training,2548302 ,680.00, 14/05/2019,680.00,680.00
51,600210,Adult Education,Learning and  Library,Strategic Development and Finance,12301,Training,In Safe Hands Health & Safety Training & Consultancy Ltd,Level 2 Risk Assessment 17/6/19,2554076 ,595.00, 21/05/2019,595.00,714.00
51,600210,Adult Education,Learning and  Library,Strategic Development and Finance,12301,Training,In Safe Hands Health & Safety Training & Consultancy Ltd,First Aid at Work 18/19/20-6-19,2554071 ,"1,695.00", 21/05/2019,"1,695.00","2,034.00"
51,600210,Adult Education,Learning and  Library,Strategic Development and Finance,12301,Training,Truro And Penwith College,"L3 Award in Project Management for M Fallows, K. Graham, S. Scott and J. Pursglove (Funded Places)",2553163 ,"1,400.00", 21/05/2019,"1,400.00","1,400.00"
51,600210,Adult Education,Learning and  Library,Strategic Development and Finance,12301,Training,Truro And Penwith College,"L3 Award in Project Management for T. Bridge, R. Guy, S. Campbell, M. Coates and S. Hughes (Non Funded Places)",2553162 ,"3,500.00", 21/05/2019,"3,500.00","3,500.00"
51,600210,Adult Education,Learning and  Library,Strategic Development and Finance,12301,Training,Leppitt Associates,Wamitab/COTC training course for Philip Barksby undertaken by Leppitt Associates,2557709 ,980.50, 23/05/2019,980.50,"1,176.60"
51,600210,Adult Education,Learning and  Library,Strategic Development and Finance,43576,Purchased Training (Not for Staff),Comera Medical Training Ltd,Delivery of EFAW 13th May 2019,2557699 ,425.00, 23/05/2019,425.00,510.00
51,600210,Adult Education,Learning and  Library,Strategic Development and Finance,31602,Air Travel,RBS Commercial Card Division,01-04-2019|6459|TRAVEL TEAM|ISLES OF SCILLY SS CO|TR21 0LJ|4411|FLIGHT 256252|,2562926 ,"8,470.46", 30/05/2019,169.10,"8,939.84"
51,600210,Adult Education,Learning and  Library,Strategic Development and Finance,31602,Air Travel,RBS Commercial Card Division,04-04-2019|6459|TRAVEL TEAM|ISLES OF SCILLY SS CO|TR21 0LJ|4411|FLIGHT 256801|,2562926 ,"8,470.46", 30/05/2019,152.00,"8,939.84"
51,600210,Adult Education,Learning and  Library,Strategic Development and Finance,31602,Air Travel,RBS Commercial Card Division,10-04-2019|6459|TRAVEL TEAM|ISLES OF SCILLY SS CO|TR21 0LJ|4411|FLIGHT 258071|,2562926 ,"8,470.46", 30/05/2019,218.50,"8,939.84"
51,600210,Adult Education,Learning and  Library,Strategic Development and Finance,41104,Equipment & Plant - Direct Purchase,RBS Commercial Card Division,05-04-2019|7435|JOANNA EVANS|AMAZON.CO.UK MZ25F4134|L2338|5969||,2562926 ,"8,470.46", 30/05/2019,9.57,"8,939.84"
51,600210,Adult Education,Learning and  Library,Strategic Development and Finance,12301,Training,Leppitt Associates,Wamitab/COTC training course for Philip Barksby undertaken by Leppitt Associates,2585415 ,449.50, 25/06/2019,449.50,539.40
51,600210,Adult Education,Learning and  Library,Strategic Development and Finance,31602,Air Travel,RBS Commercial Card Division,08-05-2019|6459|TRAVEL TEAM|ISLES OF SCILLY SS CO|TR21 0LJ|4411|FLIGHT 263248|IOS_NSTINSON,2585377 ,"16,386.79", 28/06/2019,181.10,"17,042.35"
51,600210,Adult Education,Learning and  Library,Strategic Development and Finance,31602,Air Travel,RBS Commercial Card Division,10-05-2019|6459|TRAVEL TEAM|ISLES OF SCILLY SS CO|TR21 0LJ|4411|FLIGHT 263249|IOS_NSTINSON,2585377 ,"16,386.79", 28/06/2019,169.10,"17,042.35"
51,600210,Adult Education,Learning and  Library,Strategic Development and Finance,31602,Air Travel,RBS Commercial Card Division,13-05-2019|6459|TRAVEL TEAM|ISLES OF SCILLY SS CO|TR21 0LJ|4411|FLIGHT 263621|IOS_NSTINSON,2585377 ,"16,386.79", 28/06/2019,169.10,"17,042.35"
51,600210,Adult Education,Learning and  Library,Strategic Development and Finance,46102,Subsistence,RBS Commercial Card Division,13-05-2019|7435|JOANNA EVANS|NATIONAL AWARENESS DA|YO24 4LW|5734||IOS_NSTINSON,2585377 ,"16,386.79", 28/06/2019,69.99,"17,042.35"
51,600211,Library Services,Learning and  Library,Strategic Development and Finance,49002,Miscellaneous Expenditure,Westcountry Leisure Pool & Spa Services Ltd,Carry out works as per your quote 331 dated 16/10/18,2519466 ,"3,997.40", 09/04/2019,"3,997.40","4,796.88"
51,600211,Library Services,Learning and  Library,Strategic Development and Finance,49002,Miscellaneous Expenditure,Westcountry Leisure Pool & Spa Services Ltd,Carry out works as per your quote 331 dated 16/10/18,2519407 ,457.45, 11/04/2019,457.45,548.94
51,600211,Library Services,Learning and  Library,Strategic Development and Finance,49002,Miscellaneous Expenditure,Westcountry Leisure Pool & Spa Services Ltd,Carry out works as per your quote 331 dated 16/10/18,2519407 ,457.45, 11/04/2019,-457.45,548.94
51,600211,Library Services,Learning and  Library,Strategic Development and Finance,49002,Miscellaneous Expenditure,Westcountry Leisure Pool & Spa Services Ltd,Carry out works as per your quote 331 dated 16/10/18,2519407 ,457.45, 11/04/2019,457.45,548.94
51,600212,Customer Hub,Learning and  Library,Strategic Development and Finance,31602,Air Travel,RBS Commercial Card Division,14-03-2019|6459|TRAVEL TEAM|ISLES OF SCILLY SS CO|TR21 0LJ|4411|REFUND FLIGHT 251317|IOS_NSTINSON,2527247 ,"12,964.48", 12/04/2019,-113.06,"13,582.29"
51,600212,Customer Hub,Learning and  Library,Strategic Development and Finance,31602,Air Travel,RBS Commercial Card Division,05-03-2019|6459|TRAVEL TEAM|ISLES OF SCILLY SS CO|TR21 0LJ|4411|FLIGHT 251317|IOS_NSTINSON,2527247 ,"12,964.48", 12/04/2019,113.06,"13,582.29"
51,600212,Customer Hub,Learning and  Library,Strategic Development and Finance,41102,Equipment Rental,Francotyp-Postalia Ltd,137345  line 74,2583206 ,900.93, 20/06/2019,900.93,"1,081.12"
51,600212,Customer Hub,Learning and  Library,Strategic Development and Finance,31602,Air Travel,RBS Commercial Card Division,30-04-2019|6459|TRAVEL TEAM|WWW.ISLEOFSCILLY-TRAVE|TR21 0LJ|4411|FLIGHT|IOS_NSTINSON,2585377 ,"16,386.79", 28/06/2019,178.00,"17,042.35"
51,600212,Customer Hub,Learning and  Library,Strategic Development and Finance,31602,Air Travel,RBS Commercial Card Division,22-05-2019|6459|TRAVEL TEAM|ISLES OF SCILLY SS CO|TR21 0LJ|4411|FLIGHT 265388|IOS_NSTINSON,2585377 ,"16,386.79", 28/06/2019,118.76,"17,042.35"
51,600212,Customer Hub,Learning and  Library,Strategic Development and Finance,43002,Stationery and Consumables,RBS Commercial Card Division,14-05-2019|7435|JOANNA EVANS|AMAZON.CO.UK MN5JV4XL4|L2338|5969||IOS_NSTINSON,2585377 ,"16,386.79", 28/06/2019,19.99,"17,042.35"
51,600220,IFCA,Inshore Fisheries and Conservation Authoirutues,Strategic Development and Finance,12301,Training,SeaRegs Training Ltd,SeaRegs IFAC Training April-May 2019,2530428 ,708.33, 18/04/2019,708.33,850.00
51,600220,IFCA,Inshore Fisheries and Conservation Authoirutues,Strategic Development and Finance,31105,Vehicle Parts,Gael Force Marine Equipment Ltd,Gael Force Marine Equipment May 2019,2556732 ,917.29, 21/05/2019,917.29,"1,100.75"
51,600220,IFCA,Inshore Fisheries and Conservation Authoirutues,Strategic Development and Finance,31301,Vehicle acquisition <10k,Ribcraft UK Ltd,%Boat stage payment,2554450 ,"31,848.47", 23/05/2019,"-31,848.47","38,218.16"
51,600220,IFCA,Inshore Fisheries and Conservation Authoirutues,Strategic Development and Finance,31301,Vehicle acquisition <10k,Ribcraft UK Ltd,%Boat stage payment,2554450 ,"31,848.47", 23/05/2019,"31,848.47","38,218.16"
51,600220,IFCA,Inshore Fisheries and Conservation Authoirutues,Strategic Development and Finance,46103,Hotel Expenses,E W Moulson Ltd t/a Garrison Holidays,Tent Hire Garrison Holidays 29th June - 26th July,2558120 ,"1,104.17", 23/05/2019,"1,054.17","1,315.00"
51,600220,IFCA,Inshore Fisheries and Conservation Authoirutues,Strategic Development and Finance,46103,Hotel Expenses,E W Moulson Ltd t/a Garrison Holidays,Tent Hire Garrison Holidays 29th June - 26th July,2558120 ,"1,104.17", 23/05/2019,50.00,"1,315.00"
51,600220,IFCA,Inshore Fisheries and Conservation Authoirutues,Strategic Development and Finance,46103,Hotel Expenses,E W Moulson Ltd t/a Garrison Holidays,Tent Hire Garrison Holidays 29th June - 26th July,2558120 ,"1,104.17", 23/05/2019,"-1,104.17","1,315.00"
51,600220,IFCA,Inshore Fisheries and Conservation Authoirutues,Strategic Development and Finance,46103,Hotel Expenses,E W Moulson Ltd t/a Garrison Holidays,Tent Hire Garrison Holidays 29th June - 26th July,2558120 ,"1,104.17", 23/05/2019,"1,104.17","1,315.00"
51,600220,IFCA,Inshore Fisheries and Conservation Authoirutues,Strategic Development and Finance,42501,Protective Clothing,Newline Chandlery Ltd,Newline Chandlery Safety Equipment May 2019,2562794 ,"1,356.00", 30/05/2019,"1,164.00","1,588.80"
51,600220,IFCA,Inshore Fisheries and Conservation Authoirutues,Strategic Development and Finance,42501,Protective Clothing,Newline Chandlery Ltd,Newline Chandlery Safety Equipment May 2019,2562794 ,"1,356.00", 30/05/2019,192.00,"1,588.80"
51,600220,IFCA,Inshore Fisheries and Conservation Authoirutues,Strategic Development and Finance,46103,Hotel Expenses,RBS Commercial Card Division,16-04-2019|8235|FREDERICK PENDER|MOUNT BATTEN CENTRE CH|PL9 9SJ|8398||,2562926 ,"8,470.46", 30/05/2019,345.00,"8,939.84"
51,600220,IFCA,Inshore Fisheries and Conservation Authoirutues,Strategic Development and Finance,47002,Subscriptions,Association Of Ifcas,Membership Contribution for the Association of IFCAs 2019/20,2575142 ,"12,000.00", 11/06/2019,"12,000.00","14,400.00"
51,600220,IFCA,Inshore Fisheries and Conservation Authoirutues,Strategic Development and Finance,41109,R&M of Plant & Equipment,Island Outboard Services LLP,Supply of 1 new Yamaha F5AMHL outboard,2578645 ,901.70, 18/06/2019,901.70,"1,082.04"
51,600220,IFCA,Inshore Fisheries and Conservation Authoirutues,Strategic Development and Finance,31601,Rail,RBS Commercial Card Division,28-04-2019|8235|FREDERICK PENDER|GWR PENZANCE TO|TR18 2LT|4112||IOS_NSTINSON,2585377 ,"16,386.79", 28/06/2019,20.80,"17,042.35"
51,600220,IFCA,Inshore Fisheries and Conservation Authoirutues,Strategic Development and Finance,41104,Equipment & Plant - Direct Purchase,RBS Commercial Card Division,13-05-2019|7236|THOMAS HOOPER|WWW.FORCE4.CO.UK|GL6 0BS|4468||IOS_NSTINSON,2585377 ,"16,386.79", 28/06/2019,139.90,"17,042.35"
51,600220,IFCA,Inshore Fisheries and Conservation Authoirutues,Strategic Development and Finance,41104,Equipment & Plant - Direct Purchase,RBS Commercial Card Division,14-05-2019|7236|THOMAS HOOPER|WWW.FORCE4.CO.UK|GL6 0BS|4468||IOS_NSTINSON,2585377 ,"16,386.79", 28/06/2019,269.95,"17,042.35"
51,600220,IFCA,Inshore Fisheries and Conservation Authoirutues,Strategic Development and Finance,41104,Equipment & Plant - Direct Purchase,RBS Commercial Card Division,16-05-2019|7236|THOMAS HOOPER|FORCE 4|GL6 0BS|4468||IOS_NSTINSON,2585377 ,"16,386.79", 28/06/2019,229.80,"17,042.35"
51,600220,IFCA,Inshore Fisheries and Conservation Authoirutues,Strategic Development and Finance,41104,Equipment & Plant - Direct Purchase,RBS Commercial Card Division,13-05-2019|7236|THOMAS HOOPER|WWW.JOHNLEWIS.COM|SW1E5NN|5311||IOS_NSTINSON,2585377 ,"16,386.79", 28/06/2019,349.00,"17,042.35"
51,600220,IFCA,Inshore Fisheries and Conservation Authoirutues,Strategic Development and Finance,41123,Loose Tools,RBS Commercial Card Division,13-05-2019|8235|FREDERICK PENDER|WWW.ENRGTECH.CO.UK|BD5 9BP|5722||IOS_NSTINSON,2585377 ,"16,386.79", 28/06/2019,148.33,"17,042.35"
51,600220,IFCA,Inshore Fisheries and Conservation Authoirutues,Strategic Development and Finance,46102,Subsistence,RBS Commercial Card Division,02-05-2019|8235|FREDERICK PENDER|THE MOUNT BATTEN BAR|PL9 9SJ|5813||IOS_NSTINSON,2585377 ,"16,386.79", 28/06/2019,7.00,"17,042.35"
51,600220,IFCA,Inshore Fisheries and Conservation Authoirutues,Strategic Development and Finance,46103,Hotel Expenses,RBS Commercial Card Division,28-04-2019|8235|FREDERICK PENDER|MOUNT BATTEN CENTRE|PL9 9SJ|7999||IOS_NSTINSON,2585377 ,"16,386.79", 28/06/2019,9.15,"17,042.35"
51,600220,IFCA,Inshore Fisheries and Conservation Authoirutues,Strategic Development and Finance,46103,Hotel Expenses,RBS Commercial Card Division,28-04-2019|8235|FREDERICK PENDER|THE YACHT INN|TR18 4AU|5813|ACCOMMODATION|IOS_NSTINSON,2585377 ,"16,386.79", 28/06/2019,75.00,"17,042.35"
51,600220,IFCA,Inshore Fisheries and Conservation Authoirutues,Strategic Development and Finance,46103,Hotel Expenses,RBS Commercial Card Division,28-04-2019|8235|FREDERICK PENDER|THE MOUNT BATTEN BAR|PL9 9SJ|5813||IOS_NSTINSON,2585377 ,"16,386.79", 28/06/2019,14.00,"17,042.35"
51,600220,IFCA,Inshore Fisheries and Conservation Authoirutues,Strategic Development and Finance,46103,Hotel Expenses,RBS Commercial Card Division,29-04-2019|8235|FREDERICK PENDER|THE MOUNT BATTEN BAR|PL9 9SJ|5813||IOS_NSTINSON,2585377 ,"16,386.79", 28/06/2019,10.00,"17,042.35"
51,600220,IFCA,Inshore Fisheries and Conservation Authoirutues,Strategic Development and Finance,46103,Hotel Expenses,RBS Commercial Card Division,30-04-2019|8235|FREDERICK PENDER|THE MOUNT BATTEN BAR|PL9 9SJ|5813||IOS_NSTINSON,2585377 ,"16,386.79", 28/06/2019,10.00,"17,042.35"
51,600220,IFCA,Inshore Fisheries and Conservation Authoirutues,Strategic Development and Finance,46103,Hotel Expenses,RBS Commercial Card Division,01-05-2019|8235|FREDERICK PENDER|THE MOUNT BATTEN BAR|PL9 9SJ|5813||IOS_NSTINSON,2585377 ,"16,386.79", 28/06/2019,10.00,"17,042.35"
51,600220,IFCA,Inshore Fisheries and Conservation Authoirutues,Strategic Development and Finance,46103,Hotel Expenses,RBS Commercial Card Division,03-05-2019|8235|FREDERICK PENDER|THE YACHT INN|TR18 4AU|5813||IOS_NSTINSON,2585377 ,"16,386.79", 28/06/2019,66.00,"17,042.35"
51,600230,Capital Development & Procurement Team,Capital Development and Procurement,Strategic Development and Finance,43506,Professional Fees - Legal,Cornwall Council,Legal Fees for Smart Islands Project,2463234 ,"2,455.86", 04/04/2019,211.20,"2,913.43"
51,600230,Capital Development & Procurement Team,Capital Development and Procurement,Strategic Development and Finance,43506,Professional Fees - Legal,Cornwall Council,Legal Fees for Smart Islands Project,2463205 ,"1,209.50", 09/04/2019,48.00,"1,417.00"
51,600230,Capital Development & Procurement Team,Capital Development and Procurement,Strategic Development and Finance,43506,Professional Fees - Legal,Cornwall Council,Joint Councils Bid for Renewable Energy Assistance - Replacing PO no SD11433,2511817 ,877.50, 09/04/2019,285.00,"1,053.00"
51,600230,Capital Development & Procurement Team,Capital Development and Procurement,Strategic Development and Finance,43506,Professional Fees - Legal,Cornwall Council,Legal Fees for Smart Islands Project,2460412 ,"1,008.00", 09/04/2019,268.80,"1,209.60"
51,600230,Capital Development & Procurement Team,Capital Development and Procurement,Strategic Development and Finance,43506,Professional Fees - Legal,Cornwall Council,Legal Fees for Smart Islands Project,2460424 ,"2,476.80", 09/04/2019,307.20,"2,972.16"
51,600230,Capital Development & Procurement Team,Capital Development and Procurement,Strategic Development and Finance,31602,Air Travel,RBS Commercial Card Division,21-03-2019|6459|TRAVEL TEAM|ISLES OF SCILLY SS CO|TR21 0LJ|4411|FLIGHT REFUND|IOS_NSTINSON,2527247 ,"12,964.48", 12/04/2019,-76.00,"13,582.29"
51,600230,Capital Development & Procurement Team,Capital Development and Procurement,Strategic Development and Finance,31602,Air Travel,RBS Commercial Card Division,21-03-2019|6459|TRAVEL TEAM|ISLES OF SCILLY SS CO|TR21 0LJ|4411|FLIGHT  REFUND|IOS_NSTINSON,2527247 ,"12,964.48", 12/04/2019,-34.00,"13,582.29"
51,600230,Capital Development & Procurement Team,Capital Development and Procurement,Strategic Development and Finance,89202,Legal Fees & Expenses,Ashfords,Legal Advice - Business Efficiency scheme,2524875 ,"3,449.00", 25/04/2019,"3,449.00","4,138.80"
51,600230,Capital Development & Procurement Team,Capital Development and Procurement,Strategic Development and Finance,43532,Professional Fees - Other,Cornwall Council,Bloom Invoice re gasification feasibility Study by WYG,2533300 ,"21,333.33", 02/05/2019,"21,333.33","25,600.00"
51,600230,Capital Development & Procurement Team,Capital Development and Procurement,Strategic Development and Finance,31602,Air Travel,RBS Commercial Card Division,02-05-2019|6459|TRAVEL TEAM|ISLES OF SCILLY SS CO|TR21 0LJ|4411|FLIGHT 261755|IOS_NSTINSON,2585377 ,"16,386.79", 28/06/2019,118.76,"17,042.35"
51,600230,Capital Development & Procurement Team,Capital Development and Procurement,Strategic Development and Finance,31602,Air Travel,RBS Commercial Card Division,21-05-2019|6459|TRAVEL TEAM|ISLES OF SCILLY SS CO|TR21 0LJ|4411|FLIGHT 261755 BUS ADDED|IOS_NSTINSON,2585377 ,"16,386.79", 28/06/2019,12.00,"17,042.35"
51,600230,Capital Development & Procurement Team,Capital Development and Procurement,Strategic Development and Finance,41301,Books and Publications,RBS Commercial Card Division,07-05-2019|6509|KEITH GROSSETT|WWW.JCTLTD.CO.UK|EC1N 6TD|5942||,2585377 ,"16,386.79", 28/06/2019,45.20,"17,042.35"
51,600230,Capital Development & Procurement Team,Capital Development and Procurement,Strategic Development and Finance,41310,Delivery Charges,RBS Commercial Card Division,22-05-2019|7450|NICOLA STINSON|POST OFFICE COUNTER|TR21 0LR|9402||,2585377 ,"16,386.79", 28/06/2019,3.17,"17,042.35"
51,600240,Social Housing,Housing Rented Property and Homelessness,Strategic Development and Finance,43506,Professional Fees - Legal,Cornwall Council,Legal assistance with SEI assets on social properties.,2503406 ,905.60, 09/04/2019,28.80,"1,070.72"
51,600240,Social Housing,Housing Rented Property and Homelessness,Strategic Development and Finance,43506,Professional Fees - Legal,Cornwall Council,Legal assistance with SEI assets on social properties.,2460424 ,"2,476.80", 09/04/2019,153.60,"2,972.16"
51,600240,Social Housing,Housing Rented Property and Homelessness,Strategic Development and Finance,43506,Professional Fees - Legal,Cornwall Council,Legal assistance with SEI assets on social properties.,2509141 ,"2,731.50", 09/04/2019,163.20,"3,240.44"
51,600240,Social Housing,Housing Rented Property and Homelessness,Strategic Development and Finance,21201,R&M - Buildings - Reactive,F&K Electrical & Refrigeration Ltd,ASHP: Initial Diagnosis for 3 Gleaner,2503358 ,694.00, 11/04/2019,694.00,694.00
51,600240,Social Housing,Housing Rented Property and Homelessness,Strategic Development and Finance,21201,R&M - Buildings - Reactive,F&K Electrical & Refrigeration Ltd,ASHP: Initial Diagnosis for 3 Gleaner,2503358 ,694.00, 11/04/2019,-697.00,694.00
51,600240,Social Housing,Housing Rented Property and Homelessness,Strategic Development and Finance,21201,R&M - Buildings - Reactive,F&K Electrical & Refrigeration Ltd,ASHP: Initial Diagnosis for 3 Gleaner,2503358 ,694.00, 11/04/2019,697.00,694.00
51,600240,Social Housing,Housing Rented Property and Homelessness,Strategic Development and Finance,46103,Hotel Expenses,RBS Commercial Card Division,18-03-2019|7468|MICHAEL COATES|PREMIER INN|TR14 0RT|3811||IOS_NSTINSON,2527247 ,"12,964.48", 12/04/2019,373.00,"13,582.29"
51,600240,Social Housing,Housing Rented Property and Homelessness,Strategic Development and Finance,46103,Hotel Expenses,RBS Commercial Card Division,18-03-2019|7468|MICHAEL COATES|PREMIER INN|TR27 4PN|3811||IOS_NSTINSON,2527247 ,"12,964.48", 12/04/2019,74.00,"13,582.29"
51,600240,Social Housing,Housing Rented Property and Homelessness,Strategic Development and Finance,21201,R&M - Buildings - Reactive,F&K Electrical & Refrigeration Ltd,CIS Amendment,2531055 ,694.00, 18/04/2019,694.00,694.00
51,600240,Social Housing,Housing Rented Property and Homelessness,Strategic Development and Finance,41103,Equipment - Spares,IronmongeryDirect,"Window parts for social housing, handles, hinges, mechanisms and screws",2552357 ,636.55, 16/05/2019,636.55,763.86
51,600240,Social Housing,Housing Rented Property and Homelessness,Strategic Development and Finance,31601,Rail,RBS Commercial Card Division,02-04-2019|7468|MICHAEL COATES|WWW.GWR.COM|SN1 1HL|4112|RAIL TICKETS|,2562926 ,"8,470.46", 30/05/2019,156.10,"8,939.84"
51,600240,Social Housing,Housing Rented Property and Homelessness,Strategic Development and Finance,46103,Hotel Expenses,RBS Commercial Card Division,02-04-2019|7468|MICHAEL COATES|PREMIER INN|N1 9AG|3811|HOTEL|,2562926 ,"8,470.46", 30/05/2019,289.00,"8,939.84"
51,600240,Social Housing,Housing Rented Property and Homelessness,Strategic Development and Finance,21110,R&M - Electrical - Planned,Davey & Gilbert Ltd,Replacement heater and works to emersion,2565260 ,618.12, 04/06/2019,618.12,741.74
51,600240,Social Housing,Housing Rented Property and Homelessness,Strategic Development and Finance,27001,Contract Cleaning,Scilly Hols Ltd,"Cleaning of communal areas Longras, 29 Sallyport, Parade Flats",2563864 ,"1,350.00", 04/06/2019,"1,350.00","1,620.00"
51,600240,Social Housing,Housing Rented Property and Homelessness,Strategic Development and Finance,21132,21132- R&M Electrical Remedial (Works after Stat Testing),Davey & Gilbert Ltd,Remedial works following failed EICR to 8 Parade Flats - Price as per quotation,2576913 ,"1,782.56", 13/06/2019,"1,782.56","2,139.07"
51,600240,Social Housing,Housing Rented Property and Homelessness,Strategic Development and Finance,21132,21132- R&M Electrical Remedial (Works after Stat Testing),Davey & Gilbert Ltd,Remedial works following failed EICR -2 Trinity Cottages - price as per estimate,2576914 ,"4,470.00", 13/06/2019,"4,470.00","5,364.00"
51,600240,Social Housing,Housing Rented Property and Homelessness,Strategic Development and Finance,43507,Professional Fees - Construction,Currie & Brown UK Ltd,2019: Stock Condition Survey,2491607 ,"26,625.00", 13/06/2019,"26,625.00","31,950.00"
51,600240,Social Housing,Housing Rented Property and Homelessness,Strategic Development and Finance,21132,21132- R&M Electrical Remedial (Works after Stat Testing),Kor Electrical,Re-wire of 13 Sallyport as per specification and quotation,2564143 ,"3,987.50", 18/06/2019,"2,587.50","4,505.00"
51,600240,Social Housing,Housing Rented Property and Homelessness,Strategic Development and Finance,21132,21132- R&M Electrical Remedial (Works after Stat Testing),Kor Electrical,Re-wire of 13 Sallyport as per specification and quotation,2564143 ,"3,987.50", 18/06/2019,"1,400.00","4,505.00"
51,600240,Social Housing,Housing Rented Property and Homelessness,Strategic Development and Finance,21132,21132- R&M Electrical Remedial (Works after Stat Testing),Kor Electrical,Re-wire of 13 Sallyport as per specification and quotation,2564143 ,"3,987.50", 18/06/2019,"-3,987.50","4,505.00"
51,600240,Social Housing,Housing Rented Property and Homelessness,Strategic Development and Finance,21132,21132- R&M Electrical Remedial (Works after Stat Testing),Kor Electrical,Re-wire of 13 Sallyport as per specification and quotation,2564143 ,"3,987.50", 18/06/2019,"3,987.50","4,505.00"
51,600240,Social Housing,Housing Rented Property and Homelessness,Strategic Development and Finance,73633,R&M Kitchens - Reactive,Kor Electrical,"13 Sallyport - Additional works such as new kitchen, bathroom and flooring in the wet rooms",2564149 ,"4,689.98", 18/06/2019,"3,089.98","5,307.98"
51,600240,Social Housing,Housing Rented Property and Homelessness,Strategic Development and Finance,73633,R&M Kitchens - Reactive,Kor Electrical,"13 Sallyport - Additional works such as new kitchen, bathroom and flooring in the wet rooms",2564149 ,"4,689.98", 18/06/2019,"1,600.00","5,307.98"
51,600240,Social Housing,Housing Rented Property and Homelessness,Strategic Development and Finance,73633,R&M Kitchens - Reactive,Kor Electrical,"13 Sallyport - Additional works such as new kitchen, bathroom and flooring in the wet rooms",2564149 ,"4,689.98", 18/06/2019,"4,689.98","5,307.98"
51,600240,Social Housing,Housing Rented Property and Homelessness,Strategic Development and Finance,73633,R&M Kitchens - Reactive,Kor Electrical,"13 Sallyport - Additional works such as new kitchen, bathroom and flooring in the wet rooms",2564149 ,"4,689.98", 18/06/2019,"-4,689.98","5,307.98"
51,600240,Social Housing,Housing Rented Property and Homelessness,Strategic Development and Finance,21210,R&M - Electrical - Reactive,Davey & Gilbert Ltd,installation of extractor in kitchen,2583381 ,485.00, 20/06/2019,485.00,582.00
51,600240,Social Housing,Housing Rented Property and Homelessness,Strategic Development and Finance,21110,R&M - Electrical - Planned,Evans Electricals,3 Ennor House - First fix electrics,2587833 ,"4,525.87", 27/06/2019,"3,645.87","4,349.87"
51,600240,Social Housing,Housing Rented Property and Homelessness,Strategic Development and Finance,21110,R&M - Electrical - Planned,Evans Electricals,3 Ennor House - First fix electrics,2587833 ,"4,525.87", 27/06/2019,880.00,"4,349.87"
51,600240,Social Housing,Housing Rented Property and Homelessness,Strategic Development and Finance,21110,R&M - Electrical - Planned,Evans Electricals,3 Ennor House - First fix electrics,2587833 ,"4,525.87", 27/06/2019,"-4,525.87","4,349.87"
51,600240,Social Housing,Housing Rented Property and Homelessness,Strategic Development and Finance,21110,R&M - Electrical - Planned,Evans Electricals,3 Ennor House - First fix electrics,2587833 ,"4,525.87", 27/06/2019,"4,525.87","4,349.87"
51,600240,Social Housing,Housing Rented Property and Homelessness,Strategic Development and Finance,31602,Air Travel,RBS Commercial Card Division,16-05-2019|6459|TRAVEL TEAM|ISLES OF SCILLY SS CO|TR21 0LJ|4411|FLIGHT 264263|IOS_NSTINSON,2585377 ,"16,386.79", 28/06/2019,169.10,"17,042.35"
51,600240,Social Housing,Housing Rented Property and Homelessness,Strategic Development and Finance,31602,Air Travel,RBS Commercial Card Division,15-05-2019|6459|TRAVEL TEAM|FLYBE.COM MF34IQ       0|EX5 3HL|4511|FLIGHT FLYBE|IOS_NSTINSON,2585377 ,"16,386.79", 28/06/2019,123.94,"17,042.35"
51,600241,Private Housing,Housing Rented Property and Homelessness,Strategic Development and Finance,43506,Professional Fees - Legal,Cornwall Council,"Replacement PO for SD11346, SD11324, SD11245 & SD11296 for Legal Fees for Housing",2463234 ,"2,455.86", 04/04/2019,38.40,"2,913.43"
51,600241,Private Housing,Housing Rented Property and Homelessness,Strategic Development and Finance,43506,Professional Fees - Legal,Cornwall Council,"Replacement PO for SD11346, SD11324, SD11245 & SD11296 for Legal Fees for Housing",2460362 ,979.20, 04/04/2019,38.40,"1,175.04"
51,600241,Private Housing,Housing Rented Property and Homelessness,Strategic Development and Finance,43506,Professional Fees - Legal,Cornwall Council,"Replacement PO for SD11346, SD11324, SD11245 & SD11296 for Legal Fees for Housing",2460362 ,979.20, 04/04/2019,105.60,"1,175.04"
51,600241,Private Housing,Housing Rented Property and Homelessness,Strategic Development and Finance,89202,Legal Fees & Expenses,Cornwall Council,Legal Fees: 3 Gleaner House RTB,2509141 ,"2,731.50", 09/04/2019,19.20,"3,240.44"
51,600241,Private Housing,Housing Rented Property and Homelessness,Strategic Development and Finance,31602,Air Travel,RBS Commercial Card Division,21-03-2019|6459|TRAVEL TEAM|ISLES OF SCILLY SS CO|TR21 0LJ|4411|FLIGHT 229713 AMENDMENT|IOS_NSTINSON,2527247 ,"12,964.48", 12/04/2019,7.50,"13,582.29"
51,600242,Housing Staffing,Housing Rented Property and Homelessness,Strategic Development and Finance,49002,Miscellaneous Expenditure,Cornwall Council,Legal assistance with a party wall agreement for 33 Ennor Close,2503406 ,905.60, 09/04/2019,28.80,"1,070.72"
51,600242,Housing Staffing,Housing Rented Property and Homelessness,Strategic Development and Finance,49002,Miscellaneous Expenditure,Cornwall Council,Legal assistance with a party wall agreement for 33 Ennor Close,2460424 ,"2,476.80", 09/04/2019,297.60,"2,972.16"
51,600242,Housing Staffing,Housing Rented Property and Homelessness,Strategic Development and Finance,49002,Miscellaneous Expenditure,Cornwall Council,Legal assistance with a party wall agreement for 33 Ennor Close,2460424 ,"2,476.80", 09/04/2019,-497.60,"2,972.16"
51,600242,Housing Staffing,Housing Rented Property and Homelessness,Strategic Development and Finance,49002,Miscellaneous Expenditure,Cornwall Council,Legal assistance with a party wall agreement for 33 Ennor Close,2460424 ,"2,476.80", 09/04/2019,497.60,"2,972.16"
51,600242,Housing Staffing,Housing Rented Property and Homelessness,Strategic Development and Finance,49002,Miscellaneous Expenditure,Cornwall Council,Legal assistance with a party wall agreement for 33 Ennor Close,2509141 ,"2,731.50", 09/04/2019,57.60,"3,240.44"
51,600242,Housing Staffing,Housing Rented Property and Homelessness,Strategic Development and Finance,31602,Air Travel,RBS Commercial Card Division,11-03-2019|6459|TRAVEL TEAM|ISLES OF SCILLY SS CO|TR21 0LJ|4411|FLIGHT 252536|IOS_NSTINSON,2527247 ,"12,964.48", 12/04/2019,169.10,"13,582.29"
51,600242,Housing Staffing,Housing Rented Property and Homelessness,Strategic Development and Finance,31602,Air Travel,RBS Commercial Card Division,11-03-2019|6459|TRAVEL TEAM|ISLES OF SCILLY SS CO|TR21 0LJ|4411|FLIGHT 247575 AMENDMENT|IOS_NSTINSON,2527247 ,"12,964.48", 12/04/2019,8.45,"13,582.29"
51,600242,Housing Staffing,Housing Rented Property and Homelessness,Strategic Development and Finance,31602,Air Travel,RBS Commercial Card Division,12-03-2019|6459|TRAVEL TEAM|ISLES OF SCILLY SS CO|TR21 0LJ|4411|FLIGHT 252262|IOS_NSTINSON,2527247 ,"12,964.48", 12/04/2019,169.10,"13,582.29"
51,600242,Housing Staffing,Housing Rented Property and Homelessness,Strategic Development and Finance,31602,Air Travel,RBS Commercial Card Division,12-03-2019|6459|TRAVEL TEAM|ISLES OF SCILLY SS CO|TR21 0LJ|4411|FLIGHT 252262|IOS_NSTINSON,2527247 ,"12,964.48", 12/04/2019,26.91,"13,582.29"
51,600242,Housing Staffing,Housing Rented Property and Homelessness,Strategic Development and Finance,31602,Air Travel,RBS Commercial Card Division,12-03-2019|6459|TRAVEL TEAM|ISLES OF SCILLY SS CO|TR21 0LJ|4411|FLIGHT 247575 AMENDMENT|IOS_NSTINSON,2527247 ,"12,964.48", 12/04/2019,35.51,"13,582.29"
51,600242,Housing Staffing,Housing Rented Property and Homelessness,Strategic Development and Finance,49002,Miscellaneous Expenditure,Guy Barker Hall Chimney & Stove Services,Chimney Sweeps of 44 Social Housing properties.,2559470 ,"2,062.50", 28/05/2019,300.00,"2,315.00"
51,600242,Housing Staffing,Housing Rented Property and Homelessness,Strategic Development and Finance,49002,Miscellaneous Expenditure,Guy Barker Hall Chimney & Stove Services,Chimney Sweeps of 44 Social Housing properties.,2559470 ,"2,062.50", 28/05/2019,800.00,"2,315.00"
51,600242,Housing Staffing,Housing Rented Property and Homelessness,Strategic Development and Finance,49002,Miscellaneous Expenditure,Guy Barker Hall Chimney & Stove Services,Chimney Sweeps of 44 Social Housing properties.,2559470 ,"2,062.50", 28/05/2019,962.50,"2,315.00"
51,600242,Housing Staffing,Housing Rented Property and Homelessness,Strategic Development and Finance,49002,Miscellaneous Expenditure,Guy Barker Hall Chimney & Stove Services,Chimney Sweeps of 44 Social Housing properties.,2559470 ,"2,062.50", 28/05/2019,"-2,062.50","2,315.00"
51,600242,Housing Staffing,Housing Rented Property and Homelessness,Strategic Development and Finance,49002,Miscellaneous Expenditure,Guy Barker Hall Chimney & Stove Services,Chimney Sweeps of 44 Social Housing properties.,2559470 ,"2,062.50", 28/05/2019,"2,062.50","2,315.00"
51,600242,Housing Staffing,Housing Rented Property and Homelessness,Strategic Development and Finance,49002,Miscellaneous Expenditure,Guy Barker Hall Chimney & Stove Services,Chimney Sweeps of 44 Social Housing properties.,2559470 ,"2,062.50", 28/05/2019,"-1,062.50","2,315.00"
51,600242,Housing Staffing,Housing Rented Property and Homelessness,Strategic Development and Finance,49002,Miscellaneous Expenditure,Guy Barker Hall Chimney & Stove Services,Chimney Sweeps of 44 Social Housing properties.,2559470 ,"2,062.50", 28/05/2019,"1,062.50","2,315.00"
51,600242,Housing Staffing,Housing Rented Property and Homelessness,Strategic Development and Finance,31602,Air Travel,RBS Commercial Card Division,02-04-2019|6459|TRAVEL TEAM|ISLES OF SCILLY SS CO|TR21 0LJ|4411|FLIGHT 256422|,2562926 ,"8,470.46", 30/05/2019,181.10,"8,939.84"
51,600242,Housing Staffing,Housing Rented Property and Homelessness,Strategic Development and Finance,31602,Air Travel,RBS Commercial Card Division,18-04-2019|6459|TRAVEL TEAM|ISLES OF SCILLY SS CO|TR21 0LJ|4411|FLIGHT 259420|,2562926 ,"8,470.46", 30/05/2019,125.26,"8,939.84"
